{"text_format":"1","workbook":"xlsx","n_sheets":16,"sheets":["画面表示","Status","Set","Element","LoadData","3年後見込","損害率","保険料率","ツール構成","結果_Form","【ひな形】入力１＆入力６","【ひな形】入力２","【ひな形】入力３","【ひな形】入力４","【ひな形】入力5","【ひな形】結果１"],"not_rendered":{"charts":0,"images":0,"macros":1,"external_links":0,"defined_names":335,"comments":0,"pivot_tables":0},"unopened":[],"bounds":{"document_bytes":16777216,"sheet_cells":100000,"rows_first":2000,"rows_last":500,"rows_between":2000,"halvings":0,"cell_chars":16384,"cell_head_chars":4096},"cells_cut":0,"cells_raw":0,"read":"whole","date_system":"1900"}

{"sheet":"画面表示","index":0,"n_rows":0,"n_cols":0,"rows_kept":0,"cut":false,"hidden":false,"merged":[]}

{"sheet":"Status","index":1,"n_rows":689,"n_cols":10,"rows_kept":689,"cut":false,"hidden":false,"merged":[[291,3,291,4],[282,3,282,4],[283,3,283,4],[284,3,284,4],[285,3,285,4],[286,3,286,4],[287,3,287,4],[288,3,288,4],[289,3,289,4],[290,3,290,4],[279,3,279,4],[280,3,280,4],[281,3,281,4],[274,3,274,4],[275,3,275,4],[276,3,276,4],[277,3,277,4],[278,3,278,4],[258,3,258,4],[259,3,259,4],[260,3,260,4],[272,3,272,4],[273,3,273,4],[261,3,261,4],[262,3,262,4],[263,3,263,4],[264,3,264,4],[265,3,265,4],[266,3,266,4],[267,3,267,4],[268,3,268,4],[269,3,269,4],[270,3,270,4],[253,3,253,4],[254,3,254,4],[255,3,255,4],[256,3,256,4],[257,3,257,4],[171,3,171,4],[172,3,172,4],[173,3,173,4],[251,3,251,4],[252,3,252,4],[183,3,183,4],[184,3,184,4],[185,3,185,4],[186,3,186,4],[187,3,187,4],[188,3,188,4],[189,3,189,4],[190,3,190,4],[191,3,191,4],[192,3,192,4],[193,3,193,4],[194,3,194,4],[195,3,195,4],[196,3,196,4],[127,3,127,4],[128,3,128,4],[129,3,129,4],[164,3,164,4],[165,3,165,4],[133,3,133,4],[134,3,134,4],[135,3,135,4],[136,3,136,4],[137,3,137,4],[138,3,138,4],[139,3,139,4],[140,3,140,4],[141,3,141,4],[142,3,142,4],[131,3,131,4],[132,3,132,4],[143,3,143,4],[144,3,144,4],[145,3,145,4],[146,3,146,4],[147,3,147,4],[148,3,148,4],[149,3,149,4],[122,3,122,4],[123,3,123,4],[124,3,124,4],[125,3,125,4],[126,3,126,4],[116,3,116,4],[117,3,117,4],[118,3,118,4],[120,3,120,4],[121,3,121,4],[111,3,111,4],[112,3,112,4],[113,3,113,4],[114,3,114,4],[115,3,115,4],[96,3,96,4],[97,3,97,4],[98,3,98,4],[109,3,109,4],[110,3,110,4],[99,3,99,4],[100,3,100,4],[101,3,101,4],[102,3,102,4],[103,3,103,4],[104,3,104,4],[105,3,105,4],[106,3,106,4],[107,3,107,4],[108,3,108,4],[92,3,92,4],[93,3,93,4],[94,3,94,4],[95,3,95,4],[86,3,86,4],[87,3,87,4],[88,3,88,4],[89,3,89,4],[90,3,90,4],[83,3,83,4],[84,3,84,4],[85,3,85,4],[76,3,76,4],[77,3,77,4],[78,3,78,4],[79,3,79,4],[80,3,80,4],[91,3,91,4],[74,3,74,4],[75,3,75,4],[66,3,66,4],[67,3,67,4],[68,3,68,4],[69,3,69,4],[70,3,70,4],[81,3,81,4],[82,3,82,4],[61,3,61,4],[62,3,62,4],[63,3,63,4],[64,3,64,4],[65,3,65,4],[293,4,293,5],[294,4,294,5],[47,3,47,4],[48,3,48,4],[49,3,49,4],[50,3,50,4],[51,3,51,4],[52,3,52,4],[53,3,53,4],[54,3,54,4],[55,3,55,4],[56,3,56,4],[57,3,57,4],[58,3,58,4],[59,3,59,4],[60,3,60,4],[71,3,71,4],[72,3,72,4],[73,3,73,4],[0,0,0,7],[1,2,1,5],[2,2,2,5],[45,3,45,5],[42,3,44,4],[40,4,40,5],[3,3,3,5],[5,3,5,5],[6,3,6,5],[41,3,41,5],[38,3,38,5],[150,3,150,4],[151,3,151,4],[152,3,152,4],[153,3,153,4],[154,3,154,4],[155,3,155,4],[156,3,156,4],[157,3,157,4],[158,3,158,4],[166,3,166,4],[167,3,167,4],[168,3,168,4],[169,3,169,4],[170,3,170,4],[159,3,159,4],[160,3,160,4],[161,3,161,4],[162,3,162,4],[163,3,163,4],[197,3,197,4],[198,3,198,4],[206,3,206,4],[207,3,207,4],[174,3,174,4],[199,3,199,4],[200,3,200,4],[201,3,201,4],[202,3,202,4],[203,3,203,4],[204,3,204,4],[205,3,205,4],[179,3,179,4],[180,3,180,4],[181,3,181,4],[182,3,182,4],[175,3,175,4],[176,3,176,4],[177,3,177,4],[178,3,178,4],[208,3,208,4],[209,3,209,4],[210,3,210,4],[211,3,211,4],[212,3,212,4],[213,3,213,4],[214,3,214,4],[215,3,215,4],[216,3,216,4],[217,3,217,4],[218,3,218,4],[219,3,219,4],[220,3,220,4],[221,3,221,4],[222,3,222,4],[223,3,223,4],[224,3,224,4],[225,3,225,4],[226,3,226,4],[227,3,227,4],[228,3,228,4],[229,3,229,4],[230,3,230,4],[231,3,231,4],[232,3,232,4],[233,3,233,4],[234,3,234,4],[244,3,244,4],[245,3,245,4],[246,3,246,4],[247,3,247,4],[248,3,248,4],[249,3,249,4],[250,3,250,4],[235,3,235,4],[236,3,236,4],[237,3,237,4],[238,3,238,4],[239,3,239,4],[240,3,240,4],[241,3,241,4],[242,3,242,4],[243,3,243,4],[310,3,310,4],[311,3,311,4],[312,3,312,4],[313,3,313,4],[296,3,296,4],[297,3,297,4],[298,3,298,4],[299,3,299,4],[300,3,300,4],[301,3,301,4],[302,3,302,4],[303,3,303,4],[304,3,304,4],[323,3,323,4],[324,3,324,4],[325,3,325,4],[326,3,326,4],[327,3,327,4],[328,3,328,4],[119,3,119,4],[130,3,130,4],[271,3,271,4],[292,3,292,4],[314,3,314,4],[315,3,315,4],[316,3,316,4],[317,3,317,4],[318,3,318,4],[319,3,319,4],[320,3,320,4],[321,3,321,4],[322,3,322,4],[305,3,305,4],[306,3,306,4],[307,3,307,4],[308,3,308,4],[309,3,309,4],[338,3,338,4],[329,3,329,4],[330,3,330,4],[332,3,332,4],[333,3,333,4],[331,3,331,4],[334,3,334,4],[335,3,335,4],[336,3,336,4],[337,3,337,4]]}
["Status",null,null,null,null,null,null,null,null,"初期値"]
[null,1,"現在の頁",null,null,null,"Page_Now",1,null,1]
[null,2,"直前の頁",null,null,null,"Page_Before",14,null,{"$f":"Page_Now","v":1}]
[null,null,"入力１","保険期間開始年",null,null,"HokenStartY"]
[null,null,null,null,null,null,"StartY"]
[null,null,null,"基準収入金額",null,null,"KijunShunyu"]
[null,null,null,"補てん方式",null,null,"HotenHoshiki"]
[null,null,null,"保険方式","補償限度","８０％","Hoken_HoshoGendo80",true,null,true]
[null,null,null,null,null,"７８％","Hoken_HoshoGendo78",false,null,false]
[null,null,null,null,null,"７５％","Hoken_HoshoGendo75",false,null,false]
[null,null,null,null,null,"７０％","Hoken_HoshoGendo70",false,null,false]
[null,null,null,null,null,"６０％","Hoken_HoshoGendo60",false,null,false]
[null,null,null,null,null,"５０％","Hoken_HoshoGendo50",false,null,false]
[null,null,null,null,null,"適用","Hoken_HoshoGendo",80,null,80]
[null,null,null,null,"補償の下限","７０％","Hoken_HoshoKagen70",false,null,false]
[null,null,null,null,null,"６０％","Hoken_HoshoKagen60",false,null,false]
[null,null,null,null,null,"５０％","Hoken_HoshoKagen50",false,null,false]
[null,null,null,null,null,"選択なし","Hoken_HoshoKagen00",true,null,true]
[null,null,null,null,null,"適用","Hoken_HoshoKagen",0,null,0]
[null,null,null,null,"支払率","９０％","Hoken_Shiharairitsu90",true,null,true]
[null,null,null,null,null,"８０％","Hoken_Shiharairitsu80",false,null,false]
[null,null,null,null,null,"７０％","Hoken_Shiharairitsu70",false,null,false]
[null,null,null,null,null,"６０％","Hoken_Shiharairitsu60",false,null,false]
[null,null,null,null,null,"５０％","Hoken_Shiharairitsu50",false,null,false]
[null,null,null,null,null,"適用","Hoken_Shiharairitsu",90,null,90]
[null,null,null,"積立方式","補償幅","１０％","Tsumitate_HoshoHaba10",true,null,true]
[null,null,null,null,null,"５％","Tsumitate_HoshoHaba5",false,null,false]
[null,null,null,null,null,"適用","Tsumitate_HoshoHaba",10,null,10]
[null,null,null,null,"支払率","９０％","Tsumitate_Shiharairitsu90",true,null,true]
[null,null,null,null,null,"８０％","Tsumitate_Shiharairitsu80",false,null,false]
[null,null,null,null,null,"７０％","Tsumitate_Shiharairitsu70",false,null,false]
[null,null,null,null,null,"６０％","Tsumitate_Shiharairitsu60",false,null,false]
[null,null,null,null,null,"５０％","Tsumitate_Shiharairitsu50",false,null,false]
[null,null,null,null,null,"４０％","Tsumitate_Shiharairitsu40",false,null,false]
[null,null,null,null,null,"３０％","Tsumitate_Shiharairitsu30",false,null,false]
[null,null,null,null,null,"２０％","Tsumitate_Shiharairitsu20",false,null,false]
[null,null,null,null,null,"１０％","Tsumitate_Shiharairitsu10",false,null,false]
[null,null,null,null,null,"適用","Tsumitate_Shiharairitsu",90,null,90]
[null,null,null,"危険段階区分",null,null,"KikenDankaiKubun","  0区分",null,"  0区分"]
[null,null,null,null,null,"適用","KikenDankai"]
[null,null,null,null,"激変緩和措置適用",null,"GekihenKanwaSochiTekiyo","激変緩和措置適用なし",null,"激変緩和措置適用なし"]
[null,null,null,"つなぎ資金貸付残高",null,null,"TsunagiZandaka"]
[null,null,null,"加重平均損害率算定\n基礎数値",null,"①","KajuHeikinSongairitsuKiso1"]
[null,null,null,null,null,"②","KajuHeikinSongairitsuKiso2"]
[null,null,null,null,null,"③","KajuHeikinSongairitsuKiso3"]
[null,null,null,"見込農業収入対象品目数",null,null,"MikomiNogyoTaishoHinmoku",null,{"$f":"TRIM(SUBSTITUTE(MikomiNogyoTaishoHinmoku,\"品目\",\"\"))*1","v":{"$error":"#VALUE!"}}]
[null,null,null,null,null,null,"MikomiNogyoTaishoHinmokuNum"]
[null,null,"入力２","種類・品目",null,"明細０１","ShuruiHinmoku1"]
[null,null,null,null,null,"明細０２","ShuruiHinmoku2"]
[null,null,null,null,null,"明細０３","ShuruiHinmoku3"]
[null,null,null,null,null,"明細０４","ShuruiHinmoku4"]
[null,null,null,null,null,"明細０５","ShuruiHinmoku5"]
[null,null,null,null,null,"明細０６","ShuruiHinmoku6"]
[null,null,null,null,null,"明細０７","ShuruiHinmoku7"]
[null,null,null,null,null,"明細０８","ShuruiHinmoku8"]
[null,null,null,null,null,"明細０９","ShuruiHinmoku9"]
[null,null,null,null,null,"明細１０","ShuruiHinmoku10"]
[null,null,null,"期首棚卸高",null,"明細０１","KishuTanaoroshi1"]
[null,null,null,null,null,"明細０２","KishuTanaoroshi2"]
[null,null,null,null,null,"明細０３","KishuTanaoroshi3"]
[null,null,null,null,null,"明細０４","KishuTanaoroshi4"]
[null,null,null,null,null,"明細０５","KishuTanaoroshi5"]
[null,null,null,null,null,"明細０６","KishuTanaoroshi6"]
[null,null,null,null,null,"明細０７","KishuTanaoroshi7"]
[null,null,null,null,null,"明細０８","KishuTanaoroshi8"]
[null,null,null,null,null,"明細０９","KishuTanaoroshi9"]
[null,null,null,null,null,"明細１０","KishuTanaoroshi10"]
[null,null,null,null,null,"合計","KishuTanaoroshi11"]
[null,null,null,"事業消費単価",null,"明細０１","JigyoShohi1"]
[null,null,null,null,null,"明細０２","JigyoShohi2"]
[null,null,null,null,null,"明細０３","JigyoShohi3"]
[null,null,null,null,null,"明細０４","JigyoShohi4"]
[null,null,null,null,null,"明細０５","JigyoShohi5"]
[null,null,null,null,null,"明細０６","JigyoShohi6"]
[null,null,null,null,null,"明細０７","JigyoShohi7"]
[null,null,null,null,null,"明細０８","JigyoShohi8"]
[null,null,null,null,null,"明細０９","JigyoShohi9"]
[null,null,null,null,null,"明細１０","JigyoShohi10"]
[null,null,null,"期末棚卸単価",null,"明細０１","KimatsuTanaoroshi1"]
[null,null,null,null,null,"明細０２","KimatsuTanaoroshi2"]
[null,null,null,null,null,"明細０３","KimatsuTanaoroshi3"]
[null,null,null,null,null,"明細０４","KimatsuTanaoroshi4"]
[null,null,null,null,null,"明細０５","KimatsuTanaoroshi5"]
[null,null,null,null,null,"明細０６","KimatsuTanaoroshi6"]
[null,null,null,null,null,"明細０７","KimatsuTanaoroshi7"]
[null,null,null,null,null,"明細０８","KimatsuTanaoroshi8"]
[null,null,null,null,null,"明細０９","KimatsuTanaoroshi9"]
[null,null,null,null,null,"明細１０","KimatsuTanaoroshi10"]
[null,null,null,"見込農業収入金額",null,"明細０１","MikomiNogyoShunyu1"]
[null,null,null,null,null,"明細０２","MikomiNogyoShunyu2"]
[null,null,null,null,null,"明細０３","MikomiNogyoShunyu3"]
[null,null,null,null,null,"明細０４","MikomiNogyoShunyu4"]
[null,null,null,null,null,"明細０５","MikomiNogyoShunyu5"]
[null,null,null,null,null,"明細０６","MikomiNogyoShunyu6"]
[null,null,null,null,null,"明細０７","MikomiNogyoShunyu7"]
[null,null,null,null,null,"明細０８","MikomiNogyoShunyu8"]
[null,null,null,null,null,"明細０９","MikomiNogyoShunyu9"]
[null,null,null,null,null,"明細１０","MikomiNogyoShunyu10"]
[null,null,null,null,null,"合計","MikomiNogyoShunyu11"]
[null,null,"入力３","種類・品目",null,"明細０１","ShuruiHinmoku1"]
[null,null,null,null,null,"明細０２","ShuruiHinmoku2"]
[null,null,null,null,null,"明細０３","ShuruiHinmoku3"]
[null,null,null,null,null,"明細０４","ShuruiHinmoku4"]
[null,null,null,null,null,"明細０５","ShuruiHinmoku5"]
[null,null,null,null,null,"明細０６","ShuruiHinmoku6"]
[null,null,null,null,null,"明細０７","ShuruiHinmoku7"]
[null,null,null,null,null,"明細０８","ShuruiHinmoku8"]
[null,null,null,null,null,"明細０９","ShuruiHinmoku9"]
[null,null,null,null,null,"明細１０","ShuruiHinmoku10"]
[null,null,null,"数量払",null,"明細０１","Suryobarai1"]
[null,null,null,null,null,"明細０２","Suryobarai2"]
[null,null,null,null,null,"明細０３","Suryobarai3"]
[null,null,null,null,null,"明細０４","Suryobarai4"]
[null,null,null,null,null,"明細０５","Suryobarai5"]
[null,null,null,null,null,"明細０６","Suryobarai6"]
[null,null,null,null,null,"明細０７","Suryobarai7"]
[null,null,null,null,null,"明細０８","Suryobarai8"]
[null,null,null,null,null,"明細０９","Suryobarai9"]
[null,null,null,null,null,"明細１０","Suryobarai10"]
[null,null,null,null,null,"合計","Suryobarai11",0]
[null,null,null,"面積払",null,"明細０１","MensekiBarai1"]
[null,null,null,null,null,"明細０２","MensekiBarai2"]
[null,null,null,null,null,"明細０３","MensekiBarai3"]
[null,null,null,null,null,"明細０４","MensekiBarai4"]
[null,null,null,null,null,"明細０５","MensekiBarai5"]
[null,null,null,null,null,"明細０６","MensekiBarai6"]
[null,null,null,null,null,"明細０７","MensekiBarai7"]
[null,null,null,null,null,"明細０８","MensekiBarai8"]
[null,null,null,null,null,"明細０９","MensekiBarai9"]
[null,null,null,null,null,"明細１０","MensekiBarai10"]
[null,null,null,null,null,"合計","MensekiBarai11",0]
[null,null,"入力４","経営形態",null,null,"KeieiKeitaiKojin",true,null,true]
[null,null,null,null,null,null,"KeieiKeitaiHojin",false,null,false]
[null,null,null,"種類・品目",null,"明細０１","ShuruiHinmoku1"]
[null,null,null,null,null,"明細０２","ShuruiHinmoku2"]
[null,null,null,null,null,"明細０３","ShuruiHinmoku3"]
[null,null,null,null,null,"明細０４","ShuruiHinmoku4"]
[null,null,null,null,null,"明細０５","ShuruiHinmoku5"]
[null,null,null,null,null,"明細０６","ShuruiHinmoku6"]
[null,null,null,null,null,"明細０７","ShuruiHinmoku7"]
[null,null,null,null,null,"明細０８","ShuruiHinmoku8"]
[null,null,null,null,null,"明細０９","ShuruiHinmoku9"]
[null,null,null,null,null,"明細１０","ShuruiHinmoku10"]
[null,null,null,"青色申告区分",null,"明細０１","AoiroShinkokuKubun1"]
[null,null,null,null,null,"明細０２","AoiroShinkokuKubun2"]
[null,null,null,null,null,"明細０３","AoiroShinkokuKubun3"]
[null,null,null,null,null,"明細０４","AoiroShinkokuKubun4"]
[null,null,null,null,null,"明細０５","AoiroShinkokuKubun5"]
[null,null,null,null,null,"明細０６","AoiroShinkokuKubun6"]
[null,null,null,null,null,"明細０７","AoiroShinkokuKubun7"]
[null,null,null,null,null,"明細０８","AoiroShinkokuKubun8"]
[null,null,null,null,null,"明細０９","AoiroShinkokuKubun9"]
[null,null,null,null,null,"明細１０","AoiroShinkokuKubun10"]
[null,null,null,"青色申告販売金額",null,"明細０１","AoiroShinkokuHanbaiKingaku1"]
[null,null,null,null,null,"明細０２","AoiroShinkokuHanbaiKingaku2"]
[null,null,null,null,null,"明細０３","AoiroShinkokuHanbaiKingaku3"]
[null,null,null,null,null,"明細０４","AoiroShinkokuHanbaiKingaku4"]
[null,null,null,null,null,"明細０５","AoiroShinkokuHanbaiKingaku5"]
[null,null,null,null,null,"明細０６","AoiroShinkokuHanbaiKingaku6"]
[null,null,null,null,null,"明細０７","AoiroShinkokuHanbaiKingaku7"]
[null,null,null,null,null,"明細０８","AoiroShinkokuHanbaiKingaku8"]
[null,null,null,null,null,"明細０９","AoiroShinkokuHanbaiKingaku9"]
[null,null,null,null,null,"明細１０","AoiroShinkokuHanbaiKingaku10"]
[null,null,null,null,null,"合計","AoiroShinkokuHanbaiKingaku11",0]
[null,null,null,"販売金額",null,"明細０１","HanbaiKingaku1"]
[null,null,null,null,null,"明細０２","HanbaiKingaku2"]
[null,null,null,null,null,"明細０３","HanbaiKingaku3"]
[null,null,null,null,null,"明細０４","HanbaiKingaku4"]
[null,null,null,null,null,"明細０５","HanbaiKingaku5"]
[null,null,null,null,null,"明細０６","HanbaiKingaku6"]
[null,null,null,null,null,"明細０７","HanbaiKingaku7"]
[null,null,null,null,null,"明細０８","HanbaiKingaku8"]
[null,null,null,null,null,"明細０９","HanbaiKingaku9"]
[null,null,null,null,null,"明細１０","HanbaiKingaku10"]
[null,null,null,null,null,"合計","HanbaiKingaku11",0]
[null,null,null,"除外するもの",null,"明細０１","HanbaiKingakuJogai1"]
[null,null,null,null,null,"明細０２","HanbaiKingakuJogai2"]
[null,null,null,null,null,"明細０３","HanbaiKingakuJogai3"]
[null,null,null,null,null,"明細０４","HanbaiKingakuJogai4"]
[null,null,null,null,null,"明細０５","HanbaiKingakuJogai5"]
[null,null,null,null,null,"明細０６","HanbaiKingakuJogai6"]
[null,null,null,null,null,"明細０７","HanbaiKingakuJogai7"]
[null,null,null,null,null,"明細０８","HanbaiKingakuJogai8"]
[null,null,null,null,null,"明細０９","HanbaiKingakuJogai9"]
[null,null,null,null,null,"明細１０","HanbaiKingakuJogai10"]
[null,null,null,null,null,"合計","HanbaiKingakuJogai11",0]
[null,null,null,"雑収入_数量払",null,"明細０１","ZatsushunyuHanbaiSuryo1"]
[null,null,null,null,null,"明細０２","ZatsushunyuHanbaiSuryo2"]
[null,null,null,null,null,"明細０３","ZatsushunyuHanbaiSuryo3"]
[null,null,null,null,null,"明細０４","ZatsushunyuHanbaiSuryo4"]
[null,null,null,null,null,"明細０５","ZatsushunyuHanbaiSuryo5"]
[null,null,null,null,null,"明細０６","ZatsushunyuHanbaiSuryo6"]
[null,null,null,null,null,"明細０７","ZatsushunyuHanbaiSuryo7"]
[null,null,null,null,null,"明細０８","ZatsushunyuHanbaiSuryo8"]
[null,null,null,null,null,"明細０９","ZatsushunyuHanbaiSuryo9"]
[null,null,null,null,null,"明細１０","ZatsushunyuHanbaiSuryo10"]
[null,null,null,null,null,"合計","ZatsushunyuHanbaiSuryo11",0]
[null,null,null,"雑収入_その他",null,"明細０１","ZatsushunyuHanbaiSonota1"]
[null,null,null,null,null,"明細０２","ZatsushunyuHanbaiSonota2"]
[null,null,null,null,null,"明細０３","ZatsushunyuHanbaiSonota3"]
[null,null,null,null,null,"明細０４","ZatsushunyuHanbaiSonota4"]
[null,null,null,null,null,"明細０５","ZatsushunyuHanbaiSonota5"]
[null,null,null,null,null,"明細０６","ZatsushunyuHanbaiSonota6"]
[null,null,null,null,null,"明細０７","ZatsushunyuHanbaiSonota7"]
[null,null,null,null,null,"明細０８","ZatsushunyuHanbaiSonota8"]
[null,null,null,null,null,"明細０９","ZatsushunyuHanbaiSonota9"]
[null,null,null,null,null,"明細１０","ZatsushunyuHanbaiSonota10"]
[null,null,null,null,null,"合計","ZatsushunyuHanbaiSonota11",0]
[null,null,null,"収入金額申告",null,"明細０１","ShunyuKingakuShinkoku1",0]
[null,null,null,null,null,"明細０２","ShunyuKingakuShinkoku2"]
[null,null,null,null,null,"明細０３","ShunyuKingakuShinkoku3"]
[null,null,null,null,null,"明細０４","ShunyuKingakuShinkoku4"]
[null,null,null,null,null,"明細０５","ShunyuKingakuShinkoku5"]
[null,null,null,null,null,"明細０６","ShunyuKingakuShinkoku6"]
[null,null,null,null,null,"明細０７","ShunyuKingakuShinkoku7"]
[null,null,null,null,null,"明細０８","ShunyuKingakuShinkoku8"]
[null,null,null,null,null,"明細０９","ShunyuKingakuShinkoku9"]
[null,null,null,null,null,"明細１０","ShunyuKingakuShinkoku10"]
[null,null,null,null,null,"合計","ShunyuKingakuShinkoku11",0]
[null,null,"入力５","種類・品目",null,"明細０１","ShuruiHinmoku1"]
[null,null,null,null,null,"明細０２","ShuruiHinmoku2"]
[null,null,null,null,null,"明細０３","ShuruiHinmoku3"]
[null,null,null,null,null,"明細０４","ShuruiHinmoku4"]
[null,null,null,null,null,"明細０５","ShuruiHinmoku5"]
[null,null,null,null,null,"明細０６","ShuruiHinmoku6"]
[null,null,null,null,null,"明細０７","ShuruiHinmoku7"]
[null,null,null,null,null,"明細０８","ShuruiHinmoku8"]
[null,null,null,null,null,"明細０９","ShuruiHinmoku9"]
[null,null,null,null,null,"明細１０","ShuruiHinmoku10"]
[null,null,null,"期首棚卸高",null,"明細０１","KishuTanaoroshi1"]
[null,null,null,null,null,"明細０２","KishuTanaoroshi2"]
[null,null,null,null,null,"明細０３","KishuTanaoroshi3"]
[null,null,null,null,null,"明細０４","KishuTanaoroshi4"]
[null,null,null,null,null,"明細０５","KishuTanaoroshi5"]
[null,null,null,null,null,"明細０６","KishuTanaoroshi6"]
[null,null,null,null,null,"明細０７","KishuTanaoroshi7"]
[null,null,null,null,null,"明細０８","KishuTanaoroshi8"]
[null,null,null,null,null,"明細０９","KishuTanaoroshi9"]
[null,null,null,null,null,"明細１０","KishuTanaoroshi10"]
[null,null,null,null,null,"合計","KishuTanaoroshi11"]
[null,null,null,"販売金額",null,"明細０１","ShunyuKingakuShinkoku1"]
[null,null,null,null,null,"明細０２","ShunyuKingakuShinkoku2"]
[null,null,null,null,null,"明細０３","ShunyuKingakuShinkoku3"]
[null,null,null,null,null,"明細０４","ShunyuKingakuShinkoku4"]
[null,null,null,null,null,"明細０５","ShunyuKingakuShinkoku5"]
[null,null,null,null,null,"明細０６","ShunyuKingakuShinkoku6"]
[null,null,null,null,null,"明細０７","ShunyuKingakuShinkoku7"]
[null,null,null,null,null,"明細０８","ShunyuKingakuShinkoku8"]
[null,null,null,null,null,"明細０９","ShunyuKingakuShinkoku9"]
[null,null,null,null,null,"明細１０","ShunyuKingakuShinkoku10"]
[null,null,null,null,null,"合計","ShunyuKingakuShinkoku11"]
[null,null,null,"事業消費数量",null,"明細０１","JigyoShohiSuryo1"]
[null,null,null,null,null,"明細０２","JigyoShohiSuryo2"]
[null,null,null,null,null,"明細０３","JigyoShohiSuryo3"]
[null,null,null,null,null,"明細０４","JigyoShohiSuryo4"]
[null,null,null,null,null,"明細０５","JigyoShohiSuryo5"]
[null,null,null,null,null,"明細０６","JigyoShohiSuryo6"]
[null,null,null,null,null,"明細０７","JigyoShohiSuryo7"]
[null,null,null,null,null,"明細０８","JigyoShohiSuryo8"]
[null,null,null,null,null,"明細０９","JigyoShohiSuryo9"]
[null,null,null,null,null,"明細１０","JigyoShohiSuryo10"]
[null,null,null,"事業消費金額",null,"明細０１","JigyoShohiKingaku1"]
[null,null,null,null,null,"明細０２","JigyoShohiKingaku2"]
[null,null,null,null,null,"明細０３","JigyoShohiKingaku3"]
[null,null,null,null,null,"明細０４","JigyoShohiKingaku4"]
[null,null,null,null,null,"明細０５","JigyoShohiKingaku5"]
[null,null,null,null,null,"明細０６","JigyoShohiKingaku6"]
[null,null,null,null,null,"明細０７","JigyoShohiKingaku7"]
[null,null,null,null,null,"明細０８","JigyoShohiKingaku8"]
[null,null,null,null,null,"明細０９","JigyoShohiKingaku9"]
[null,null,null,null,null,"明細１０","JigyoShohiKingaku10"]
[null,null,null,null,null,"合計","JigyoShohiKingaku11",0]
[null,null,null,"期末棚卸数量",null,"明細０１","KimatsuTanaoroshiSuryo1"]
[null,null,null,null,null,"明細０２","KimatsuTanaoroshiSuryo2"]
[null,null,null,null,null,"明細０３","KimatsuTanaoroshiSuryo3"]
[null,null,null,null,null,"明細０４","KimatsuTanaoroshiSuryo4"]
[null,null,null,null,null,"明細０５","KimatsuTanaoroshiSuryo5"]
[null,null,null,null,null,"明細０６","KimatsuTanaoroshiSuryo6"]
[null,null,null,null,null,"明細０７","KimatsuTanaoroshiSuryo7"]
[null,null,null,null,null,"明細０８","KimatsuTanaoroshiSuryo8"]
[null,null,null,null,null,"明細０９","KimatsuTanaoroshiSuryo9"]
[null,null,null,null,null,"明細１０","KimatsuTanaoroshiSuryo10"]
[null,null,null,"期末棚卸高",null,"明細０１","KimatsuTanaoroshiKingaku1"]
[null,null,null,null,null,"明細０２","KimatsuTanaoroshiKingaku2"]
[null,null,null,null,null,"明細０３","KimatsuTanaoroshiKingaku3"]
[null,null,null,null,null,"明細０４","KimatsuTanaoroshiKingaku4"]
[null,null,null,null,null,"明細０５","KimatsuTanaoroshiKingaku5"]
[null,null,null,null,null,"明細０６","KimatsuTanaoroshiKingaku6"]
[null,null,null,null,null,"明細０７","KimatsuTanaoroshiKingaku7"]
[null,null,null,null,null,"明細０８","KimatsuTanaoroshiKingaku8"]
[null,null,null,null,null,"明細０９","KimatsuTanaoroshiKingaku9"]
[null,null,null,null,null,"明細１０","KimatsuTanaoroshiKingaku10"]
[null,null,null,null,null,"合計","KimatsuTanaoroshiKingaku11",0]
[null,null,"入力６","賠償金","受け取っていない",null,"Baishokin1",false,null,false]
[null,null,null,null,"受け取っている",null,"Baishokin2",false,null,false]
[null,null,null,null,null,"受取額","BaishokinKingaku"]
[null,null,"結果１","数量払の調整",null,"明細０１","SuryobaraiChosei1"]
[null,null,null,null,null,"明細０２","SuryobaraiChosei2"]
[null,null,null,null,null,"明細０３","SuryobaraiChosei3"]
[null,null,null,null,null,"明細０４","SuryobaraiChosei4"]
[null,null,null,null,null,"明細０５","SuryobaraiChosei5"]
[null,null,null,null,null,"明細０６","SuryobaraiChosei6"]
[null,null,null,null,null,"明細０７","SuryobaraiChosei7"]
[null,null,null,null,null,"明細０８","SuryobaraiChosei8"]
[null,null,null,null,null,"明細０９","SuryobaraiChosei9"]
[null,null,null,null,null,"明細１０","SuryobaraiChosei10"]
[null,null,null,null,null,"合計","SuryobaraiChosei11"]
[null,null,null,"農業収入金額",null,"明細０１","NogyoShunyuKingaku1"]
[null,null,null,null,null,"明細０２","NogyoShunyuKingaku2"]
[null,null,null,null,null,"明細０３","NogyoShunyuKingaku3"]
[null,null,null,null,null,"明細０４","NogyoShunyuKingaku4"]
[null,null,null,null,null,"明細０５","NogyoShunyuKingaku5"]
[null,null,null,null,null,"明細０６","NogyoShunyuKingaku6"]
[null,null,null,null,null,"明細０７","NogyoShunyuKingaku7"]
[null,null,null,null,null,"明細０８","NogyoShunyuKingaku8"]
[null,null,null,null,null,"明細０９","NogyoShunyuKingaku9"]
[null,null,null,null,null,"明細１０","NogyoShunyuKingaku10"]
[null,null,null,null,null,"合計","NogyoShunyuKingaku11"]
[null,null,null,"農業収入増減額",null,"明細０１","NogyoShunyuZogengaku1"]
[null,null,null,null,null,"明細０２","NogyoShunyuZogengaku2"]
[null,null,null,null,null,"明細０３","NogyoShunyuZogengaku3"]
[null,null,null,null,null,"明細０４","NogyoShunyuZogengaku4"]
[null,null,null,null,null,"明細０５","NogyoShunyuZogengaku5"]
[null,null,null,null,null,"明細０６","NogyoShunyuZogengaku6"]
[null,null,null,null,null,"明細０７","NogyoShunyuZogengaku7"]
[null,null,null,null,null,"明細０８","NogyoShunyuZogengaku8"]
[null,null,null,null,null,"明細０９","NogyoShunyuZogengaku9"]
[null,null,null,null,null,"明細１０","NogyoShunyuZogengaku10"]
[null,null,null,null,null,"合計","NogyoShunyuZogengaku11"]
[null,null,"結果２","保険限度額",null,null,"HokenGendoGaku"]
[null,null,null,"保険金額",null,null,"HokenKingaku"]
[null,null,null,"補償の下限",null,null,"HoshoKagen"]
[null,null,null,"基準補填金額",null,null,"KijunHotenKingaku"]
[null,null,null,"補填対象金額",null,null,"HotenTaishoKingaku"]
[null,null,null,"保険金予定額",null,null,"HokenkinYoteiGaku"]
[null,null,null,"特約補填金予定額",null,null,"TokuyakuHotenkinYoteiGaku"]
[null,null,null,"保険金等減額",null,null,"HokenkintoGengaku"]
[null,null,null,"保険金",null,null,"Hokenkin"]
[null,null,null,"特約補填金",null,null,"TokuyakuHotenkin"]
[null,null,null,"償還後つなぎ資金残高",null,"保険金等","ShokangoZandaka1",0]
[null,null,null,null,null,"特約補填金","ShokangoZandaka2",0]
[null,null,null,"保険金等請求する",null,null,"SeikyuSuru",true,null,false]
[null,null,null,"保険金請求する",null,null,"SeikyuSuruHokenkin",true,null,false]
[null,null,null,"特約補填金請求する",null,null,"SeikyuSuruTokuyakuHotenkin",true,null,false]
[null,null,null,"保険金等請求しない",null,null,"SeikyuShinai",false,null,false]
[null,null,"結果３","振込額",null,null,"Furikomigaku"]
[]
[]
[]
[]
[]
[]
[]
[]
[]
[]
[]
[]
[]
[]
[]
[]
[]
[]
[]
[]
[]
[]
[]
[]
[]
[]
[]
[]
[]
[]
[]
[]
[]
[]
[]
[]
[]
[]
[]
[]
[]
[]
[]
[]
[]
[]
[]
[]
[]
[]
[]
[]
[]
[]
[]
[]
[]
[]
[]
[]
[]
[]
[]
[]
[]
[]
[]
[]
[]
[]
[]
[]
[]
[]
[]
[]
[]
[]
[]
[]
[]
[]
[]
[]
[]
[]
[]
[]
[]
[]
[]
[]
[]
[]
[]
[]
[]
[]
[]
[]
[]
[]
[]
[]
[]
[]
[]
[]
[]
[]
[]
[]
[]
[]
[]
[]
[]
[]
[]
[]
[]
[]
[]
[]
[]
[]
[]
[]
[]
[]
[]
[]
[]
[]
[]
[]
[]
[]
[]
[]
[]
[]
[]
[]
[]
[]
[]
[]
[]
[]
[]
[]
[]
[]
[]
[]
[]
[]
[]
[]
[]
[]
[]
[]
[]
[]
[]
[]
[]
[]
[]
[]
[]
[]
[]
[]
[]
[]
[]
[]
[]
[]
[]
[]
[]
[]
[]
[]
[]
[]
[]
[]
[]
[]
[]
[]
[]
[]
[]
[]
[]
[]
[]
[]
[]
[]
[]
[]
[]
[]
[]
[]
[]
[]
[]
[]
[]
[]
[]
[]
[]
[]
[]
[]
[]
[]
[]
[]
[]
[]
[]
[]
[]
[]
[]
[]
[]
[]
[]
[]
[null,null,null,null,null,null,null,false]
[]
[null,null,null,null,null,null,null,false]
[]
[]
[]
[]
[]
[]
[]
[]
[]
[]
[]
[]
[]
[]
[]
[]
[]
[]
[]
[]
[]
[]
[]
[]
[]
[]
[]
[]
[]
[]
[]
[]
[]
[]
[]
[]
[]
[]
[]
[]
[]
[]
[]
[]
[]
[]
[]
[]
[]
[]
[]
[]
[]
[]
[]
[]
[]
[]
[]
[]
[]
[]
[]
[]
[]
[]
[]
[]
[]
[]
[]
[]
[]
[]
[]
[]
[]
[]
[]
[]
[]
[]
[]
[]
[]
[]
[]
[]
[]
[]
[]
[]
[]
[null,null,null,null,null,null,null,false]
[]
[null,null,null,null,null,null,null,false]
[]
[null,null,null,null,null,null,null,false]
[]
[null,null,null,null,null,null,null,false]

{"sheet":"Set","index":2,"n_rows":795,"n_cols":12,"rows_kept":795,"cut":false,"hidden":false,"merged":[]}
["No","Page","Style","Object","Cell","Group","GroupA","GroupB","InitialVisible","Visible01","Visible02","RestartFLG"]
[1,3,"Label","Lbl3_HokenStartY","HokenStartY",null,null,null,true,"H31-Hoken"]
[2,3,"Combo","CBx3_HokenStartY","HokenStartY",null,null,3,true,"H31-Hoken",null,3]
[3,3,"Label","Lbl3_KijunShunyu","KijunShunyu",null,null,null,true,"H31-Hoken"]
[4,3,"Text","TBx3_KijunShunyu","KijunShunyu",null,null,3,true,"H31-Hoken","#,##0",3]
[5,3,"Label","Lbl3_HotenHoshiki","HotenHoshiki",null,null,null,true,"H31-Hoken"]
[6,3,"Combo","CBx3_HotenHoshiki","HotenHoshiki",null,null,3,true,"H31-Hoken",null,3]
[7,3,"Label","Lbl3_Hoken_HoshoGendo","Hoken_HoshoGendo",null,null,null,true,"H31-Hoken"]
[8,3,"Check","CBx3_Hoken_HoshoGendo80","Hoken_HoshoGendo80","Hoken_HoshoGendo",null,"3'",true,"H31-Hoken",null,3]
[9,3,"Check","CBx3_Hoken_HoshoGendo78","Hoken_HoshoGendo78","Hoken_HoshoGendo",null,"3'",true,"H31-Hoken",null,3]
[10,3,"Check","CBx3_Hoken_HoshoGendo75","Hoken_HoshoGendo75","Hoken_HoshoGendo",null,"3'",true,"H31-Hoken",null,3]
[11,3,"Check","CBx3_Hoken_HoshoGendo70","Hoken_HoshoGendo70","Hoken_HoshoGendo",null,"3'",true,"H31-Hoken",null,3]
[12,3,"Check","CBx3_Hoken_HoshoGendo60","Hoken_HoshoGendo60","Hoken_HoshoGendo",null,"3'",true,"H31-Hoken",null,3]
[13,3,"Check","CBx3_Hoken_HoshoGendo50","Hoken_HoshoGendo50","Hoken_HoshoGendo",null,"3'",true,"H31-Hoken",null,3]
[14,3,"Label","Lbl3_Hoken_HoshoKagen","Hoken_HoshoKagen",null,null,null,false,"R2-Hoken"]
[15,3,"Check","CBx3_Hoken_HoshoKagen70","Hoken_HoshoKagen70","Hoken_HoshoKagen",null,"3'",false,"R2-Hoken",null,3]
[16,3,"Check","CBx3_Hoken_HoshoKagen60","Hoken_HoshoKagen60","Hoken_HoshoKagen",null,"3'",false,"R2-Hoken",null,3]
[17,3,"Check","CBx3_Hoken_HoshoKagen50","Hoken_HoshoKagen50","Hoken_HoshoKagen",null,"3'",false,"R2-Hoken",null,3]
[18,3,"Check","CBx3_Hoken_HoshoKagen00","Hoken_HoshoKagen00","Hoken_HoshoKagen",null,"3'",false,"R2-Hoken",null,3]
[19,3,"Label","Lbl3_Hoken_Shiharairitsu","Hoken_Shiharairitsu",null,null,null,true,"H31-Hoken"]
[20,3,"Check","CBx3_Hoken_Shiharairitsu90","Hoken_Shiharairitsu90","Hoken_Shiharairitsu",null,"3'",true,"H31-Hoken",null,3]
[21,3,"Check","CBx3_Hoken_Shiharairitsu80","Hoken_Shiharairitsu80","Hoken_Shiharairitsu",null,"3'",true,"H31-Hoken",null,3]
[22,3,"Check","CBx3_Hoken_Shiharairitsu70","Hoken_Shiharairitsu70","Hoken_Shiharairitsu",null,"3'",true,"H31-Hoken",null,3]
[23,3,"Check","CBx3_Hoken_Shiharairitsu60","Hoken_Shiharairitsu60","Hoken_Shiharairitsu",null,"3'",true,"H31-Hoken",null,3]
[24,3,"Check","CBx3_Hoken_Shiharairitsu50","Hoken_Shiharairitsu50","Hoken_Shiharairitsu",null,"3'",true,"H31-Hoken",null,3]
[25,3,"Label","Lbl3_Tsumitate_HoshoHaba","Tsumitate_HoshoHaba",null,null,null,true,"H31-Tsumitate"]
[26,3,"Check","CBx3_Tsumitate_HoshoHaba10","Tsumitate_HoshoHaba10","Tsumitate_HoshoHaba",null,"3'",true,"H31-Tsumitate",null,3]
[27,3,"Check","CBx3_Tsumitate_HoshoHaba5","Tsumitate_HoshoHaba5","Tsumitate_HoshoHaba",null,"3'",true,"H31-Tsumitate",null,3]
[28,3,"Label","Lbl3_Tsumitate_Shiharairitsu","Tsumitate_Shiharairitsu",null,null,null,true,"H31-Tsumitate"]
[29,3,"Check","CBx3_Tsumitate_Shiharairitsu90","Tsumitate_Shiharairitsu90","Tsumitate_Shiharairitsu",null,"3'",true,"H31-Tsumitate",null,3]
[30,3,"Check","CBx3_Tsumitate_Shiharairitsu80","Tsumitate_Shiharairitsu80","Tsumitate_Shiharairitsu",null,"3'",true,"H31-Tsumitate",null,3]
[31,3,"Check","CBx3_Tsumitate_Shiharairitsu70","Tsumitate_Shiharairitsu70","Tsumitate_Shiharairitsu",null,"3'",true,"H31-Tsumitate",null,3]
[32,3,"Check","CBx3_Tsumitate_Shiharairitsu60","Tsumitate_Shiharairitsu60","Tsumitate_Shiharairitsu",null,"3'",true,"H31-Tsumitate",null,3]
[33,3,"Check","CBx3_Tsumitate_Shiharairitsu50","Tsumitate_Shiharairitsu50","Tsumitate_Shiharairitsu",null,"3'",true,"H31-Tsumitate",null,3]
[34,3,"Check","CBx3_Tsumitate_Shiharairitsu40","Tsumitate_Shiharairitsu40","Tsumitate_Shiharairitsu",null,"3'",false,"R2-Tsumitate",null,3]
[35,3,"Check","CBx3_Tsumitate_Shiharairitsu30","Tsumitate_Shiharairitsu30","Tsumitate_Shiharairitsu",null,"3'",false,"R2-Tsumitate",null,3]
[36,3,"Check","CBx3_Tsumitate_Shiharairitsu20","Tsumitate_Shiharairitsu20","Tsumitate_Shiharairitsu",null,"3'",false,"R2-Tsumitate",null,3]
[37,3,"Check","CBx3_Tsumitate_Shiharairitsu10","Tsumitate_Shiharairitsu10","Tsumitate_Shiharairitsu",null,"3'",false,"R2-Tsumitate",null,3]
[38,3,"Label","Lbl3_KikenDankaiKubun","KikenDankaiKubun",null,null,null,false,"R2-Hoken"]
[39,3,"Combo","CBx3_KikenDankaiKubun","KikenDankaiKubun",null,null,3,false,"R2-Hoken",null,3]
[40,3,"Combo","CBx3_GekihenKanwaSochiTekiyo","GekihenKanwaSochiTekiyo",null,null,3,false,"R2-Hoken",null,3]
[41,3,"Label","Lbl3_TsunagiZandaka","TsunagiZandaka",null,null,null,true,"H31-Hoken"]
[42,3,"Text","TBx3_TsunagiZandaka","TsunagiZandaka",null,null,3,true,"H31-Hoken","#,##0",3]
[43,3,"Label","Lbl3_KajuHeikinSongairitsuKiso","KajuHeikinSongairitsuKiso",null,null,null,false,"R2-Hoken"]
[44,3,"Label","Lbl3_KajuHeikinSongairitsuKiso1","KajuHeikinSongairitsuKiso1","KajuHeikinSongairitsuKiso",null,null,false,"R2-Hoken"]
[45,3,"Text","TBx3_KajuHeikinSongairitsuKiso1","KajuHeikinSongairitsuKiso1","KajuHeikinSongairitsuKiso",null,3,false,"R2-Hoken","#,##0",3]
[46,3,"Label","Lbl3_KajuHeikinSongairitsuKiso2","KajuHeikinSongairitsuKiso2","KajuHeikinSongairitsuKiso",null,null,false,"R2-Hoken"]
[47,3,"Text","TBx3_KajuHeikinSongairitsuKiso2","KajuHeikinSongairitsuKiso2","KajuHeikinSongairitsuKiso",null,3,false,"R2-Hoken","#,##0",3]
[48,3,"Label","Lbl3_KajuHeikinSongairitsuKiso3","KajuHeikinSongairitsuKiso3","KajuHeikinSongairitsuKiso",null,null,false,"R2-Hoken"]
[49,3,"Text","TBx3_KajuHeikinSongairitsuKiso3","KajuHeikinSongairitsuKiso3","KajuHeikinSongairitsuKiso",null,3,false,"R2-Hoken","#,##0",3]
[50,3,"Label","Lbl3_MikomiNogyoTaishoHinmoku","MikomiNogyoTaishoHinmoku",null,null,null,true,"H31-Hoken"]
[51,3,"Combo","CBx3_MikomiNogyoTaishoHinmoku","MikomiNogyoTaishoHinmoku",null,null,3,true,"H31-Hoken",null,3]
[52,4,"Label","Lbl4_Meisai1","Meisai1",null,1]
[53,4,"Label","Lbl4_Meisai2","Meisai2",null,2]
[54,4,"Label","Lbl4_Meisai3","Meisai3",null,3]
[55,4,"Label","Lbl4_Meisai4","Meisai4",null,4]
[56,4,"Label","Lbl4_Meisai5","Meisai5",null,5]
[57,4,"Label","Lbl4_Meisai6","Meisai6",null,6]
[58,4,"Label","Lbl4_Meisai7","Meisai7",null,7]
[59,4,"Label","Lbl4_Meisai8","Meisai8",null,8]
[60,4,"Label","Lbl4_Meisai9","Meisai9",null,9]
[61,4,"Label","Lbl4_Meisai10","Meisai10",null,10]
[62,4,"Label","Lbl4_Meisai11","Meisai11"]
[63,4,"Label","Lbl4_ShuruiHinmoku","ShuruiHinmoku"]
[64,4,"Text","TBx4_ShuruiHinmoku1","ShuruiHinmoku1",null,1,4,null,null,null,4]
[65,4,"Text","TBx4_ShuruiHinmoku2","ShuruiHinmoku2",null,2,4,null,null,null,4]
[66,4,"Text","TBx4_ShuruiHinmoku3","ShuruiHinmoku3",null,3,4,null,null,null,4]
[67,4,"Text","TBx4_ShuruiHinmoku4","ShuruiHinmoku4",null,4,4,null,null,null,4]
[68,4,"Text","TBx4_ShuruiHinmoku5","ShuruiHinmoku5",null,5,4,null,null,null,4]
[69,4,"Text","TBx4_ShuruiHinmoku6","ShuruiHinmoku6",null,6,4,null,null,null,4]
[70,4,"Text","TBx4_ShuruiHinmoku7","ShuruiHinmoku7",null,7,4,null,null,null,4]
[71,4,"Text","TBx4_ShuruiHinmoku8","ShuruiHinmoku8",null,8,4,null,null,null,4]
[72,4,"Text","TBx4_ShuruiHinmoku9","ShuruiHinmoku9",null,9,4,null,null,null,4]
[73,4,"Text","TBx4_ShuruiHinmoku10","ShuruiHinmoku10",null,10,4,null,null,null,4]
[74,4,"Label","Lbl4_KishuTanaoroshi","KishuTanaoroshi"]
[75,4,"Text","TBx4_KishuTanaoroshi1","KishuTanaoroshi1","KishuTanaoroshi",1,4,null,null,"#,##0",4]
[76,4,"Text","TBx4_KishuTanaoroshi2","KishuTanaoroshi2","KishuTanaoroshi",2,4,null,null,"#,##0",4]
[77,4,"Text","TBx4_KishuTanaoroshi3","KishuTanaoroshi3","KishuTanaoroshi",3,4,null,null,"#,##0",4]
[78,4,"Text","TBx4_KishuTanaoroshi4","KishuTanaoroshi4","KishuTanaoroshi",4,4,null,null,"#,##0",4]
[79,4,"Text","TBx4_KishuTanaoroshi5","KishuTanaoroshi5","KishuTanaoroshi",5,4,null,null,"#,##0",4]
[80,4,"Text","TBx4_KishuTanaoroshi6","KishuTanaoroshi6","KishuTanaoroshi",6,4,null,null,"#,##0",4]
[81,4,"Text","TBx4_KishuTanaoroshi7","KishuTanaoroshi7","KishuTanaoroshi",7,4,null,null,"#,##0",4]
[82,4,"Text","TBx4_KishuTanaoroshi8","KishuTanaoroshi8","KishuTanaoroshi",8,4,null,null,"#,##0",4]
[83,4,"Text","TBx4_KishuTanaoroshi9","KishuTanaoroshi9","KishuTanaoroshi",9,4,null,null,"#,##0",4]
[84,4,"Text","TBx4_KishuTanaoroshi10","KishuTanaoroshi10","KishuTanaoroshi",10,4,null,null,"#,##0",4]
[85,4,"Text","TBx4_KishuTanaoroshi11","KishuTanaoroshi11","KishuTanaoroshi",null,4,null,null,"#,##0",4]
[86,4,"Label","Lbl4_KishuTanaoroshiYen1","KishuTanaoroshiYen1",null,1]
[87,4,"Label","Lbl4_KishuTanaoroshiYen2","KishuTanaoroshiYen2",null,2]
[88,4,"Label","Lbl4_KishuTanaoroshiYen3","KishuTanaoroshiYen3",null,3]
[89,4,"Label","Lbl4_KishuTanaoroshiYen4","KishuTanaoroshiYen4",null,4]
[90,4,"Label","Lbl4_KishuTanaoroshiYen5","KishuTanaoroshiYen5",null,5]
[91,4,"Label","Lbl4_KishuTanaoroshiYen6","KishuTanaoroshiYen6",null,6]
[92,4,"Label","Lbl4_KishuTanaoroshiYen7","KishuTanaoroshiYen7",null,7]
[93,4,"Label","Lbl4_KishuTanaoroshiYen8","KishuTanaoroshiYen8",null,8]
[94,4,"Label","Lbl4_KishuTanaoroshiYen9","KishuTanaoroshiYen9",null,9]
[95,4,"Label","Lbl4_KishuTanaoroshiYen10","KishuTanaoroshiYen10",null,10]
[96,4,"Label","Lbl4_KishuTanaoroshiYen11","KishuTanaoroshiYen11"]
[97,4,"Label","Lbl4_JigyoShohi","JigyoShohi"]
[98,4,"Text","TBx4_JigyoShohi1","JigyoShohi1","JigyoShohi",1,4,null,null,"#,##0.0",4]
[99,4,"Text","TBx4_JigyoShohi2","JigyoShohi2","JigyoShohi",2,4,null,null,"#,##0.0",4]
[100,4,"Text","TBx4_JigyoShohi3","JigyoShohi3","JigyoShohi",3,4,null,null,"#,##0.0",4]
[101,4,"Text","TBx4_JigyoShohi4","JigyoShohi4","JigyoShohi",4,4,null,null,"#,##0.0",4]
[102,4,"Text","TBx4_JigyoShohi5","JigyoShohi5","JigyoShohi",5,4,null,null,"#,##0.0",4]
[103,4,"Text","TBx4_JigyoShohi6","JigyoShohi6","JigyoShohi",6,4,null,null,"#,##0.0",4]
[104,4,"Text","TBx4_JigyoShohi7","JigyoShohi7","JigyoShohi",7,4,null,null,"#,##0.0",4]
[105,4,"Text","TBx4_JigyoShohi8","JigyoShohi8","JigyoShohi",8,4,null,null,"#,##0.0",4]
[106,4,"Text","TBx4_JigyoShohi9","JigyoShohi9","JigyoShohi",9,4,null,null,"#,##0.0",4]
[107,4,"Text","TBx4_JigyoShohi10","JigyoShohi10","JigyoShohi",10,4,null,null,"#,##0.0",4]
[108,4,"Label","Lbl4_JigyoShohiYenKgto1","JigyoShohiYenKgto1",null,1]
[109,4,"Label","Lbl4_JigyoShohiYenKgto2","JigyoShohiYenKgto2",null,2]
[110,4,"Label","Lbl4_JigyoShohiYenKgto3","JigyoShohiYenKgto3",null,3]
[111,4,"Label","Lbl4_JigyoShohiYenKgto4","JigyoShohiYenKgto4",null,4]
[112,4,"Label","Lbl4_JigyoShohiYenKgto5","JigyoShohiYenKgto5",null,5]
[113,4,"Label","Lbl4_JigyoShohiYenKgto6","JigyoShohiYenKgto6",null,6]
[114,4,"Label","Lbl4_JigyoShohiYenKgto7","JigyoShohiYenKgto7",null,7]
[115,4,"Label","Lbl4_JigyoShohiYenKgto8","JigyoShohiYenKgto8",null,8]
[116,4,"Label","Lbl4_JigyoShohiYenKgto9","JigyoShohiYenKgto9",null,9]
[117,4,"Label","Lbl4_JigyoShohiYenKgto10","JigyoShohiYenKgto10",null,10]
[118,4,"Label","Lbl4_KimatsuTanaoroshi","KimatsuTanaoroshi"]
[119,4,"Text","TBx4_KimatsuTanaoroshi1","KimatsuTanaoroshi1","KimatsuTanaoroshi",1,4,null,null,"#,##0.0",4]
[120,4,"Text","TBx4_KimatsuTanaoroshi2","KimatsuTanaoroshi2","KimatsuTanaoroshi",2,4,null,null,"#,##0.0",4]
[121,4,"Text","TBx4_KimatsuTanaoroshi3","KimatsuTanaoroshi3","KimatsuTanaoroshi",3,4,null,null,"#,##0.0",4]
[122,4,"Text","TBx4_KimatsuTanaoroshi4","KimatsuTanaoroshi4","KimatsuTanaoroshi",4,4,null,null,"#,##0.0",4]
[123,4,"Text","TBx4_KimatsuTanaoroshi5","KimatsuTanaoroshi5","KimatsuTanaoroshi",5,4,null,null,"#,##0.0",4]
[124,4,"Text","TBx4_KimatsuTanaoroshi6","KimatsuTanaoroshi6","KimatsuTanaoroshi",6,4,null,null,"#,##0.0",4]
[125,4,"Text","TBx4_KimatsuTanaoroshi7","KimatsuTanaoroshi7","KimatsuTanaoroshi",7,4,null,null,"#,##0.0",4]
[126,4,"Text","TBx4_KimatsuTanaoroshi8","KimatsuTanaoroshi8","KimatsuTanaoroshi",8,4,null,null,"#,##0.0",4]
[127,4,"Text","TBx4_KimatsuTanaoroshi9","KimatsuTanaoroshi9","KimatsuTanaoroshi",9,4,null,null,"#,##0.0",4]
[128,4,"Text","TBx4_KimatsuTanaoroshi10","KimatsuTanaoroshi10","KimatsuTanaoroshi",10,4,null,null,"#,##0.0",4]
[129,4,"Label","Lbl4_KimatsuTanaoroshiYenKgto1","KimatsuTanaoroshiYenKgto1",null,1]
[130,4,"Label","Lbl4_KimatsuTanaoroshiYenKgto2","KimatsuTanaoroshiYenKgto2",null,2]
[131,4,"Label","Lbl4_KimatsuTanaoroshiYenKgto3","KimatsuTanaoroshiYenKgto3",null,3]
[132,4,"Label","Lbl4_KimatsuTanaoroshiYenKgto4","KimatsuTanaoroshiYenKgto4",null,4]
[133,4,"Label","Lbl4_KimatsuTanaoroshiYenKgto5","KimatsuTanaoroshiYenKgto5",null,5]
[134,4,"Label","Lbl4_KimatsuTanaoroshiYenKgto6","KimatsuTanaoroshiYenKgto6",null,6]
[135,4,"Label","Lbl4_KimatsuTanaoroshiYenKgto7","KimatsuTanaoroshiYenKgto7",null,7]
[136,4,"Label","Lbl4_KimatsuTanaoroshiYenKgto8","KimatsuTanaoroshiYenKgto8",null,8]
[137,4,"Label","Lbl4_KimatsuTanaoroshiYenKgto9","KimatsuTanaoroshiYenKgto9",null,9]
[138,4,"Label","Lbl4_KimatsuTanaoroshiYenKgto10","KimatsuTanaoroshiYenKgto10",null,10]
[139,4,"Label","Lbl4_MikomiNogyoShunyu","MikomiNogyoShunyu"]
[140,4,"Text","TBx4_MikomiNogyoShunyu1","MikomiNogyoShunyu1","MikomiNogyoShunyu",1,4,null,null,"#,##0",4]
[141,4,"Text","TBx4_MikomiNogyoShunyu2","MikomiNogyoShunyu2","MikomiNogyoShunyu",2,4,null,null,"#,##0",4]
[142,4,"Text","TBx4_MikomiNogyoShunyu3","MikomiNogyoShunyu3","MikomiNogyoShunyu",3,4,null,null,"#,##0",4]
[143,4,"Text","TBx4_MikomiNogyoShunyu4","MikomiNogyoShunyu4","MikomiNogyoShunyu",4,4,null,null,"#,##0",4]
[144,4,"Text","TBx4_MikomiNogyoShunyu5","MikomiNogyoShunyu5","MikomiNogyoShunyu",5,4,null,null,"#,##0",4]
[145,4,"Text","TBx4_MikomiNogyoShunyu6","MikomiNogyoShunyu6","MikomiNogyoShunyu",6,4,null,null,"#,##0",4]
[146,4,"Text","TBx4_MikomiNogyoShunyu7","MikomiNogyoShunyu7","MikomiNogyoShunyu",7,4,null,null,"#,##0",4]
[147,4,"Text","TBx4_MikomiNogyoShunyu8","MikomiNogyoShunyu8","MikomiNogyoShunyu",8,4,null,null,"#,##0",4]
[148,4,"Text","TBx4_MikomiNogyoShunyu9","MikomiNogyoShunyu9","MikomiNogyoShunyu",9,4,null,null,"#,##0",4]
[149,4,"Text","TBx4_MikomiNogyoShunyu10","MikomiNogyoShunyu10","MikomiNogyoShunyu",10,4,null,null,"#,##0",4]
[150,4,"Text","TBx4_MikomiNogyoShunyu11","MikomiNogyoShunyu11","MikomiNogyoShunyu",null,4,null,null,"#,##0",4]
[151,4,"Label","Lbl4_MikomiNogyoShunyuYen1","MikomiNogyoShunyuYen1",null,1]
[152,4,"Label","Lbl4_MikomiNogyoShunyuYen2","MikomiNogyoShunyuYen2",null,2]
[153,4,"Label","Lbl4_MikomiNogyoShunyuYen3","MikomiNogyoShunyuYen3",null,3]
[154,4,"Label","Lbl4_MikomiNogyoShunyuYen4","MikomiNogyoShunyuYen4",null,4]
[155,4,"Label","Lbl4_MikomiNogyoShunyuYen5","MikomiNogyoShunyuYen5",null,5]
[156,4,"Label","Lbl4_MikomiNogyoShunyuYen6","MikomiNogyoShunyuYen6",null,6]
[157,4,"Label","Lbl4_MikomiNogyoShunyuYen7","MikomiNogyoShunyuYen7",null,7]
[158,4,"Label","Lbl4_MikomiNogyoShunyuYen8","MikomiNogyoShunyuYen8",null,8]
[159,4,"Label","Lbl4_MikomiNogyoShunyuYen9","MikomiNogyoShunyuYen9",null,9]
[160,4,"Label","Lbl4_MikomiNogyoShunyuYen10","MikomiNogyoShunyuYen10",null,10]
[161,4,"Label","Lbl4_MikomiNogyoShunyuYen11","MikomiNogyoShunyuYen11"]
[162,5,"Label","Lbl5_Meisai1","Meisai1",null,1]
[163,5,"Label","Lbl5_Meisai2","Meisai2",null,2]
[164,5,"Label","Lbl5_Meisai3","Meisai3",null,3]
[165,5,"Label","Lbl5_Meisai4","Meisai4",null,4]
[166,5,"Label","Lbl5_Meisai5","Meisai5",null,5]
[167,5,"Label","Lbl5_Meisai6","Meisai6",null,6]
[168,5,"Label","Lbl5_Meisai7","Meisai7",null,7]
[169,5,"Label","Lbl5_Meisai8","Meisai8",null,8]
[170,5,"Label","Lbl5_Meisai9","Meisai9",null,9]
[171,5,"Label","Lbl5_Meisai10","Meisai10",null,10]
[172,5,"Label","Lbl5_ShuruiHinmoku","ShuruiHinmoku"]
[173,5,"Label","Lbl5_ShuruiHinmoku1","ShuruiHinmoku1",null,1]
[174,5,"Label","Lbl5_ShuruiHinmoku2","ShuruiHinmoku2",null,2]
[175,5,"Label","Lbl5_ShuruiHinmoku3","ShuruiHinmoku3",null,3]
[176,5,"Label","Lbl5_ShuruiHinmoku4","ShuruiHinmoku4",null,4]
[177,5,"Label","Lbl5_ShuruiHinmoku5","ShuruiHinmoku5",null,5]
[178,5,"Label","Lbl5_ShuruiHinmoku6","ShuruiHinmoku6",null,6]
[179,5,"Label","Lbl5_ShuruiHinmoku7","ShuruiHinmoku7",null,7]
[180,5,"Label","Lbl5_ShuruiHinmoku8","ShuruiHinmoku8",null,8]
[181,5,"Label","Lbl5_ShuruiHinmoku9","ShuruiHinmoku9",null,9]
[182,5,"Label","Lbl5_ShuruiHinmoku10","ShuruiHinmoku10",null,10]
[183,5,"Label","Lbl5_Suryobarai","Suryobarai"]
[184,5,"Text","TBx5_Suryobarai1","Suryobarai1","Suryobarai",1,5,null,null,"#,##0",5]
[185,5,"Text","TBx5_Suryobarai2","Suryobarai2","Suryobarai",2,5,null,null,"#,##0",5]
[186,5,"Text","TBx5_Suryobarai3","Suryobarai3","Suryobarai",3,5,null,null,"#,##0",5]
[187,5,"Text","TBx5_Suryobarai4","Suryobarai4","Suryobarai",4,5,null,null,"#,##0",5]
[188,5,"Text","TBx5_Suryobarai5","Suryobarai5","Suryobarai",5,5,null,null,"#,##0",5]
[189,5,"Text","TBx5_Suryobarai6","Suryobarai6","Suryobarai",6,5,null,null,"#,##0",5]
[190,5,"Text","TBx5_Suryobarai7","Suryobarai7","Suryobarai",7,5,null,null,"#,##0",5]
[191,5,"Text","TBx5_Suryobarai8","Suryobarai8","Suryobarai",8,5,null,null,"#,##0",5]
[192,5,"Text","TBx5_Suryobarai9","Suryobarai9","Suryobarai",9,5,null,null,"#,##0",5]
[193,5,"Text","TBx5_Suryobarai10","Suryobarai10","Suryobarai",10,5,null,null,"#,##0",5]
[194,5,"Label","Lbl5_SuryobaraiYen1","SuryobaraiYen1",null,1]
[195,5,"Label","Lbl5_SuryobaraiYen2","SuryobaraiYen2",null,2]
[196,5,"Label","Lbl5_SuryobaraiYen3","SuryobaraiYen3",null,3]
[197,5,"Label","Lbl5_SuryobaraiYen4","SuryobaraiYen4",null,4]
[198,5,"Label","Lbl5_SuryobaraiYen5","SuryobaraiYen5",null,5]
[199,5,"Label","Lbl5_SuryobaraiYen6","SuryobaraiYen6",null,6]
[200,5,"Label","Lbl5_SuryobaraiYen7","SuryobaraiYen7",null,7]
[201,5,"Label","Lbl5_SuryobaraiYen8","SuryobaraiYen8",null,8]
[202,5,"Label","Lbl5_SuryobaraiYen9","SuryobaraiYen9",null,9]
[203,5,"Label","Lbl5_SuryobaraiYen10","SuryobaraiYen10",null,10]
[204,5,"Label","Lbl5_Mensekibarai","Mensekibarai"]
[205,5,"Text","TBx5_Mensekibarai1","Mensekibarai1","Mensekibarai",1,5,null,null,"#,##0",5]
[206,5,"Text","TBx5_Mensekibarai2","Mensekibarai2","Mensekibarai",2,5,null,null,"#,##0",5]
[207,5,"Text","TBx5_Mensekibarai3","Mensekibarai3","Mensekibarai",3,5,null,null,"#,##0",5]
[208,5,"Text","TBx5_Mensekibarai4","Mensekibarai4","Mensekibarai",4,5,null,null,"#,##0",5]
[209,5,"Text","TBx5_Mensekibarai5","Mensekibarai5","Mensekibarai",5,5,null,null,"#,##0",5]
[210,5,"Text","TBx5_Mensekibarai6","Mensekibarai6","Mensekibarai",6,5,null,null,"#,##0",5]
[211,5,"Text","TBx5_Mensekibarai7","Mensekibarai7","Mensekibarai",7,5,null,null,"#,##0",5]
[212,5,"Text","TBx5_Mensekibarai8","Mensekibarai8","Mensekibarai",8,5,null,null,"#,##0",5]
[213,5,"Text","TBx5_Mensekibarai9","Mensekibarai9","Mensekibarai",9,5,null,null,"#,##0",5]
[214,5,"Text","TBx5_Mensekibarai10","Mensekibarai10","Mensekibarai",10,5,null,null,"#,##0",5]
[215,5,"Label","Lbl5_MensekibaraiYen1","MensekibaraiYen1",null,1]
[216,5,"Label","Lbl5_MensekibaraiYen2","MensekibaraiYen2",null,2]
[217,5,"Label","Lbl5_MensekibaraiYen3","MensekibaraiYen3",null,3]
[218,5,"Label","Lbl5_MensekibaraiYen4","MensekibaraiYen4",null,4]
[219,5,"Label","Lbl5_MensekibaraiYen5","MensekibaraiYen5",null,5]
[220,5,"Label","Lbl5_MensekibaraiYen6","MensekibaraiYen6",null,6]
[221,5,"Label","Lbl5_MensekibaraiYen7","MensekibaraiYen7",null,7]
[222,5,"Label","Lbl5_MensekibaraiYen8","MensekibaraiYen8",null,8]
[223,5,"Label","Lbl5_MensekibaraiYen9","MensekibaraiYen9",null,9]
[224,5,"Label","Lbl5_MensekibaraiYen10","MensekibaraiYen10",null,10]
[225,6,"Frame","Frm6_Sub2","Sub2"]
[226,6,"Check","CBx6_KeieiKeitaiKojin","KeieiKeitaiKojin","KeieiKeitai",null,null,true,null,null,6]
[227,6,"Check","CBx6_KeieiKeitaiHojin","KeieiKeitaiHojin","KeieiKeitai",null,null,false,null,null,6]
[228,6,"Frame","Frm6_Sub","Sub"]
[229,6,"Image","Img6_AoiroShinkokuUchiwake","AoiroShinkokuUchiwake"]
[230,6,"Label","Lbl6_AoiroShinkokuKubun","AoiroShinkokuKubun"]
[231,6,"Text","TBx6_AoiroShinkokuKubun1","AoiroShinkokuKubun1","AoiroShinkokuKubun",null,6,null,null,null,6]
[232,6,"Text","TBx6_AoiroShinkokuKubun2","AoiroShinkokuKubun2","AoiroShinkokuKubun",null,6,null,null,null,6]
[233,6,"Text","TBx6_AoiroShinkokuKubun3","AoiroShinkokuKubun3","AoiroShinkokuKubun",null,6,null,null,null,6]
[234,6,"Text","TBx6_AoiroShinkokuKubun4","AoiroShinkokuKubun4","AoiroShinkokuKubun",null,6,null,null,null,6]
[235,6,"Text","TBx6_AoiroShinkokuKubun5","AoiroShinkokuKubun5","AoiroShinkokuKubun",null,6,null,null,null,6]
[236,6,"Text","TBx6_AoiroShinkokuKubun6","AoiroShinkokuKubun6","AoiroShinkokuKubun",null,6,null,null,null,6]
[237,6,"Text","TBx6_AoiroShinkokuKubun7","AoiroShinkokuKubun7","AoiroShinkokuKubun",null,6,null,null,null,6]
[238,6,"Text","TBx6_AoiroShinkokuKubun8","AoiroShinkokuKubun8","AoiroShinkokuKubun",null,6,null,null,null,6]
[239,6,"Text","TBx6_AoiroShinkokuKubun9","AoiroShinkokuKubun9","AoiroShinkokuKubun",null,6,null,null,null,6]
[240,6,"Text","TBx6_AoiroShinkokuKubun10","AoiroShinkokuKubun10","AoiroShinkokuKubun",null,6,null,null,null,6]
[241,6,"Label","Lbl6_AoiroShinkokuHanbaiKingaku","AoiroShinkokuHanbaiKingaku"]
[242,6,"Text","TBx6_AoiroShinkokuHanbaiKingaku1","AoiroShinkokuHanbaiKingaku1","AoiroShinkokuHanbaiKingaku",null,6,null,null,"#,##0",6]
[243,6,"Text","TBx6_AoiroShinkokuHanbaiKingaku2","AoiroShinkokuHanbaiKingaku2","AoiroShinkokuHanbaiKingaku",null,6,null,null,"#,##0",6]
[244,6,"Text","TBx6_AoiroShinkokuHanbaiKingaku3","AoiroShinkokuHanbaiKingaku3","AoiroShinkokuHanbaiKingaku",null,6,null,null,"#,##0",6]
[245,6,"Text","TBx6_AoiroShinkokuHanbaiKingaku4","AoiroShinkokuHanbaiKingaku4","AoiroShinkokuHanbaiKingaku",null,6,null,null,"#,##0",6]
[246,6,"Text","TBx6_AoiroShinkokuHanbaiKingaku5","AoiroShinkokuHanbaiKingaku5","AoiroShinkokuHanbaiKingaku",null,6,null,null,"#,##0",6]
[247,6,"Text","TBx6_AoiroShinkokuHanbaiKingaku6","AoiroShinkokuHanbaiKingaku6","AoiroShinkokuHanbaiKingaku",null,6,null,null,"#,##0",6]
[248,6,"Text","TBx6_AoiroShinkokuHanbaiKingaku7","AoiroShinkokuHanbaiKingaku7","AoiroShinkokuHanbaiKingaku",null,6,null,null,"#,##0",6]
[249,6,"Text","TBx6_AoiroShinkokuHanbaiKingaku8","AoiroShinkokuHanbaiKingaku8","AoiroShinkokuHanbaiKingaku",null,6,null,null,"#,##0",6]
[250,6,"Text","TBx6_AoiroShinkokuHanbaiKingaku9","AoiroShinkokuHanbaiKingaku9","AoiroShinkokuHanbaiKingaku",null,6,null,null,"#,##0",6]
[251,6,"Text","TBx6_AoiroShinkokuHanbaiKingaku10","AoiroShinkokuHanbaiKingaku10","AoiroShinkokuHanbaiKingaku",null,6,null,null,"#,##0",6]
[252,6,"Label","Lbl6_AoiroShinkokuHanbaiKingaku11","AoiroShinkokuHanbaiKingaku11"]
[253,6,"Label","Lbl6_AoiroShinkokuHanbaiKingakuYen1","AoiroShinkokuHanbaiKingakuYen1"]
[254,6,"Label","Lbl6_AoiroShinkokuHanbaiKingakuYen2","AoiroShinkokuHanbaiKingakuYen2"]
[255,6,"Label","Lbl6_AoiroShinkokuHanbaiKingakuYen3","AoiroShinkokuHanbaiKingakuYen3"]
[256,6,"Label","Lbl6_AoiroShinkokuHanbaiKingakuYen4","AoiroShinkokuHanbaiKingakuYen4"]
[257,6,"Label","Lbl6_AoiroShinkokuHanbaiKingakuYen5","AoiroShinkokuHanbaiKingakuYen5"]
[258,6,"Label","Lbl6_AoiroShinkokuHanbaiKingakuYen6","AoiroShinkokuHanbaiKingakuYen6"]
[259,6,"Label","Lbl6_AoiroShinkokuHanbaiKingakuYen7","AoiroShinkokuHanbaiKingakuYen7"]
[260,6,"Label","Lbl6_AoiroShinkokuHanbaiKingakuYen8","AoiroShinkokuHanbaiKingakuYen8"]
[261,6,"Label","Lbl6_AoiroShinkokuHanbaiKingakuYen9","AoiroShinkokuHanbaiKingakuYen9"]
[262,6,"Label","Lbl6_AoiroShinkokuHanbaiKingakuYen10","AoiroShinkokuHanbaiKingakuYen10"]
[263,6,"Label","Lbl6_AoiroShinkokuHanbaiKingakuYen11","AoiroShinkokuHanbaiKingakuYen11"]
[264,6,"Label","Lbl6_ShuruiHinmoku","ShuruiHinmoku"]
[265,6,"Label","Lbl6_Meisai1","Meisai1","Meisai",1]
[266,6,"Label","Lbl6_Meisai2","Meisai2","Meisai",2]
[267,6,"Label","Lbl6_Meisai3","Meisai3","Meisai",3]
[268,6,"Label","Lbl6_Meisai4","Meisai4","Meisai",4]
[269,6,"Label","Lbl6_Meisai5","Meisai5","Meisai",5]
[270,6,"Label","Lbl6_Meisai6","Meisai6","Meisai",6]
[271,6,"Label","Lbl6_Meisai7","Meisai7","Meisai",7]
[272,6,"Label","Lbl6_Meisai8","Meisai8","Meisai",8]
[273,6,"Label","Lbl6_Meisai9","Meisai9","Meisai",9]
[274,6,"Label","Lbl6_Meisai10","Meisai10","Meisai",10]
[275,6,"Label","Lbl6_Meisai11","Meisai11"]
[276,6,"Label","Lbl6_ShuruiHinmoku1","ShuruiHinmoku1","ShuruiHinmoku",1]
[277,6,"Label","Lbl6_ShuruiHinmoku2","ShuruiHinmoku2","ShuruiHinmoku",2]
[278,6,"Label","Lbl6_ShuruiHinmoku3","ShuruiHinmoku3","ShuruiHinmoku",3]
[279,6,"Label","Lbl6_ShuruiHinmoku4","ShuruiHinmoku4","ShuruiHinmoku",4]
[280,6,"Label","Lbl6_ShuruiHinmoku5","ShuruiHinmoku5","ShuruiHinmoku",5]
[281,6,"Label","Lbl6_ShuruiHinmoku6","ShuruiHinmoku6","ShuruiHinmoku",6]
[282,6,"Label","Lbl6_ShuruiHinmoku7","ShuruiHinmoku7","ShuruiHinmoku",7]
[283,6,"Label","Lbl6_ShuruiHinmoku8","ShuruiHinmoku8","ShuruiHinmoku",8]
[284,6,"Label","Lbl6_ShuruiHinmoku9","ShuruiHinmoku9","ShuruiHinmoku",9]
[285,6,"Label","Lbl6_ShuruiHinmoku10","ShuruiHinmoku10","ShuruiHinmoku",10]
[286,6,"Label","Lbl6_HanbaiKingaku","HanbaiKingaku"]
[287,6,"Label","Lbl6_HanbaiKingaku_1","HanbaiKingaku_1"]
[288,6,"Text","TBx6_HanbaiKingaku1","HanbaiKingaku1","HanbaiKingaku",1,6,null,null,"#,##0",6]
[289,6,"Text","TBx6_HanbaiKingaku2","HanbaiKingaku2","HanbaiKingaku",2,6,null,null,"#,##0",6]
[290,6,"Text","TBx6_HanbaiKingaku3","HanbaiKingaku3","HanbaiKingaku",3,6,null,null,"#,##0",6]
[291,6,"Text","TBx6_HanbaiKingaku4","HanbaiKingaku4","HanbaiKingaku",4,6,null,null,"#,##0",6]
[292,6,"Text","TBx6_HanbaiKingaku5","HanbaiKingaku5","HanbaiKingaku",5,6,null,null,"#,##0",6]
[293,6,"Text","TBx6_HanbaiKingaku6","HanbaiKingaku6","HanbaiKingaku",6,6,null,null,"#,##0",6]
[294,6,"Text","TBx6_HanbaiKingaku7","HanbaiKingaku7","HanbaiKingaku",7,6,null,null,"#,##0",6]
[295,6,"Text","TBx6_HanbaiKingaku8","HanbaiKingaku8","HanbaiKingaku",8,6,null,null,"#,##0",6]
[296,6,"Text","TBx6_HanbaiKingaku9","HanbaiKingaku9","HanbaiKingaku",9,6,null,null,"#,##0",6]
[297,6,"Text","TBx6_HanbaiKingaku10","HanbaiKingaku10","HanbaiKingaku",10,6,null,null,"#,##0",6]
[298,6,"Label","Lbl6_HanbaiKingaku11","HanbaiKingaku11"]
[299,6,"Label","Lbl6_HanbaiKingakuYen1","HanbaiKingakuYen1",null,1]
[300,6,"Label","Lbl6_HanbaiKingakuYen2","HanbaiKingakuYen2",null,2]
[301,6,"Label","Lbl6_HanbaiKingakuYen3","HanbaiKingakuYen3",null,3]
[302,6,"Label","Lbl6_HanbaiKingakuYen4","HanbaiKingakuYen4",null,4]
[303,6,"Label","Lbl6_HanbaiKingakuYen5","HanbaiKingakuYen5",null,5]
[304,6,"Label","Lbl6_HanbaiKingakuYen6","HanbaiKingakuYen6",null,6]
[305,6,"Label","Lbl6_HanbaiKingakuYen7","HanbaiKingakuYen7",null,7]
[306,6,"Label","Lbl6_HanbaiKingakuYen8","HanbaiKingakuYen8",null,8]
[307,6,"Label","Lbl6_HanbaiKingakuYen9","HanbaiKingakuYen9",null,9]
[308,6,"Label","Lbl6_HanbaiKingakuYen10","HanbaiKingakuYen10",null,10]
[309,6,"Label","Lbl6_HanbaiKingakuYen11","HanbaiKingakuYen11"]
[310,6,"Label","Lbl6_HanbaiKingakuJogai","HanbaiKingakuJogai"]
[311,6,"Label","Lbl6_HanbaiKingakuJogai_1","HanbaiKingakuJogai_1"]
[312,6,"Label","Lbl6_HanbaiKingakuJogai_2","HanbaiKingakuJogai_2"]
[313,6,"Text","TBx6_HanbaiKingakuJogai1","HanbaiKingakuJogai1","HanbaiKingakuJogai",1,6,null,null,"#,##0",6]
[314,6,"Text","TBx6_HanbaiKingakuJogai2","HanbaiKingakuJogai2","HanbaiKingakuJogai",2,6,null,null,"#,##0",6]
[315,6,"Text","TBx6_HanbaiKingakuJogai3","HanbaiKingakuJogai3","HanbaiKingakuJogai",3,6,null,null,"#,##0",6]
[316,6,"Text","TBx6_HanbaiKingakuJogai4","HanbaiKingakuJogai4","HanbaiKingakuJogai",4,6,null,null,"#,##0",6]
[317,6,"Text","TBx6_HanbaiKingakuJogai5","HanbaiKingakuJogai5","HanbaiKingakuJogai",5,6,null,null,"#,##0",6]
[318,6,"Text","TBx6_HanbaiKingakuJogai6","HanbaiKingakuJogai6","HanbaiKingakuJogai",6,6,null,null,"#,##0",6]
[319,6,"Text","TBx6_HanbaiKingakuJogai7","HanbaiKingakuJogai7","HanbaiKingakuJogai",7,6,null,null,"#,##0",6]
[320,6,"Text","TBx6_HanbaiKingakuJogai8","HanbaiKingakuJogai8","HanbaiKingakuJogai",8,6,null,null,"#,##0",6]
[321,6,"Text","TBx6_HanbaiKingakuJogai9","HanbaiKingakuJogai9","HanbaiKingakuJogai",9,6,null,null,"#,##0",6]
[322,6,"Text","TBx6_HanbaiKingakuJogai10","HanbaiKingakuJogai10","HanbaiKingakuJogai",10,6,null,null,"#,##0",6]
[323,6,"Label","Lbl6_HanbaiKingakuJogai11","HanbaiKingakuJogai11"]
[324,6,"Label","Lbl6_HanbaiKingakuJogaiYen1","HanbaiKingakuJogaiYen1",null,1]
[325,6,"Label","Lbl6_HanbaiKingakuJogaiYen2","HanbaiKingakuJogaiYen2",null,2]
[326,6,"Label","Lbl6_HanbaiKingakuJogaiYen3","HanbaiKingakuJogaiYen3",null,3]
[327,6,"Label","Lbl6_HanbaiKingakuJogaiYen4","HanbaiKingakuJogaiYen4",null,4]
[328,6,"Label","Lbl6_HanbaiKingakuJogaiYen5","HanbaiKingakuJogaiYen5",null,5]
[329,6,"Label","Lbl6_HanbaiKingakuJogaiYen6","HanbaiKingakuJogaiYen6",null,6]
[330,6,"Label","Lbl6_HanbaiKingakuJogaiYen7","HanbaiKingakuJogaiYen7",null,7]
[331,6,"Label","Lbl6_HanbaiKingakuJogaiYen8","HanbaiKingakuJogaiYen8",null,8]
[332,6,"Label","Lbl6_HanbaiKingakuJogaiYen9","HanbaiKingakuJogaiYen9",null,9]
[333,6,"Label","Lbl6_HanbaiKingakuJogaiYen10","HanbaiKingakuJogaiYen10",null,10]
[334,6,"Label","Lbl6_HanbaiKingakuJogaiYen11","HanbaiKingakuJogaiYen11"]
[335,6,"Label","Lbl6_ZatsushunyuHanbai","ZatsushunyuHanbai"]
[336,6,"Label","Lbl6_ZatsushunyuHanbai_1","ZatsushunyuHanbai_1"]
[337,6,"Label","Lbl6_ZatsushunyuHanbai_2","ZatsushunyuHanbai_2"]
[338,6,"Label","Lbl6_ZatsushunyuHanbaiSuryo","ZatsushunyuHanbaiSuryo"]
[339,6,"Label","Lbl6_ZatsushunyuHanbaiSuryo1","ZatsushunyuHanbaiSuryo1","ZatsushunyuHanbaiSuryo",1]
[340,6,"Label","Lbl6_ZatsushunyuHanbaiSuryo2","ZatsushunyuHanbaiSuryo2","ZatsushunyuHanbaiSuryo",2]
[341,6,"Label","Lbl6_ZatsushunyuHanbaiSuryo3","ZatsushunyuHanbaiSuryo3","ZatsushunyuHanbaiSuryo",3]
[342,6,"Label","Lbl6_ZatsushunyuHanbaiSuryo4","ZatsushunyuHanbaiSuryo4","ZatsushunyuHanbaiSuryo",4]
[343,6,"Label","Lbl6_ZatsushunyuHanbaiSuryo5","ZatsushunyuHanbaiSuryo5","ZatsushunyuHanbaiSuryo",5]
[344,6,"Label","Lbl6_ZatsushunyuHanbaiSuryo6","ZatsushunyuHanbaiSuryo6","ZatsushunyuHanbaiSuryo",6]
[345,6,"Label","Lbl6_ZatsushunyuHanbaiSuryo7","ZatsushunyuHanbaiSuryo7","ZatsushunyuHanbaiSuryo",7]
[346,6,"Label","Lbl6_ZatsushunyuHanbaiSuryo8","ZatsushunyuHanbaiSuryo8","ZatsushunyuHanbaiSuryo",8]
[347,6,"Label","Lbl6_ZatsushunyuHanbaiSuryo9","ZatsushunyuHanbaiSuryo9","ZatsushunyuHanbaiSuryo",9]
[348,6,"Label","Lbl6_ZatsushunyuHanbaiSuryo10","ZatsushunyuHanbaiSuryo10","ZatsushunyuHanbaiSuryo",10]
[349,6,"Label","Lbl6_ZatsushunyuHanbaiSuryo11","ZatsushunyuHanbaiSuryo11"]
[350,6,"Label","Lbl6_ZatsushunyuHanbaiSuryoYen1","ZatsushunyuHanbaiSuryoYen1",null,1]
[351,6,"Label","Lbl6_ZatsushunyuHanbaiSuryoYen2","ZatsushunyuHanbaiSuryoYen2",null,2]
[352,6,"Label","Lbl6_ZatsushunyuHanbaiSuryoYen3","ZatsushunyuHanbaiSuryoYen3",null,3]
[353,6,"Label","Lbl6_ZatsushunyuHanbaiSuryoYen4","ZatsushunyuHanbaiSuryoYen4",null,4]
[354,6,"Label","Lbl6_ZatsushunyuHanbaiSuryoYen5","ZatsushunyuHanbaiSuryoYen5",null,5]
[355,6,"Label","Lbl6_ZatsushunyuHanbaiSuryoYen6","ZatsushunyuHanbaiSuryoYen6",null,6]
[356,6,"Label","Lbl6_ZatsushunyuHanbaiSuryoYen7","ZatsushunyuHanbaiSuryoYen7",null,7]
[357,6,"Label","Lbl6_ZatsushunyuHanbaiSuryoYen8","ZatsushunyuHanbaiSuryoYen8",null,8]
[358,6,"Label","Lbl6_ZatsushunyuHanbaiSuryoYen9","ZatsushunyuHanbaiSuryoYen9",null,9]
[359,6,"Label","Lbl6_ZatsushunyuHanbaiSuryoYen10","ZatsushunyuHanbaiSuryoYen10",null,10]
[360,6,"Label","Lbl6_ZatsushunyuHanbaiSuryoYen11","ZatsushunyuHanbaiSuryoYen11"]
[361,6,"Label","Lbl6_ZatsushunyuHanbaiSonota","ZatsushunyuHanbaiSonota"]
[362,6,"Text","TBx6_ZatsushunyuHanbaiSonota1","ZatsushunyuHanbaiSonota1","ZatsushunyuHanbaiSonota",1,6,null,null,"#,##0",6]
[363,6,"Text","TBx6_ZatsushunyuHanbaiSonota2","ZatsushunyuHanbaiSonota2","ZatsushunyuHanbaiSonota",2,6,null,null,"#,##0",6]
[364,6,"Text","TBx6_ZatsushunyuHanbaiSonota3","ZatsushunyuHanbaiSonota3","ZatsushunyuHanbaiSonota",3,6,null,null,"#,##0",6]
[365,6,"Text","TBx6_ZatsushunyuHanbaiSonota4","ZatsushunyuHanbaiSonota4","ZatsushunyuHanbaiSonota",4,6,null,null,"#,##0",6]
[366,6,"Text","TBx6_ZatsushunyuHanbaiSonota5","ZatsushunyuHanbaiSonota5","ZatsushunyuHanbaiSonota",5,6,null,null,"#,##0",6]
[367,6,"Text","TBx6_ZatsushunyuHanbaiSonota6","ZatsushunyuHanbaiSonota6","ZatsushunyuHanbaiSonota",6,6,null,null,"#,##0",6]
[368,6,"Text","TBx6_ZatsushunyuHanbaiSonota7","ZatsushunyuHanbaiSonota7","ZatsushunyuHanbaiSonota",7,6,null,null,"#,##0",6]
[369,6,"Text","TBx6_ZatsushunyuHanbaiSonota8","ZatsushunyuHanbaiSonota8","ZatsushunyuHanbaiSonota",8,6,null,null,"#,##0",6]
[370,6,"Text","TBx6_ZatsushunyuHanbaiSonota9","ZatsushunyuHanbaiSonota9","ZatsushunyuHanbaiSonota",9,6,null,null,"#,##0",6]
[371,6,"Text","TBx6_ZatsushunyuHanbaiSonota10","ZatsushunyuHanbaiSonota10","ZatsushunyuHanbaiSonota",10,6,null,null,"#,##0",6]
[372,6,"Label","Lbl6_ZatsushunyuHanbaiSonota11","ZatsushunyuHanbaiSonota11"]
[373,6,"Label","Lbl6_ZatsushunyuHanbaiSonotaYen1","ZatsushunyuHanbaiSonotaYen1",null,1]
[374,6,"Label","Lbl6_ZatsushunyuHanbaiSonotaYen2","ZatsushunyuHanbaiSonotaYen2",null,2]
[375,6,"Label","Lbl6_ZatsushunyuHanbaiSonotaYen3","ZatsushunyuHanbaiSonotaYen3",null,3]
[376,6,"Label","Lbl6_ZatsushunyuHanbaiSonotaYen4","ZatsushunyuHanbaiSonotaYen4",null,4]
[377,6,"Label","Lbl6_ZatsushunyuHanbaiSonotaYen5","ZatsushunyuHanbaiSonotaYen5",null,5]
[378,6,"Label","Lbl6_ZatsushunyuHanbaiSonotaYen6","ZatsushunyuHanbaiSonotaYen6",null,6]
[379,6,"Label","Lbl6_ZatsushunyuHanbaiSonotaYen7","ZatsushunyuHanbaiSonotaYen7",null,7]
[380,6,"Label","Lbl6_ZatsushunyuHanbaiSonotaYen8","ZatsushunyuHanbaiSonotaYen8",null,8]
[381,6,"Label","Lbl6_ZatsushunyuHanbaiSonotaYen9","ZatsushunyuHanbaiSonotaYen9",null,9]
[382,6,"Label","Lbl6_ZatsushunyuHanbaiSonotaYen10","ZatsushunyuHanbaiSonotaYen10",null,10]
[383,6,"Label","Lbl6_ZatsushunyuHanbaiSonotaYen11","ZatsushunyuHanbaiSonotaYen11"]
[384,6,"Label","Lbl6_ShunyuKingakuShinkoku","ShunyuKingakuShinkoku"]
[385,6,"Label","Lbl6_ShunyuKingakuShinkoku_1","ShunyuKingakuShinkoku_1"]
[386,6,"Label","Lbl6_ShunyuKingakuShinkoku_2","ShunyuKingakuShinkoku_2"]
[387,6,"Label","Lbl6_ShunyuKingakuShinkoku_3","ShunyuKingakuShinkoku_3"]
[388,6,"Label","Lbl6_ShunyuKingakuShinkoku1","ShunyuKingakuShinkoku1","ShunyuKingakuShinkoku",1]
[389,6,"Label","Lbl6_ShunyuKingakuShinkoku2","ShunyuKingakuShinkoku2","ShunyuKingakuShinkoku",2]
[390,6,"Label","Lbl6_ShunyuKingakuShinkoku3","ShunyuKingakuShinkoku3","ShunyuKingakuShinkoku",3]
[391,6,"Label","Lbl6_ShunyuKingakuShinkoku4","ShunyuKingakuShinkoku4","ShunyuKingakuShinkoku",4]
[392,6,"Label","Lbl6_ShunyuKingakuShinkoku5","ShunyuKingakuShinkoku5","ShunyuKingakuShinkoku",5]
[393,6,"Label","Lbl6_ShunyuKingakuShinkoku6","ShunyuKingakuShinkoku6","ShunyuKingakuShinkoku",6]
[394,6,"Label","Lbl6_ShunyuKingakuShinkoku7","ShunyuKingakuShinkoku7","ShunyuKingakuShinkoku",7]
[395,6,"Label","Lbl6_ShunyuKingakuShinkoku8","ShunyuKingakuShinkoku8","ShunyuKingakuShinkoku",8]
[396,6,"Label","Lbl6_ShunyuKingakuShinkoku9","ShunyuKingakuShinkoku9","ShunyuKingakuShinkoku",9]
[397,6,"Label","Lbl6_ShunyuKingakuShinkoku10","ShunyuKingakuShinkoku10","ShunyuKingakuShinkoku",10]
[398,6,"Label","Lbl6_ShunyuKingakuShinkoku11","ShunyuKingakuShinkoku11"]
[399,6,"Label","Lbl6_ShunyuKingakuShinkokuYen1","ShunyuKingakuShinkokuYen1",null,1]
[400,6,"Label","Lbl6_ShunyuKingakuShinkokuYen2","ShunyuKingakuShinkokuYen2",null,2]
[401,6,"Label","Lbl6_ShunyuKingakuShinkokuYen3","ShunyuKingakuShinkokuYen3",null,3]
[402,6,"Label","Lbl6_ShunyuKingakuShinkokuYen4","ShunyuKingakuShinkokuYen4",null,4]
[403,6,"Label","Lbl6_ShunyuKingakuShinkokuYen5","ShunyuKingakuShinkokuYen5",null,5]
[404,6,"Label","Lbl6_ShunyuKingakuShinkokuYen6","ShunyuKingakuShinkokuYen6",null,6]
[405,6,"Label","Lbl6_ShunyuKingakuShinkokuYen7","ShunyuKingakuShinkokuYen7",null,7]
[406,6,"Label","Lbl6_ShunyuKingakuShinkokuYen8","ShunyuKingakuShinkokuYen8",null,8]
[407,6,"Label","Lbl6_ShunyuKingakuShinkokuYen9","ShunyuKingakuShinkokuYen9",null,9]
[408,6,"Label","Lbl6_ShunyuKingakuShinkokuYen10","ShunyuKingakuShinkokuYen10",null,10]
[409,6,"Label","Lbl6_ShunyuKingakuShinkokuYen11","ShunyuKingakuShinkokuYen11"]
[410,7,"Label","Lbl7_Meisai1","Meisai1","Meisai",1]
[411,7,"Label","Lbl7_Meisai2","Meisai2","Meisai",2]
[412,7,"Label","Lbl7_Meisai3","Meisai3","Meisai",3]
[413,7,"Label","Lbl7_Meisai4","Meisai4","Meisai",4]
[414,7,"Label","Lbl7_Meisai5","Meisai5","Meisai",5]
[415,7,"Label","Lbl7_Meisai6","Meisai6","Meisai",6]
[416,7,"Label","Lbl7_Meisai7","Meisai7","Meisai",7]
[417,7,"Label","Lbl7_Meisai8","Meisai8","Meisai",8]
[418,7,"Label","Lbl7_Meisai9","Meisai9","Meisai",9]
[419,7,"Label","Lbl7_Meisai10","Meisai10","Meisai",10]
[420,7,"Label","Lbl7_Meisai11","Meisai11"]
[421,7,"Label","Lbl7_ShuruiHinmoku","ShuruiHinmoku"]
[422,7,"Label","Lbl7_ShuruiHinmoku1","ShuruiHinmoku1","ShuruiHinmoku",1]
[423,7,"Label","Lbl7_ShuruiHinmoku2","ShuruiHinmoku2","ShuruiHinmoku",2]
[424,7,"Label","Lbl7_ShuruiHinmoku3","ShuruiHinmoku3","ShuruiHinmoku",3]
[425,7,"Label","Lbl7_ShuruiHinmoku4","ShuruiHinmoku4","ShuruiHinmoku",4]
[426,7,"Label","Lbl7_ShuruiHinmoku5","ShuruiHinmoku5","ShuruiHinmoku",5]
[427,7,"Label","Lbl7_ShuruiHinmoku6","ShuruiHinmoku6","ShuruiHinmoku",6]
[428,7,"Label","Lbl7_ShuruiHinmoku7","ShuruiHinmoku7","ShuruiHinmoku",7]
[429,7,"Label","Lbl7_ShuruiHinmoku8","ShuruiHinmoku8","ShuruiHinmoku",8]
[430,7,"Label","Lbl7_ShuruiHinmoku9","ShuruiHinmoku9","ShuruiHinmoku",9]
[431,7,"Label","Lbl7_ShuruiHinmoku10","ShuruiHinmoku10","ShuruiHinmoku",10]
[432,7,"Label","Lbl7_KishuTanaoroshi","KishuTanaoroshi"]
[433,7,"Label","Lbl7_KishuTanaoroshi1","KishuTanaoroshi1","KishuTanaoroshi",1]
[434,7,"Label","Lbl7_KishuTanaoroshi2","KishuTanaoroshi2","KishuTanaoroshi",2]
[435,7,"Label","Lbl7_KishuTanaoroshi3","KishuTanaoroshi3","KishuTanaoroshi",3]
[436,7,"Label","Lbl7_KishuTanaoroshi4","KishuTanaoroshi4","KishuTanaoroshi",4]
[437,7,"Label","Lbl7_KishuTanaoroshi5","KishuTanaoroshi5","KishuTanaoroshi",5]
[438,7,"Label","Lbl7_KishuTanaoroshi6","KishuTanaoroshi6","KishuTanaoroshi",6]
[439,7,"Label","Lbl7_KishuTanaoroshi7","KishuTanaoroshi7","KishuTanaoroshi",7]
[440,7,"Label","Lbl7_KishuTanaoroshi8","KishuTanaoroshi8","KishuTanaoroshi",8]
[441,7,"Label","Lbl7_KishuTanaoroshi9","KishuTanaoroshi9","KishuTanaoroshi",9]
[442,7,"Label","Lbl7_KishuTanaoroshi10","KishuTanaoroshi10","KishuTanaoroshi",10]
[443,7,"Label","Lbl7_KishuTanaoroshi11","KishuTanaoroshi11"]
[444,7,"Label","Lbl7_KishuTanaoroshiYen1","KishuTanaoroshiYen1",null,1]
[445,7,"Label","Lbl7_KishuTanaoroshiYen2","KishuTanaoroshiYen2",null,2]
[446,7,"Label","Lbl7_KishuTanaoroshiYen3","KishuTanaoroshiYen3",null,3]
[447,7,"Label","Lbl7_KishuTanaoroshiYen4","KishuTanaoroshiYen4",null,4]
[448,7,"Label","Lbl7_KishuTanaoroshiYen5","KishuTanaoroshiYen5",null,5]
[449,7,"Label","Lbl7_KishuTanaoroshiYen6","KishuTanaoroshiYen6",null,6]
[450,7,"Label","Lbl7_KishuTanaoroshiYen7","KishuTanaoroshiYen7",null,7]
[451,7,"Label","Lbl7_KishuTanaoroshiYen8","KishuTanaoroshiYen8",null,8]
[452,7,"Label","Lbl7_KishuTanaoroshiYen9","KishuTanaoroshiYen9",null,9]
[453,7,"Label","Lbl7_KishuTanaoroshiYen10","KishuTanaoroshiYen10",null,10]
[454,7,"Label","Lbl7_KishuTanaoroshiYen11","KishuTanaoroshiYen11"]
[455,7,"Label","Lbl7_ShunyuKingakuShinkoku","ShunyuKingakuShinkoku"]
[456,7,"Label","Lbl7_ShunyuKingakuShinkoku1","ShunyuKingakuShinkoku1","ShunyuKingakuShinkoku",1]
[457,7,"Label","Lbl7_ShunyuKingakuShinkoku2","ShunyuKingakuShinkoku2","ShunyuKingakuShinkoku",2]
[458,7,"Label","Lbl7_ShunyuKingakuShinkoku3","ShunyuKingakuShinkoku3","ShunyuKingakuShinkoku",3]
[459,7,"Label","Lbl7_ShunyuKingakuShinkoku4","ShunyuKingakuShinkoku4","ShunyuKingakuShinkoku",4]
[460,7,"Label","Lbl7_ShunyuKingakuShinkoku5","ShunyuKingakuShinkoku5","ShunyuKingakuShinkoku",5]
[461,7,"Label","Lbl7_ShunyuKingakuShinkoku6","ShunyuKingakuShinkoku6","ShunyuKingakuShinkoku",6]
[462,7,"Label","Lbl7_ShunyuKingakuShinkoku7","ShunyuKingakuShinkoku7","ShunyuKingakuShinkoku",7]
[463,7,"Label","Lbl7_ShunyuKingakuShinkoku8","ShunyuKingakuShinkoku8","ShunyuKingakuShinkoku",8]
[464,7,"Label","Lbl7_ShunyuKingakuShinkoku9","ShunyuKingakuShinkoku9","ShunyuKingakuShinkoku",9]
[465,7,"Label","Lbl7_ShunyuKingakuShinkoku10","ShunyuKingakuShinkoku10","ShunyuKingakuShinkoku",10]
[466,7,"Label","Lbl7_ShunyuKingakuShinkoku11","ShunyuKingakuShinkoku11"]
[467,7,"Label","Lbl7_ShunyuKingakuShinkokuYen1","ShunyuKingakuShinkokuYen1",null,1]
[468,7,"Label","Lbl7_ShunyuKingakuShinkokuYen2","ShunyuKingakuShinkokuYen2",null,2]
[469,7,"Label","Lbl7_ShunyuKingakuShinkokuYen3","ShunyuKingakuShinkokuYen3",null,3]
[470,7,"Label","Lbl7_ShunyuKingakuShinkokuYen4","ShunyuKingakuShinkokuYen4",null,4]
[471,7,"Label","Lbl7_ShunyuKingakuShinkokuYen5","ShunyuKingakuShinkokuYen5",null,5]
[472,7,"Label","Lbl7_ShunyuKingakuShinkokuYen6","ShunyuKingakuShinkokuYen6",null,6]
[473,7,"Label","Lbl7_ShunyuKingakuShinkokuYen7","ShunyuKingakuShinkokuYen7",null,7]
[474,7,"Label","Lbl7_ShunyuKingakuShinkokuYen8","ShunyuKingakuShinkokuYen8",null,8]
[475,7,"Label","Lbl7_ShunyuKingakuShinkokuYen9","ShunyuKingakuShinkokuYen9",null,9]
[476,7,"Label","Lbl7_ShunyuKingakuShinkokuYen10","ShunyuKingakuShinkokuYen10",null,10]
[477,7,"Label","Lbl7_ShunyuKingakuShinkokuYen11","ShunyuKingakuShinkokuYen11"]
[478,7,"Label","Lbl7_JigyoShohiSuryo","JigyoShohiSuryo"]
[479,7,"Text","TBx7_JigyoShohiSuryo1","JigyoShohiSuryo1","JigyoShohiSuryo",1,7,null,null,"#,##0",7]
[480,7,"Text","TBx7_JigyoShohiSuryo2","JigyoShohiSuryo2","JigyoShohiSuryo",2,7,null,null,"#,##0",7]
[481,7,"Text","TBx7_JigyoShohiSuryo3","JigyoShohiSuryo3","JigyoShohiSuryo",3,7,null,null,"#,##0",7]
[482,7,"Text","TBx7_JigyoShohiSuryo4","JigyoShohiSuryo4","JigyoShohiSuryo",4,7,null,null,"#,##0",7]
[483,7,"Text","TBx7_JigyoShohiSuryo5","JigyoShohiSuryo5","JigyoShohiSuryo",5,7,null,null,"#,##0",7]
[484,7,"Text","TBx7_JigyoShohiSuryo6","JigyoShohiSuryo6","JigyoShohiSuryo",6,7,null,null,"#,##0",7]
[485,7,"Text","TBx7_JigyoShohiSuryo7","JigyoShohiSuryo7","JigyoShohiSuryo",7,7,null,null,"#,##0",7]
[486,7,"Text","TBx7_JigyoShohiSuryo8","JigyoShohiSuryo8","JigyoShohiSuryo",8,7,null,null,"#,##0",7]
[487,7,"Text","TBx7_JigyoShohiSuryo9","JigyoShohiSuryo9","JigyoShohiSuryo",9,7,null,null,"#,##0",7]
[488,7,"Text","TBx7_JigyoShohiSuryo10","JigyoShohiSuryo10","JigyoShohiSuryo",10,7,null,null,"#,##0",7]
[489,7,"Label","Lbl7_JigyoShohiSuryoKgto1","JigyoShohiSuryoKgto1",null,1]
[490,7,"Label","Lbl7_JigyoShohiSuryoKgto2","JigyoShohiSuryoKgto2",null,2]
[491,7,"Label","Lbl7_JigyoShohiSuryoKgto3","JigyoShohiSuryoKgto3",null,3]
[492,7,"Label","Lbl7_JigyoShohiSuryoKgto4","JigyoShohiSuryoKgto4",null,4]
[493,7,"Label","Lbl7_JigyoShohiSuryoKgto5","JigyoShohiSuryoKgto5",null,5]
[494,7,"Label","Lbl7_JigyoShohiSuryoKgto6","JigyoShohiSuryoKgto6",null,6]
[495,7,"Label","Lbl7_JigyoShohiSuryoKgto7","JigyoShohiSuryoKgto7",null,7]
[496,7,"Label","Lbl7_JigyoShohiSuryoKgto8","JigyoShohiSuryoKgto8",null,8]
[497,7,"Label","Lbl7_JigyoShohiSuryoKgto9","JigyoShohiSuryoKgto9",null,9]
[498,7,"Label","Lbl7_JigyoShohiSuryoKgto10","JigyoShohiSuryoKgto10",null,10]
[499,7,"Label","LBl7_JigyoShohiKingaku","JigyoShohiKingaku"]
[500,7,"Label","Lbl7_JigyoShohiKingaku1","JigyoShohiKingaku1","JigyoShohiKingaku",1]
[501,7,"Label","Lbl7_JigyoShohiKingaku2","JigyoShohiKingaku2","JigyoShohiKingaku",2]
[502,7,"Label","Lbl7_JigyoShohiKingaku3","JigyoShohiKingaku3","JigyoShohiKingaku",3]
[503,7,"Label","Lbl7_JigyoShohiKingaku4","JigyoShohiKingaku4","JigyoShohiKingaku",4]
[504,7,"Label","Lbl7_JigyoShohiKingaku5","JigyoShohiKingaku5","JigyoShohiKingaku",5]
[505,7,"Label","Lbl7_JigyoShohiKingaku6","JigyoShohiKingaku6","JigyoShohiKingaku",6]
[506,7,"Label","Lbl7_JigyoShohiKingaku7","JigyoShohiKingaku7","JigyoShohiKingaku",7]
[507,7,"Label","Lbl7_JigyoShohiKingaku8","JigyoShohiKingaku8","JigyoShohiKingaku",8]
[508,7,"Label","Lbl7_JigyoShohiKingaku9","JigyoShohiKingaku9","JigyoShohiKingaku",9]
[509,7,"Label","Lbl7_JigyoShohiKingaku10","JigyoShohiKingaku10","JigyoShohiKingaku",10]
[510,7,"Label","Lbl7_JigyoShohiKingaku11","JigyoShohiKingaku11"]
[511,7,"Label","Lbl7_JigyoShohiKingakuYen1","JigyoShohiKingakuYen1",null,1]
[512,7,"Label","Lbl7_JigyoShohiKingakuYen2","JigyoShohiKingakuYen2",null,2]
[513,7,"Label","Lbl7_JigyoShohiKingakuYen3","JigyoShohiKingakuYen3",null,3]
[514,7,"Label","Lbl7_JigyoShohiKingakuYen4","JigyoShohiKingakuYen4",null,4]
[515,7,"Label","Lbl7_JigyoShohiKingakuYen5","JigyoShohiKingakuYen5",null,5]
[516,7,"Label","Lbl7_JigyoShohiKingakuYen6","JigyoShohiKingakuYen6",null,6]
[517,7,"Label","Lbl7_JigyoShohiKingakuYen7","JigyoShohiKingakuYen7",null,7]
[518,7,"Label","Lbl7_JigyoShohiKingakuYen8","JigyoShohiKingakuYen8",null,8]
[519,7,"Label","Lbl7_JigyoShohiKingakuYen9","JigyoShohiKingakuYen9",null,9]
[520,7,"Label","Lbl7_JigyoShohiKingakuYen10","JigyoShohiKingakuYen10",null,10]
[521,7,"Label","Lbl7_JigyoShohiKingakuYen11","JigyoShohiKingakuYen11"]
[522,7,"Label","LBl7_KimatsuTanaoroshiSuryo","KimatsuTanaoroshiSuryo"]
[523,7,"Text","TBx7_KimatsuTanaoroshiSuryo1","KimatsuTanaoroshiSuryo1","KimatsuTanaoroshiSuryo",1,7,null,null,"#,##0",7]
[524,7,"Text","TBx7_KimatsuTanaoroshiSuryo2","KimatsuTanaoroshiSuryo2","KimatsuTanaoroshiSuryo",2,7,null,null,"#,##0",7]
[525,7,"Text","TBx7_KimatsuTanaoroshiSuryo3","KimatsuTanaoroshiSuryo3","KimatsuTanaoroshiSuryo",3,7,null,null,"#,##0",7]
[526,7,"Text","TBx7_KimatsuTanaoroshiSuryo4","KimatsuTanaoroshiSuryo4","KimatsuTanaoroshiSuryo",4,7,null,null,"#,##0",7]
[527,7,"Text","TBx7_KimatsuTanaoroshiSuryo5","KimatsuTanaoroshiSuryo5","KimatsuTanaoroshiSuryo",5,7,null,null,"#,##0",7]
[528,7,"Text","TBx7_KimatsuTanaoroshiSuryo6","KimatsuTanaoroshiSuryo6","KimatsuTanaoroshiSuryo",6,7,null,null,"#,##0",7]
[529,7,"Text","TBx7_KimatsuTanaoroshiSuryo7","KimatsuTanaoroshiSuryo7","KimatsuTanaoroshiSuryo",7,7,null,null,"#,##0",7]
[530,7,"Text","TBx7_KimatsuTanaoroshiSuryo8","KimatsuTanaoroshiSuryo8","KimatsuTanaoroshiSuryo",8,7,null,null,"#,##0",7]
[531,7,"Text","TBx7_KimatsuTanaoroshiSuryo9","KimatsuTanaoroshiSuryo9","KimatsuTanaoroshiSuryo",9,7,null,null,"#,##0",7]
[532,7,"Text","TBx7_KimatsuTanaoroshiSuryo10","KimatsuTanaoroshiSuryo10","KimatsuTanaoroshiSuryo",10,7,null,null,"#,##0",7]
[533,7,"Label","Lbl7_KimatsuTanaoroshiSuryoKgto1","KimatsuTanaoroshiSuryoKgto1",null,1]
[534,7,"Label","Lbl7_KimatsuTanaoroshiSuryoKgto2","KimatsuTanaoroshiSuryoKgto2",null,2]
[535,7,"Label","Lbl7_KimatsuTanaoroshiSuryoKgto3","KimatsuTanaoroshiSuryoKgto3",null,3]
[536,7,"Label","Lbl7_KimatsuTanaoroshiSuryoKgto4","KimatsuTanaoroshiSuryoKgto4",null,4]
[537,7,"Label","Lbl7_KimatsuTanaoroshiSuryoKgto5","KimatsuTanaoroshiSuryoKgto5",null,5]
[538,7,"Label","Lbl7_KimatsuTanaoroshiSuryoKgto6","KimatsuTanaoroshiSuryoKgto6",null,6]
[539,7,"Label","Lbl7_KimatsuTanaoroshiSuryoKgto7","KimatsuTanaoroshiSuryoKgto7",null,7]
[540,7,"Label","Lbl7_KimatsuTanaoroshiSuryoKgto8","KimatsuTanaoroshiSuryoKgto8",null,8]
[541,7,"Label","Lbl7_KimatsuTanaoroshiSuryoKgto9","KimatsuTanaoroshiSuryoKgto9",null,9]
[542,7,"Label","Lbl7_KimatsuTanaoroshiSuryoKgto10","KimatsuTanaoroshiSuryoKgto10",null,10]
[543,7,"Label","Lbl7_KimatsuTanaoroshiKingaku_1","KimatsuTanaoroshiKingaku_1"]
[544,7,"Label","Lbl7_KimatsuTanaoroshiKingaku1","KimatsuTanaoroshiKingaku1","KimatsuTanaoroshiKingaku",1]
[545,7,"Label","Lbl7_KimatsuTanaoroshiKingaku2","KimatsuTanaoroshiKingaku2","KimatsuTanaoroshiKingaku",2]
[546,7,"Label","Lbl7_KimatsuTanaoroshiKingaku3","KimatsuTanaoroshiKingaku3","KimatsuTanaoroshiKingaku",3]
[547,7,"Label","Lbl7_KimatsuTanaoroshiKingaku4","KimatsuTanaoroshiKingaku4","KimatsuTanaoroshiKingaku",4]
[548,7,"Label","Lbl7_KimatsuTanaoroshiKingaku5","KimatsuTanaoroshiKingaku5","KimatsuTanaoroshiKingaku",5]
[549,7,"Label","Lbl7_KimatsuTanaoroshiKingaku6","KimatsuTanaoroshiKingaku6","KimatsuTanaoroshiKingaku",6]
[550,7,"Label","Lbl7_KimatsuTanaoroshiKingaku7","KimatsuTanaoroshiKingaku7","KimatsuTanaoroshiKingaku",7]
[551,7,"Label","Lbl7_KimatsuTanaoroshiKingaku8","KimatsuTanaoroshiKingaku8","KimatsuTanaoroshiKingaku",8]
[552,7,"Label","Lbl7_KimatsuTanaoroshiKingaku9","KimatsuTanaoroshiKingaku9","KimatsuTanaoroshiKingaku",9]
[553,7,"Label","Lbl7_KimatsuTanaoroshiKingaku10","KimatsuTanaoroshiKingaku10","KimatsuTanaoroshiKingaku",10]
[554,7,"Label","Lbl7_KimatsuTanaoroshiKingaku11","KimatsuTanaoroshiKingaku11"]
[555,7,"Label","Lbl7_KimatsuTanaoroshiKingakuYen1","KimatsuTanaoroshiKingakuYen1",null,1]
[556,7,"Label","Lbl7_KimatsuTanaoroshiKingakuYen2","KimatsuTanaoroshiKingakuYen2",null,2]
[557,7,"Label","Lbl7_KimatsuTanaoroshiKingakuYen3","KimatsuTanaoroshiKingakuYen3",null,3]
[558,7,"Label","Lbl7_KimatsuTanaoroshiKingakuYen4","KimatsuTanaoroshiKingakuYen4",null,4]
[559,7,"Label","Lbl7_KimatsuTanaoroshiKingakuYen5","KimatsuTanaoroshiKingakuYen5",null,5]
[560,7,"Label","Lbl7_KimatsuTanaoroshiKingakuYen6","KimatsuTanaoroshiKingakuYen6",null,6]
[561,7,"Label","Lbl7_KimatsuTanaoroshiKingakuYen7","KimatsuTanaoroshiKingakuYen7",null,7]
[562,7,"Label","Lbl7_KimatsuTanaoroshiKingakuYen8","KimatsuTanaoroshiKingakuYen8",null,8]
[563,7,"Label","Lbl7_KimatsuTanaoroshiKingakuYen9","KimatsuTanaoroshiKingakuYen9",null,9]
[564,7,"Label","Lbl7_KimatsuTanaoroshiKingakuYen10","KimatsuTanaoroshiKingakuYen10",null,10]
[565,7,"Label","Lbl7_KimatsuTanaoroshiKingakuYen11","KimatsuTanaoroshiKingakuYen11"]
[566,8,"Label","LBl8_Baishokin","Baishokin"]
[567,8,"Check","CBx8_Baishokin1","Baishokin1"]
[568,8,"Check","CBx8_Baishokin2","Baishokin2"]
[569,8,"Text","TBx8_BaishokinKingaku","BaishokinKingaku",null,null,8,false,null,"#,##0",8]
[570,8,"Label","Lbl8_BaishokinKingakuYen","BaishokinKingakuYen",null,null,null,false]
[571,9,"Label","Lbl9_Meisai1","Meisai1","Meisai",1]
[572,9,"Label","Lbl9_Meisai2","Meisai2","Meisai",2]
[573,9,"Label","Lbl9_Meisai3","Meisai3","Meisai",3]
[574,9,"Label","Lbl9_Meisai4","Meisai4","Meisai",4]
[575,9,"Label","Lbl9_Meisai5","Meisai5","Meisai",5]
[576,9,"Label","Lbl9_Meisai6","Meisai6","Meisai",6]
[577,9,"Label","Lbl9_Meisai7","Meisai7","Meisai",7]
[578,9,"Label","Lbl9_Meisai8","Meisai8","Meisai",8]
[579,9,"Label","Lbl9_Meisai9","Meisai9","Meisai",9]
[580,9,"Label","Lbl9_Meisai10","Meisai10","Meisai",10]
[581,9,"Label","Lbl9_Meisai11","Meisai11"]
[582,9,"Label","Lbl9_ShuruiHinmoku","ShuruiHinmoku"]
[583,9,"Label","Lbl9_ShuruiHinmoku1","ShuruiHinmoku1","ShuruiHinmoku",1]
[584,9,"Label","Lbl9_ShuruiHinmoku2","ShuruiHinmoku2","ShuruiHinmoku",2]
[585,9,"Label","Lbl9_ShuruiHinmoku3","ShuruiHinmoku3","ShuruiHinmoku",3]
[586,9,"Label","Lbl9_ShuruiHinmoku4","ShuruiHinmoku4","ShuruiHinmoku",4]
[587,9,"Label","Lbl9_ShuruiHinmoku5","ShuruiHinmoku5","ShuruiHinmoku",5]
[588,9,"Label","Lbl9_ShuruiHinmoku6","ShuruiHinmoku6","ShuruiHinmoku",6]
[589,9,"Label","Lbl9_ShuruiHinmoku7","ShuruiHinmoku7","ShuruiHinmoku",7]
[590,9,"Label","Lbl9_ShuruiHinmoku8","ShuruiHinmoku8","ShuruiHinmoku",8]
[591,9,"Label","Lbl9_ShuruiHinmoku9","ShuruiHinmoku9","ShuruiHinmoku",9]
[592,9,"Label","Lbl9_ShuruiHinmoku10","ShuruiHinmoku10","ShuruiHinmoku",10]
[593,9,"Label","Lbl9_KishuTanaoroshi","KishuTanaoroshi"]
[594,9,"Label","Lbl9_KishuTanaoroshi_1","KishuTanaoroshi_1"]
[595,9,"Label","Lbl9_KishuTanaoroshiLbl1","KishuTanaoroshiLbl1","KishuTanaoroshiLbl",1]
[596,9,"Label","Lbl9_KishuTanaoroshiLbl2","KishuTanaoroshiLbl2","KishuTanaoroshiLbl",2]
[597,9,"Label","Lbl9_KishuTanaoroshiLbl3","KishuTanaoroshiLbl3","KishuTanaoroshiLbl",3]
[598,9,"Label","Lbl9_KishuTanaoroshiLbl4","KishuTanaoroshiLbl4","KishuTanaoroshiLbl",4]
[599,9,"Label","Lbl9_KishuTanaoroshiLbl5","KishuTanaoroshiLbl5","KishuTanaoroshiLbl",5]
[600,9,"Label","Lbl9_KishuTanaoroshiLbl6","KishuTanaoroshiLbl6","KishuTanaoroshiLbl",6]
[601,9,"Label","Lbl9_KishuTanaoroshiLbl7","KishuTanaoroshiLbl7","KishuTanaoroshiLbl",7]
[602,9,"Label","Lbl9_KishuTanaoroshiLbl8","KishuTanaoroshiLbl8","KishuTanaoroshiLbl",8]
[603,9,"Label","Lbl9_KishuTanaoroshiLbl9","KishuTanaoroshiLbl9","KishuTanaoroshiLbl",9]
[604,9,"Label","Lbl9_KishuTanaoroshiLbl10","KishuTanaoroshiLbl10","KishuTanaoroshiLbl",10]
[605,9,"Label","Lbl9_KishuTanaoroshiLbl11","KishuTanaoroshiLbl11"]
[606,9,"Label","Lbl9_KishuTanaoroshiYen1","KishuTanaoroshiYen1",null,1]
[607,9,"Label","Lbl9_KishuTanaoroshiYen2","KishuTanaoroshiYen2",null,2]
[608,9,"Label","Lbl9_KishuTanaoroshiYen3","KishuTanaoroshiYen3",null,3]
[609,9,"Label","Lbl9_KishuTanaoroshiYen4","KishuTanaoroshiYen4",null,4]
[610,9,"Label","Lbl9_KishuTanaoroshiYen5","KishuTanaoroshiYen5",null,5]
[611,9,"Label","Lbl9_KishuTanaoroshiYen6","KishuTanaoroshiYen6",null,6]
[612,9,"Label","Lbl9_KishuTanaoroshiYen7","KishuTanaoroshiYen7",null,7]
[613,9,"Label","Lbl9_KishuTanaoroshiYen8","KishuTanaoroshiYen8",null,8]
[614,9,"Label","Lbl9_KishuTanaoroshiYen9","KishuTanaoroshiYen9",null,9]
[615,9,"Label","Lbl9_KishuTanaoroshiYen10","KishuTanaoroshiYen10",null,10]
[616,9,"Label","Lbl9_KishuTanaoroshiYen11","KishuTanaoroshiYen11"]
[617,9,"Label","Lbl9_HanbaiKingaku","HanbaiKingaku"]
[618,9,"Label","Lbl9_HanbaiKingaku_1","HanbaiKingaku_2"]
[619,9,"Label","Lbl9_HanbaiKingakuLbl1","HanbaiKingakuLbl1","HanbaiKingakuLbl",1]
[620,9,"Label","Lbl9_HanbaiKingakuLbl2","HanbaiKingakuLbl2","HanbaiKingakuLbl",2]
[621,9,"Label","Lbl9_HanbaiKingakuLbl3","HanbaiKingakuLbl3","HanbaiKingakuLbl",3]
[622,9,"Label","Lbl9_HanbaiKingakuLbl4","HanbaiKingakuLbl4","HanbaiKingakuLbl",4]
[623,9,"Label","Lbl9_HanbaiKingakuLbl5","HanbaiKingakuLbl5","HanbaiKingakuLbl",5]
[624,9,"Label","Lbl9_HanbaiKingakuLbl6","HanbaiKingakuLbl6","HanbaiKingakuLbl",6]
[625,9,"Label","Lbl9_HanbaiKingakuLbl7","HanbaiKingakuLbl7","HanbaiKingakuLbl",7]
[626,9,"Label","Lbl9_HanbaiKingakuLbl8","HanbaiKingakuLbl8","HanbaiKingakuLbl",8]
[627,9,"Label","Lbl9_HanbaiKingakuLbl9","HanbaiKingakuLbl9","HanbaiKingakuLbl",9]
[628,9,"Label","Lbl9_HanbaiKingakuLbl10","HanbaiKingakuLbl10","HanbaiKingakuLbl",10]
[629,9,"Label","Lbl9_HanbaiKingakuLbl11","HanbaiKingakuLbl11"]
[630,9,"Label","Lbl9_HanbaiKingakuYen1","HanbaiKingakuYen1",null,1]
[631,9,"Label","Lbl9_HanbaiKingakuYen2","HanbaiKingakuYen2",null,2]
[632,9,"Label","Lbl9_HanbaiKingakuYen3","HanbaiKingakuYen3",null,3]
[633,9,"Label","Lbl9_HanbaiKingakuYen4","HanbaiKingakuYen4",null,4]
[634,9,"Label","Lbl9_HanbaiKingakuYen5","HanbaiKingakuYen5",null,5]
[635,9,"Label","Lbl9_HanbaiKingakuYen6","HanbaiKingakuYen6",null,6]
[636,9,"Label","Lbl9_HanbaiKingakuYen7","HanbaiKingakuYen7",null,7]
[637,9,"Label","Lbl9_HanbaiKingakuYen8","HanbaiKingakuYen8",null,8]
[638,9,"Label","Lbl9_HanbaiKingakuYen9","HanbaiKingakuYen9",null,9]
[639,9,"Label","Lbl9_HanbaiKingakuYen10","HanbaiKingakuYen10",null,10]
[640,9,"Label","Lbl9_HanbaiKingakuYen11","HanbaiKingakuYen11"]
[641,9,"Label","Lbl9_JigyoShohiKingaku","JigyoShohiKingaku"]
[642,9,"Label","Lbl9_JigyoShohiKingaku_1","JigyoShohiKingaku_2"]
[643,9,"Label","Lbl9_JigyoShohiKingakuLbl1","JigyoShohiKingakuLbl1","JigyoShohiKingakuLbl",1]
[644,9,"Label","Lbl9_JigyoShohiKingakuLbl2","JigyoShohiKingakuLbl2","JigyoShohiKingakuLbl",2]
[645,9,"Label","Lbl9_JigyoShohiKingakuLbl3","JigyoShohiKingakuLbl3","JigyoShohiKingakuLbl",3]
[646,9,"Label","Lbl9_JigyoShohiKingakuLbl4","JigyoShohiKingakuLbl4","JigyoShohiKingakuLbl",4]
[647,9,"Label","Lbl9_JigyoShohiKingakuLbl5","JigyoShohiKingakuLbl5","JigyoShohiKingakuLbl",5]
[648,9,"Label","Lbl9_JigyoShohiKingakuLbl6","JigyoShohiKingakuLbl6","JigyoShohiKingakuLbl",6]
[649,9,"Label","Lbl9_JigyoShohiKingakuLbl7","JigyoShohiKingakuLbl7","JigyoShohiKingakuLbl",7]
[650,9,"Label","Lbl9_JigyoShohiKingakuLbl8","JigyoShohiKingakuLbl8","JigyoShohiKingakuLbl",8]
[651,9,"Label","Lbl9_JigyoShohiKingakuLbl9","JigyoShohiKingakuLbl9","JigyoShohiKingakuLbl",9]
[652,9,"Label","Lbl9_JigyoShohiKingakuLbl10","JigyoShohiKingakuLbl10","JigyoShohiKingakuLbl",10]
[653,9,"Label","Lbl9_JigyoShohiKingakuLbl11","JigyoShohiKingakuLbl11"]
[654,9,"Label","Lbl9_JigyoShohiKingakuYen1","JigyoShohiKingakuYen1",null,1]
[655,9,"Label","Lbl9_JigyoShohiKingakuYen2","JigyoShohiKingakuYen2",null,2]
[656,9,"Label","Lbl9_JigyoShohiKingakuYen3","JigyoShohiKingakuYen3",null,3]
[657,9,"Label","Lbl9_JigyoShohiKingakuYen4","JigyoShohiKingakuYen4",null,4]
[658,9,"Label","Lbl9_JigyoShohiKingakuYen5","JigyoShohiKingakuYen5",null,5]
[659,9,"Label","Lbl9_JigyoShohiKingakuYen6","JigyoShohiKingakuYen6",null,6]
[660,9,"Label","Lbl9_JigyoShohiKingakuYen7","JigyoShohiKingakuYen7",null,7]
[661,9,"Label","Lbl9_JigyoShohiKingakuYen8","JigyoShohiKingakuYen8",null,8]
[662,9,"Label","Lbl9_JigyoShohiKingakuYen9","JigyoShohiKingakuYen9",null,9]
[663,9,"Label","Lbl9_JigyoShohiKingakuYen10","JigyoShohiKingakuYen10",null,10]
[664,9,"Label","Lbl9_JigyoShohiKingakuYen11","JigyoShohiKingakuYen11"]
[665,9,"Label","Lbl9_KimatsuTanaoroshi","KimatsuTanaoroshi"]
[666,9,"Label","Lbl9_KimatsuTanaoroshi_1","KimatsuTanaoroshi_1"]
[667,9,"Label","Lbl9_KimatsuTanaoroshiKingakuLbl1","KimatsuTanaoroshiKingakuLbl1","KimatsuTanaoroshiKingakuLbl",1]
[668,9,"Label","Lbl9_KimatsuTanaoroshiKingakuLbl2","KimatsuTanaoroshiKingakuLbl2","KimatsuTanaoroshiKingakuLbl",2]
[669,9,"Label","Lbl9_KimatsuTanaoroshiKingakuLbl3","KimatsuTanaoroshiKingakuLbl3","KimatsuTanaoroshiKingakuLbl",3]
[670,9,"Label","Lbl9_KimatsuTanaoroshiKingakuLbl4","KimatsuTanaoroshiKingakuLbl4","KimatsuTanaoroshiKingakuLbl",4]
[671,9,"Label","Lbl9_KimatsuTanaoroshiKingakuLbl5","KimatsuTanaoroshiKingakuLbl5","KimatsuTanaoroshiKingakuLbl",5]
[672,9,"Label","Lbl9_KimatsuTanaoroshiKingakuLbl6","KimatsuTanaoroshiKingakuLbl6","KimatsuTanaoroshiKingakuLbl",6]
[673,9,"Label","Lbl9_KimatsuTanaoroshiKingakuLbl7","KimatsuTanaoroshiKingakuLbl7","KimatsuTanaoroshiKingakuLbl",7]
[674,9,"Label","Lbl9_KimatsuTanaoroshiKingakuLbl8","KimatsuTanaoroshiKingakuLbl8","KimatsuTanaoroshiKingakuLbl",8]
[675,9,"Label","Lbl9_KimatsuTanaoroshiKingakuLbl9","KimatsuTanaoroshiKingakuLbl9","KimatsuTanaoroshiKingakuLbl",9]
[676,9,"Label","Lbl9_KimatsuTanaoroshiKingakuLbl10","KimatsuTanaoroshiKingakuLbl10","KimatsuTanaoroshiKingakuLbl",10]
[677,9,"Label","Lbl9_KimatsuTanaoroshiKingakuLbl11","KimatsuTanaoroshiKingakuLbl11"]
[678,9,"Label","Lbl9_KimatsuTanaoroshiYen1","KimatsuTanaoroshiYen1",null,1]
[679,9,"Label","Lbl9_KimatsuTanaoroshiYen2","KimatsuTanaoroshiYen2",null,2]
[680,9,"Label","Lbl9_KimatsuTanaoroshiYen3","KimatsuTanaoroshiYen3",null,3]
[681,9,"Label","Lbl9_KimatsuTanaoroshiYen4","KimatsuTanaoroshiYen4",null,4]
[682,9,"Label","Lbl9_KimatsuTanaoroshiYen5","KimatsuTanaoroshiYen5",null,5]
[683,9,"Label","Lbl9_KimatsuTanaoroshiYen6","KimatsuTanaoroshiYen6",null,6]
[684,9,"Label","Lbl9_KimatsuTanaoroshiYen7","KimatsuTanaoroshiYen7",null,7]
[685,9,"Label","Lbl9_KimatsuTanaoroshiYen8","KimatsuTanaoroshiYen8",null,8]
[686,9,"Label","Lbl9_KimatsuTanaoroshiYen9","KimatsuTanaoroshiYen9",null,9]
[687,9,"Label","Lbl9_KimatsuTanaoroshiYen10","KimatsuTanaoroshiYen10",null,10]
[688,9,"Label","Lbl9_KimatsuTanaoroshiYen11","KimatsuTanaoroshiYen11"]
[689,9,"Label","Lbl9_SuryobaraiChosei","SuryobaraiChosei"]
[690,9,"Label","Lbl9_SuryobaraiChosei_1","SuryobaraiChosei_1"]
[691,9,"Label","Lbl9_SuryobaraiChosei1","SuryobaraiChosei1","SuryobaraiChosei",1]
[692,9,"Label","Lbl9_SuryobaraiChosei2","SuryobaraiChosei2","SuryobaraiChosei",2]
[693,9,"Label","Lbl9_SuryobaraiChosei3","SuryobaraiChosei3","SuryobaraiChosei",3]
[694,9,"Label","Lbl9_SuryobaraiChosei4","SuryobaraiChosei4","SuryobaraiChosei",4]
[695,9,"Label","Lbl9_SuryobaraiChosei5","SuryobaraiChosei5","SuryobaraiChosei",5]
[696,9,"Label","Lbl9_SuryobaraiChosei6","SuryobaraiChosei6","SuryobaraiChosei",6]
[697,9,"Label","Lbl9_SuryobaraiChosei7","SuryobaraiChosei7","SuryobaraiChosei",7]
[698,9,"Label","Lbl9_SuryobaraiChosei8","SuryobaraiChosei8","SuryobaraiChosei",8]
[699,9,"Label","Lbl9_SuryobaraiChosei9","SuryobaraiChosei9","SuryobaraiChosei",9]
[700,9,"Label","Lbl9_SuryobaraiChosei10","SuryobaraiChosei10","SuryobaraiChosei",10]
[701,9,"Label","Lbl9_SuryobaraiChosei11","SuryobaraiChosei11"]
[702,9,"Label","Lbl9_SuryobaraiChoseiYen1","SuryobaraiChoseiYen1",null,1]
[703,9,"Label","Lbl9_SuryobaraiChoseiYen2","SuryobaraiChoseiYen2",null,2]
[704,9,"Label","Lbl9_SuryobaraiChoseiYen3","SuryobaraiChoseiYen3",null,3]
[705,9,"Label","Lbl9_SuryobaraiChoseiYen4","SuryobaraiChoseiYen4",null,4]
[706,9,"Label","Lbl9_SuryobaraiChoseiYen5","SuryobaraiChoseiYen5",null,5]
[707,9,"Label","Lbl9_SuryobaraiChoseiYen6","SuryobaraiChoseiYen6",null,6]
[708,9,"Label","Lbl9_SuryobaraiChoseiYen7","SuryobaraiChoseiYen7",null,7]
[709,9,"Label","Lbl9_SuryobaraiChoseiYen8","SuryobaraiChoseiYen8",null,8]
[710,9,"Label","Lbl9_SuryobaraiChoseiYen9","SuryobaraiChoseiYen9",null,9]
[711,9,"Label","Lbl9_SuryobaraiChoseiYen10","SuryobaraiChoseiYen10",null,10]
[712,9,"Label","Lbl9_SuryobaraiChoseiYen11","SuryobaraiChoseiYen11"]
[713,9,"Label","Lbl9_NogyoShunyuKingaku","NogyoShunyuKingaku"]
[714,9,"Label","Lbl9_NogyoShunyuKingaku_1","NogyoShunyuKingaku_1"]
[715,9,"Label","Lbl9_NogyoShunyuKingaku_2","NogyoShunyuKingaku_2"]
[716,9,"Label","Lbl9_NogyoShunyuKingaku1","NogyoShunyuKingaku1","NogyoShunyuKingaku",1]
[717,9,"Label","Lbl9_NogyoShunyuKingaku2","NogyoShunyuKingaku2","NogyoShunyuKingaku",2]
[718,9,"Label","Lbl9_NogyoShunyuKingaku3","NogyoShunyuKingaku3","NogyoShunyuKingaku",3]
[719,9,"Label","Lbl9_NogyoShunyuKingaku4","NogyoShunyuKingaku4","NogyoShunyuKingaku",4]
[720,9,"Label","Lbl9_NogyoShunyuKingaku5","NogyoShunyuKingaku5","NogyoShunyuKingaku",5]
[721,9,"Label","Lbl9_NogyoShunyuKingaku6","NogyoShunyuKingaku6","NogyoShunyuKingaku",6]
[722,9,"Label","Lbl9_NogyoShunyuKingaku7","NogyoShunyuKingaku7","NogyoShunyuKingaku",7]
[723,9,"Label","Lbl9_NogyoShunyuKingaku8","NogyoShunyuKingaku8","NogyoShunyuKingaku",8]
[724,9,"Label","Lbl9_NogyoShunyuKingaku9","NogyoShunyuKingaku9","NogyoShunyuKingaku",9]
[725,9,"Label","Lbl9_NogyoShunyuKingaku10","NogyoShunyuKingaku10","NogyoShunyuKingaku",10]
[726,9,"Label","Lbl9_NogyoShunyuKingaku11","NogyoShunyuKingaku11"]
[727,9,"Label","Lbl9_NogyoShunyuKingakuYen1","NogyoShunyuKingakuYen1",null,1]
[728,9,"Label","Lbl9_NogyoShunyuKingakuYen2","NogyoShunyuKingakuYen2",null,2]
[729,9,"Label","Lbl9_NogyoShunyuKingakuYen3","NogyoShunyuKingakuYen3",null,3]
[730,9,"Label","Lbl9_NogyoShunyuKingakuYen4","NogyoShunyuKingakuYen4",null,4]
[731,9,"Label","Lbl9_NogyoShunyuKingakuYen5","NogyoShunyuKingakuYen5",null,5]
[732,9,"Label","Lbl9_NogyoShunyuKingakuYen6","NogyoShunyuKingakuYen6",null,6]
[733,9,"Label","Lbl9_NogyoShunyuKingakuYen7","NogyoShunyuKingakuYen7",null,7]
[734,9,"Label","Lbl9_NogyoShunyuKingakuYen8","NogyoShunyuKingakuYen8",null,8]
[735,9,"Label","Lbl9_NogyoShunyuKingakuYen9","NogyoShunyuKingakuYen9",null,9]
[736,9,"Label","Lbl9_NogyoShunyuKingakuYen10","NogyoShunyuKingakuYen10",null,10]
[737,9,"Label","Lbl9_NogyoShunyuKingakuYen11","NogyoShunyuKingakuYen11"]
[738,9,"Label","Lbl9_MikomiNogyoShunyu","MikomiNogyoShunyu"]
[739,9,"Label","Lbl9_MikomiNogyoShunyu_1","MikomiNogyoShunyu_1"]
[740,9,"Label","Lbl9_MikomiNogyoShunyu1","MikomiNogyoShunyu1","MikomiNogyoShunyu",1]
[741,9,"Label","Lbl9_MikomiNogyoShunyu2","MikomiNogyoShunyu2","MikomiNogyoShunyu",2]
[742,9,"Label","Lbl9_MikomiNogyoShunyu3","MikomiNogyoShunyu3","MikomiNogyoShunyu",3]
[743,9,"Label","Lbl9_MikomiNogyoShunyu4","MikomiNogyoShunyu4","MikomiNogyoShunyu",4]
[744,9,"Label","Lbl9_MikomiNogyoShunyu5","MikomiNogyoShunyu5","MikomiNogyoShunyu",5]
[745,9,"Label","Lbl9_MikomiNogyoShunyu6","MikomiNogyoShunyu6","MikomiNogyoShunyu",6]
[746,9,"Label","Lbl9_MikomiNogyoShunyu7","MikomiNogyoShunyu7","MikomiNogyoShunyu",7]
[747,9,"Label","Lbl9_MikomiNogyoShunyu8","MikomiNogyoShunyu8","MikomiNogyoShunyu",8]
[748,9,"Label","Lbl9_MikomiNogyoShunyu9","MikomiNogyoShunyu9","MikomiNogyoShunyu",9]
[749,9,"Label","Lbl9_MikomiNogyoShunyu10","MikomiNogyoShunyu10","MikomiNogyoShunyu",10]
[750,9,"Label","Lbl9_MikomiNogyoShunyu11","MikomiNogyoShunyu11"]
[751,9,"Label","Lbl9_MikomiNogyoShunyuYen1","MikomiNogyoShunyuYen1",null,1]
[752,9,"Label","Lbl9_MikomiNogyoShunyuYen2","MikomiNogyoShunyuYen2",null,2]
[753,9,"Label","Lbl9_MikomiNogyoShunyuYen3","MikomiNogyoShunyuYen3",null,3]
[754,9,"Label","Lbl9_MikomiNogyoShunyuYen4","MikomiNogyoShunyuYen4",null,4]
[755,9,"Label","Lbl9_MikomiNogyoShunyuYen5","MikomiNogyoShunyuYen5",null,5]
[756,9,"Label","Lbl9_MikomiNogyoShunyuYen6","MikomiNogyoShunyuYen6",null,6]
[757,9,"Label","Lbl9_MikomiNogyoShunyuYen7","MikomiNogyoShunyuYen7",null,7]
[758,9,"Label","Lbl9_MikomiNogyoShunyuYen8","MikomiNogyoShunyuYen8",null,8]
[759,9,"Label","Lbl9_MikomiNogyoShunyuYen9","MikomiNogyoShunyuYen9",null,9]
[760,9,"Label","Lbl9_MikomiNogyoShunyuYen10","MikomiNogyoShunyuYen10",null,10]
[761,9,"Label","Lbl9_MikomiNogyoShunyuYen11","MikomiNogyoShunyuYen11"]
[762,9,"Label","Lbl9_NogyoShunyuZogengaku","NogyoShunyuZogengaku"]
[763,9,"Label","Lbl9_NogyoShunyuZogengaku_1","NogyoShunyuZogengaku_1"]
[764,9,"Label","Lbl9_NogyoShunyuZogengaku1","NogyoShunyuZogengaku1","NogyoShunyuZogengaku",1]
[765,9,"Label","Lbl9_NogyoShunyuZogengaku2","NogyoShunyuZogengaku2","NogyoShunyuZogengaku",2]
[766,9,"Label","Lbl9_NogyoShunyuZogengaku3","NogyoShunyuZogengaku3","NogyoShunyuZogengaku",3]
[767,9,"Label","Lbl9_NogyoShunyuZogengaku4","NogyoShunyuZogengaku4","NogyoShunyuZogengaku",4]
[768,9,"Label","Lbl9_NogyoShunyuZogengaku5","NogyoShunyuZogengaku5","NogyoShunyuZogengaku",5]
[769,9,"Label","Lbl9_NogyoShunyuZogengaku6","NogyoShunyuZogengaku6","NogyoShunyuZogengaku",6]
[770,9,"Label","Lbl9_NogyoShunyuZogengaku7","NogyoShunyuZogengaku7","NogyoShunyuZogengaku",7]
[771,9,"Label","Lbl9_NogyoShunyuZogengaku8","NogyoShunyuZogengaku8","NogyoShunyuZogengaku",8]
[772,9,"Label","Lbl9_NogyoShunyuZogengaku9","NogyoShunyuZogengaku9","NogyoShunyuZogengaku",9]
[773,9,"Label","Lbl9_NogyoShunyuZogengaku10","NogyoShunyuZogengaku10","NogyoShunyuZogengaku",10]
[774,9,"Label","Lbl9_NogyoShunyuZogengaku11","NogyoShunyuZogengaku11"]
[775,9,"Label","Lbl9_NogyoShunyuZogengakuYen1","NogyoShunyuZogengakuYen1",null,1]
[776,9,"Label","Lbl9_NogyoShunyuZogengakuYen2","NogyoShunyuZogengakuYen2",null,2]
[777,9,"Label","Lbl9_NogyoShunyuZogengakuYen3","NogyoShunyuZogengakuYen3",null,3]
[778,9,"Label","Lbl9_NogyoShunyuZogengakuYen4","NogyoShunyuZogengakuYen4",null,4]
[779,9,"Label","Lbl9_NogyoShunyuZogengakuYen5","NogyoShunyuZogengakuYen5",null,5]
[780,9,"Label","Lbl9_NogyoShunyuZogengakuYen6","NogyoShunyuZogengakuYen6",null,6]
[781,9,"Label","Lbl9_NogyoShunyuZogengakuYen7","NogyoShunyuZogengakuYen7",null,7]
[782,9,"Label","Lbl9_NogyoShunyuZogengakuYen8","NogyoShunyuZogengakuYen8",null,8]
[783,9,"Label","Lbl9_NogyoShunyuZogengakuYen9","NogyoShunyuZogengakuYen9",null,9]
[784,9,"Label","Lbl9_NogyoShunyuZogengakuYen10","NogyoShunyuZogengakuYen10",null,10]
[785,9,"Label","Lbl9_NogyoShunyuZogengakuYen11","NogyoShunyuZogengakuYen11"]
[786,10,"Label","Lbl10_Chushaku2","Chushaku2",null,null,null,true]
[787,10,"Label","Lbl10_HokenryoShisan1","HokenryoShisan1",null,null,null,true]
[788,10,"Label","Lbl10_HokenryoShisan2","HokenryoShisan2",null,null,null,true]
[789,10,"Label","Lbl10_HokenryoShisan3","HokenryoShisan3",null,null,null,true]
[790,10,"Button","Btn10_HokenryoShisan","HokenryoShisan",null,null,null,true]
[791,10,"Check","CBx10_SeikyuSuru","SeikyuSuru",null,null,null,true,null,null,10]
[792,10,"Check","CBx10_SeikyuSuruHokenkin","SeikyuSuruHokenkin",null,null,null,true,null,null,10]
[793,10,"Check","CBx10_SeikyuSuruTokuyakuHotenkin","SeikyuSuruTokuyakuHotenkin",null,null,null,true,null,null,10]
[794,10,"Check","CBx10_SeikyuShinai","SeikyuShinai",null,null,null,true,null,null,10]

{"sheet":"Element","index":3,"n_rows":11,"n_cols":24,"rows_kept":11,"cut":false,"hidden":false,"merged":[]}
["縦要素数",{"$f":"COUNTA(A5:A105)","v":5}]
["横要素数",{"$f":"MAX(C5:C105)","v":21}]
[]
[null,null,"要素数",1,2,3,4,5,6,7,8,9,10,11,12,13,14,15,16,17,18,19,20,21]
["CBx3_HokenStartY","HokenStartY",{"$f":"COUNTA(D5:X5)","v":1},"平成31年/令和元年"]
["CBx3_HotenHoshiki","HotenHoshiki",{"$f":"COUNTA(D6:X6)","v":2},"保険方式＋積立方式","保険方式のみ"]
["CBx3_KikenDankaiKubun","KikenDankaiKubun",{"$f":"COUNTA(D7:X7)","v":21}," 10区分","  9区分","  8区分","  7区分","  6区分","  5区分","  4区分","  3区分","  2区分","  1区分","  0区分"," -1区分"," -2区分"," -3区分"," -4区分"," -5区分"," -6区分"," -7区分"," -8区分"," -9区分","-10区分"]
["CBx3_GekihenKanwaSochiTekiyo","GekihenKanwaSochiTekiyo",{"$f":"COUNTA(D8:X8)","v":2},"激変緩和措置適用なし","激変緩和措置適用あり"]
["CBx3_MikomiNogyoTaishoHinmoku","MikomiNogyoTaishoHinmoku",{"$f":"COUNTA(D9:X9)","v":11}," 1品目"," 2品目"," 3品目"," 4品目"," 5品目"," 6品目"," 7品目"," 8品目"," 9品目","10品目","11品目以上"]
[]
[null,null,null,null,"令和  2年","令和  3年","令和  4年"]

{"sheet":"LoadData","index":4,"n_rows":0,"n_cols":0,"rows_kept":0,"cut":false,"hidden":false,"merged":[]}

{"sheet":"3年後見込","index":5,"n_rows":44,"n_cols":22,"rows_kept":44,"cut":false,"hidden":false,"merged":[[42,2,42,8],[9,2,9,10],[15,2,15,9],[21,2,21,8],[30,2,30,10],[36,2,36,9]]}
[null,null,"10年前","9年前","8年前","7年前","6年前","5年前","4年前","3年前","2年前","1年前","計",null,"保険料率","保険限度","補償の下限","危険段階","KEY",null,"標準保険料率","KEY"]
[null,"損害率",100,100,100,100,100,100,100,100,100,100,null,null,{"$f":"VLOOKUP(S2,保険料率!D:E,2,FALSE)","v":2.1589999999999998},{"$f":"Hoken_HoshoGendo","v":80},{"$f":"Hoken_HoshoKagen","v":0},{"$f":"KikenDankai","v":0},{"$f":"TEXT(P2,\"00\")&TEXT(Q2,\"00\")&TEXT(R2+10,\"00\")","v":"800010"},null,{"$f":"VLOOKUP(V2,保険料率!I:J,2,FALSE)","v":2.1589999999999998},{"$f":"TEXT(P2,\"00\")&TEXT(Q2,\"00\")","v":"8000"}]
[null,"ウェイト",10,20,30,40,50,60,70,80,90,100,null,null,"保険料",null,null,null,null,null,"標準保険料"]
[null,"ポイント",{"$f":"C2*C3","v":1000},{"$f":"D2*D3","v":2000},3000,4000,5000,6000,7000,8000,9000,10000,{"$f":"SUM(C4:L4)","v":55000},null,{"$f":"ROUNDUP(ROUNDDOWN(HokenKingaku*O2/100,0)/2,0)","v":0},null,null,null,null,null,{"$f":"ROUNDDOWN(HokenKingaku*U2/100,0)","v":0}]
[]
[]
[null,null,"10年前","9年前","8年前","7年前","6年前","5年前","4年前","3年前","2年前","1年前","計",null,"保険料率","保険限度","補償の下限","危険段階","KEY",null,"標準保険料率","KEY"]
[null,"損害率",null,null,null,null,null,null,null,null,null,{"$f":"ROUNDDOWN(結果_Form!K57/'3年後見込'!U4*100,0)","v":{"$error":"#DIV/0!"}},null,null,{"$f":"VLOOKUP(S8,保険料率!D:E,2,FALSE)","v":{"$error":"#DIV/0!"}},{"$f":"Hoken_HoshoGendo","v":80},{"$f":"Hoken_HoshoKagen","v":0},{"$f":"損害率!D27","v":{"$error":"#DIV/0!"}},{"$f":"TEXT(P8,\"00\")&TEXT(Q8,\"00\")&TEXT(R8+10,\"00\")","v":{"$error":"#DIV/0!"}},null,{"$f":"VLOOKUP(V8,保険料率!I:J,2,FALSE)","v":2.1589999999999998},{"$f":"TEXT(P8,\"00\")&TEXT(Q8,\"00\")","v":"8000"}]
[null,"ウェイト",null,null,null,null,null,null,null,null,null,{"$f":"L3","v":100},null,null,"保険料","標準保険料",null,null,null,null,"標準保険料"]
[null,"ポイント",{"$f":"IF(KajuHeikinSongairitsuKiso1>0,KajuHeikinSongairitsuKiso1,SUM(C4:K4))","v":45000},null,null,null,null,null,null,null,null,{"$f":"L8*L9","v":{"$error":"#DIV/0!"}},{"$f":"SUM(C10:L10)","v":{"$error":"#DIV/0!"}},null,{"$f":"ROUNDUP(ROUNDDOWN(HokenKingaku*O8/100,0)/2,0)","v":{"$error":"#DIV/0!"}},{"$f":"ROUNDDOWN(HokenKingaku*O8/100,0)","v":{"$error":"#DIV/0!"}},null,null,null,null,{"$f":"ROUNDDOWN(HokenKingaku*U8/100,0)","v":0}]
[null,"加重平均損害率",null,null,null,null,null,null,null,null,null,null,{"$f":"M10/M$4*100","v":{"$error":"#DIV/0!"}}]
[]
[null,null,"10年前","9年前","8年前","7年前","6年前","5年前","4年前","3年前","2年前","1年前","計",null,"保険料率","保険限度","補償の下限","危険段階","KEY",null,"標準保険料率","KEY"]
[null,"損害率",null,null,null,null,null,null,null,null,{"$f":"L8","v":{"$error":"#DIV/0!"}},0,null,null,{"$f":"VLOOKUP(S14,保険料率!D:E,2,FALSE)","v":{"$error":"#DIV/0!"}},{"$f":"Hoken_HoshoGendo","v":80},{"$f":"Hoken_HoshoKagen","v":0},{"$f":"損害率!E27","v":{"$error":"#DIV/0!"}},{"$f":"TEXT(P14,\"00\")&TEXT(Q14,\"00\")&TEXT(R14+10,\"00\")","v":{"$error":"#DIV/0!"}},null,{"$f":"VLOOKUP(V14,保険料率!I:J,2,FALSE)","v":2.1589999999999998},{"$f":"TEXT(P14,\"00\")&TEXT(Q14,\"00\")","v":"8000"}]
[null,"ウェイト",null,null,null,null,null,null,null,null,{"$f":"K3","v":90},{"$f":"L3","v":100},null,null,"保険料",null,null,null,null,null,"標準保険料"]
[null,"ポイント",{"$f":"IF(KajuHeikinSongairitsuKiso2>0,KajuHeikinSongairitsuKiso2,SUM(C4:J4))","v":36000},null,null,null,null,null,null,null,{"$f":"K14*K15","v":{"$error":"#DIV/0!"}},{"$f":"L14*L15","v":0},{"$f":"SUM(C16:L16)","v":{"$error":"#DIV/0!"}},null,{"$f":"ROUNDUP(ROUNDDOWN(HokenKingaku*O14/100,0)/2,0)","v":{"$error":"#DIV/0!"}},null,null,null,null,null,{"$f":"ROUNDDOWN(HokenKingaku*U14/100,0)","v":0}]
[null,"加重平均損害率",null,null,null,null,null,null,null,null,null,null,{"$f":"M16/M$4*100","v":{"$error":"#DIV/0!"}}]
[]
[null,null,"10年前","9年前","8年前","7年前","6年前","5年前","4年前","3年前","2年前","1年前","計",null,"保険料率","保険限度","補償の下限","危険段階","KEY",null,"標準保険料率","KEY"]
[null,"損害率",null,null,null,null,null,null,null,{"$f":"K14","v":{"$error":"#DIV/0!"}},0,0,null,null,{"$f":"VLOOKUP(S20,保険料率!D:E,2,FALSE)","v":{"$error":"#DIV/0!"}},{"$f":"Hoken_HoshoGendo","v":80},{"$f":"Hoken_HoshoKagen","v":0},{"$f":"損害率!F27","v":{"$error":"#DIV/0!"}},{"$f":"TEXT(P20,\"00\")&TEXT(Q20,\"00\")&TEXT(R20+10,\"00\")","v":{"$error":"#DIV/0!"}},null,{"$f":"VLOOKUP(V20,保険料率!I:J,2,FALSE)","v":2.1589999999999998},{"$f":"TEXT(P20,\"00\")&TEXT(Q20,\"00\")","v":"8000"}]
[null,"ウェイト",null,null,null,null,null,null,null,{"$f":"J3","v":80},{"$f":"K3","v":90},{"$f":"L3","v":100},null,null,"保険料",null,null,null,null,null,"標準保険料"]
[null,"ポイント",{"$f":"IF(KajuHeikinSongairitsuKiso3>0,KajuHeikinSongairitsuKiso3,SUM(C4:I4))","v":28000},null,null,null,null,null,null,{"$f":"J20*J21","v":{"$error":"#DIV/0!"}},{"$f":"K20*K21","v":0},{"$f":"L20*L21","v":0},{"$f":"SUM(C22:L22)","v":{"$error":"#DIV/0!"}},null,{"$f":"ROUNDUP(ROUNDDOWN(HokenKingaku*O20/100,0)/2,0)","v":{"$error":"#DIV/0!"}},null,null,null,null,null,{"$f":"ROUNDDOWN(HokenKingaku*U20/100,0)","v":0}]
[null,"加重平均損害率",null,null,null,null,null,null,null,null,null,null,{"$f":"M22/M$4*100","v":{"$error":"#DIV/0!"}}]
[]
[]
[]
[]
[null,null,"10年前","9年前","8年前","7年前","6年前","5年前","4年前","3年前","2年前","1年前","計",null,"保険料率","保険限度","補償の下限","危険段階","KEY",null,"標準保険料率","KEY"]
[null,"損害率",null,null,null,null,null,null,null,null,null,{"$f":"結果_Form!K78/'3年後見込'!O4*100","v":{"$error":"#DIV/0!"}},null,null,{"$f":"VLOOKUP(S29,保険料率!D:E,2,FALSE)","v":{"$error":"#DIV/0!"}},{"$f":"Hoken_HoshoGendo","v":80},{"$f":"Hoken_HoshoKagen","v":0},{"$f":"損害率!L27","v":{"$error":"#DIV/0!"}},{"$f":"TEXT(P29,\"00\")&TEXT(Q29,\"00\")&TEXT(R29+10,\"00\")","v":{"$error":"#DIV/0!"}},null,{"$f":"VLOOKUP(V29,保険料率!I:J,2,FALSE)","v":2.1589999999999998},{"$f":"TEXT(P29,\"00\")&TEXT(Q29,\"00\")","v":"8000"}]
[null,"ウェイト",null,null,null,null,null,null,null,null,null,{"$f":"L3","v":100},null,null,"保険料",null,null,null,null,null,"標準保険料"]
[null,"ポイント",{"$f":"C10","v":45000},null,null,null,null,null,null,null,null,{"$f":"L29*L30","v":{"$error":"#DIV/0!"}},{"$f":"SUM(C31:L31)","v":{"$error":"#DIV/0!"}},null,{"$f":"ROUNDUP(ROUNDDOWN(HokenKingaku*O29/100,0)/2,0)","v":{"$error":"#DIV/0!"}},null,null,null,null,null,{"$f":"ROUNDDOWN(HokenKingaku*U29/100,0)","v":0}]
[null,"加重平均損害率",null,null,null,null,null,null,null,null,null,null,{"$f":"M31/M$4*100","v":{"$error":"#DIV/0!"}}]
[]
[null,null,"10年前","9年前","8年前","7年前","6年前","5年前","4年前","3年前","2年前","1年前","計",null,"保険料率","保険限度","補償の下限","危険段階","KEY",null,"標準保険料率","KEY"]
[null,"損害率",null,null,null,null,null,null,null,null,{"$f":"L29","v":{"$error":"#DIV/0!"}},0,null,null,{"$f":"VLOOKUP(S35,保険料率!D:E,2,FALSE)","v":{"$error":"#DIV/0!"}},{"$f":"Hoken_HoshoGendo","v":80},{"$f":"Hoken_HoshoKagen","v":0},{"$f":"損害率!M27","v":{"$error":"#DIV/0!"}},{"$f":"TEXT(P35,\"00\")&TEXT(Q35,\"00\")&TEXT(R35+10,\"00\")","v":{"$error":"#DIV/0!"}},null,{"$f":"VLOOKUP(V35,保険料率!I:J,2,FALSE)","v":2.1589999999999998},{"$f":"TEXT(P35,\"00\")&TEXT(Q35,\"00\")","v":"8000"}]
[null,"ウェイト",null,null,null,null,null,null,null,null,{"$f":"K3","v":90},{"$f":"L3","v":100},null,null,"保険料",null,null,null,null,null,"標準保険料"]
[null,"ポイント",{"$f":"C16","v":36000},null,null,null,null,null,null,null,{"$f":"K35*K36","v":{"$error":"#DIV/0!"}},{"$f":"L35*L36","v":0},{"$f":"SUM(C37:L37)","v":{"$error":"#DIV/0!"}},null,{"$f":"ROUNDUP(ROUNDDOWN(HokenKingaku*O35/100,0)/2,0)","v":{"$error":"#DIV/0!"}},null,null,null,null,null,{"$f":"ROUNDDOWN(HokenKingaku*U35/100,0)","v":0}]
[null,"加重平均損害率",null,null,null,null,null,null,null,null,null,null,{"$f":"M37/M$4*100","v":{"$error":"#DIV/0!"}}]
[]
[null,null,"10年前","9年前","8年前","7年前","6年前","5年前","4年前","3年前","2年前","1年前","計",null,"保険料率","保険限度","補償の下限","危険段階","KEY",null,"標準保険料率","KEY"]
[null,"損害率",null,null,null,null,null,null,null,{"$f":"K35","v":{"$error":"#DIV/0!"}},0,0,null,null,{"$f":"VLOOKUP(S41,保険料率!D:E,2,FALSE)","v":{"$error":"#DIV/0!"}},{"$f":"Hoken_HoshoGendo","v":80},{"$f":"Hoken_HoshoKagen","v":0},{"$f":"損害率!N27","v":{"$error":"#DIV/0!"}},{"$f":"TEXT(P41,\"00\")&TEXT(Q41,\"00\")&TEXT(R41+10,\"00\")","v":{"$error":"#DIV/0!"}},null,{"$f":"VLOOKUP(V41,保険料率!I:J,2,FALSE)","v":2.1589999999999998},{"$f":"TEXT(P41,\"00\")&TEXT(Q41,\"00\")","v":"8000"}]
[null,"ウェイト",null,null,null,null,null,null,null,{"$f":"J3","v":80},{"$f":"K3","v":90},100,null,null,"保険料",null,null,null,null,null,"標準保険料"]
[null,"ポイント",{"$f":"C22","v":28000},null,null,null,null,null,null,{"$f":"J41*J42","v":{"$error":"#DIV/0!"}},{"$f":"K41*K42","v":0},{"$f":"L41*L42","v":0},{"$f":"SUM(C43:L43)","v":{"$error":"#DIV/0!"}},null,{"$f":"ROUNDUP(ROUNDDOWN(HokenKingaku*O41/100,0)/2,0)","v":{"$error":"#DIV/0!"}},null,null,null,null,null,{"$f":"ROUNDDOWN(HokenKingaku*U41/100,0)","v":0}]
[null,"加重平均損害率",null,null,null,null,null,null,null,null,null,null,{"$f":"M43/M$4*100","v":{"$error":"#DIV/0!"}}]

{"sheet":"損害率","index":6,"n_rows":29,"n_cols":14,"rows_kept":29,"cut":false,"hidden":false,"merged":[[28,0,28,2],[0,1,0,2],[0,0,1,0],[0,8,1,8],[26,8,26,9],[27,8,27,9],[28,8,28,10],[0,3,1,3],[0,4,1,4],[0,5,1,5],[23,0,23,2],[26,0,26,1],[0,9,0,10],[0,11,1,11],[0,12,1,12],[0,13,1,13],[23,8,23,10],[27,0,27,1]]}
["危険段階区分","加重平均損害率",null,"1年後","2年後","3年後",null,null,"危険段階区分","加重平均損害率",null,"1年後","2年後","3年後"]
[null,"　上限　","　下限　",null,null,null,null,null,null,"　上限　","　下限　"]
[10,null,195,{"$f":"IF('3年後見込'!$M$11>=損害率!$C3,A3,0)","v":{"$error":"#DIV/0!"}},{"$f":"IF('3年後見込'!$M$17>=損害率!$C3,A3,0)","v":{"$error":"#DIV/0!"}},{"$f":"IF('3年後見込'!$M$23>=損害率!$C3,A3,0)","v":{"$error":"#DIV/0!"}},null,null,10,null,195,{"$f":"IF('3年後見込'!$M$32>=損害率!$C3,I3,0)","v":{"$error":"#DIV/0!"}},{"$f":"IF('3年後見込'!$M$38>=損害率!$C3,I3,0)","v":{"$error":"#DIV/0!"}},{"$f":"IF('3年後見込'!$M$44>=損害率!$C3,I3,0)","v":{"$error":"#DIV/0!"}}]
[9,195,185,{"$f":"IF(AND(損害率!$B4>'3年後見込'!$M$11,'3年後見込'!$M$11>=損害率!$C4),A4,0)","v":{"$error":"#DIV/0!"}},{"$f":"IF(AND(損害率!$B4>'3年後見込'!$M$17,'3年後見込'!$M$17>=損害率!$C4),A4,0)","v":{"$error":"#DIV/0!"}},{"$f":"IF(AND(損害率!$B4>'3年後見込'!$M$23,'3年後見込'!$M$23>=損害率!$C4),A4,0)","v":{"$error":"#DIV/0!"}},null,null,9,195,185,{"$f":"IF(AND(損害率!$B4>'3年後見込'!$M$32,'3年後見込'!$M$32>=損害率!$C4),I4,0)","v":{"$error":"#DIV/0!"}},{"$f":"IF(AND(損害率!$B4>'3年後見込'!$M$38,'3年後見込'!$M$38>=損害率!$C4),I4,0)","v":{"$error":"#DIV/0!"}},{"$f":"IF(AND(損害率!$B4>'3年後見込'!$M$44,'3年後見込'!$M$44>=損害率!$C4),I4,0)","v":{"$error":"#DIV/0!"}}]
[8,185,175,{"$f":"IF(AND(損害率!$B5>'3年後見込'!$M$11,'3年後見込'!$M$11>=損害率!$C5),A5,0)","v":{"$error":"#DIV/0!"}},{"$f":"IF(AND(損害率!$B5>'3年後見込'!$M$17,'3年後見込'!$M$17>=損害率!$C5),A5,0)","v":{"$error":"#DIV/0!"}},{"$f":"IF(AND(損害率!$B5>'3年後見込'!$M$23,'3年後見込'!$M$23>=損害率!$C5),A5,0)","v":{"$error":"#DIV/0!"}},null,null,8,185,175,{"$f":"IF(AND(損害率!$B5>'3年後見込'!$M$32,'3年後見込'!$M$32>=損害率!$C5),I5,0)","v":{"$error":"#DIV/0!"}},{"$f":"IF(AND(損害率!$B5>'3年後見込'!$M$38,'3年後見込'!$M$38>=損害率!$C5),I5,0)","v":{"$error":"#DIV/0!"}},{"$f":"IF(AND(損害率!$B5>'3年後見込'!$M$44,'3年後見込'!$M$44>=損害率!$C5),I5,0)","v":{"$error":"#DIV/0!"}}]
[7,175,165,{"$f":"IF(AND(損害率!$B6>'3年後見込'!$M$11,'3年後見込'!$M$11>=損害率!$C6),A6,0)","v":{"$error":"#DIV/0!"}},{"$f":"IF(AND(損害率!$B6>'3年後見込'!$M$17,'3年後見込'!$M$17>=損害率!$C6),A6,0)","v":{"$error":"#DIV/0!"}},{"$f":"IF(AND(損害率!$B6>'3年後見込'!$M$23,'3年後見込'!$M$23>=損害率!$C6),A6,0)","v":{"$error":"#DIV/0!"}},null,null,7,175,165,{"$f":"IF(AND(損害率!$B6>'3年後見込'!$M$32,'3年後見込'!$M$32>=損害率!$C6),I6,0)","v":{"$error":"#DIV/0!"}},{"$f":"IF(AND(損害率!$B6>'3年後見込'!$M$38,'3年後見込'!$M$38>=損害率!$C6),I6,0)","v":{"$error":"#DIV/0!"}},{"$f":"IF(AND(損害率!$B6>'3年後見込'!$M$44,'3年後見込'!$M$44>=損害率!$C6),I6,0)","v":{"$error":"#DIV/0!"}}]
[6,165,155,{"$f":"IF(AND(損害率!$B7>'3年後見込'!$M$11,'3年後見込'!$M$11>=損害率!$C7),A7,0)","v":{"$error":"#DIV/0!"}},{"$f":"IF(AND(損害率!$B7>'3年後見込'!$M$17,'3年後見込'!$M$17>=損害率!$C7),A7,0)","v":{"$error":"#DIV/0!"}},{"$f":"IF(AND(損害率!$B7>'3年後見込'!$M$23,'3年後見込'!$M$23>=損害率!$C7),A7,0)","v":{"$error":"#DIV/0!"}},null,null,6,165,155,{"$f":"IF(AND(損害率!$B7>'3年後見込'!$M$32,'3年後見込'!$M$32>=損害率!$C7),I7,0)","v":{"$error":"#DIV/0!"}},{"$f":"IF(AND(損害率!$B7>'3年後見込'!$M$38,'3年後見込'!$M$38>=損害率!$C7),I7,0)","v":{"$error":"#DIV/0!"}},{"$f":"IF(AND(損害率!$B7>'3年後見込'!$M$44,'3年後見込'!$M$44>=損害率!$C7),I7,0)","v":{"$error":"#DIV/0!"}}]
[5,155,145,{"$f":"IF(AND(損害率!$B8>'3年後見込'!$M$11,'3年後見込'!$M$11>=損害率!$C8),A8,0)","v":{"$error":"#DIV/0!"}},{"$f":"IF(AND(損害率!$B8>'3年後見込'!$M$17,'3年後見込'!$M$17>=損害率!$C8),A8,0)","v":{"$error":"#DIV/0!"}},{"$f":"IF(AND(損害率!$B8>'3年後見込'!$M$23,'3年後見込'!$M$23>=損害率!$C8),A8,0)","v":{"$error":"#DIV/0!"}},null,null,5,155,145,{"$f":"IF(AND(損害率!$B8>'3年後見込'!$M$32,'3年後見込'!$M$32>=損害率!$C8),I8,0)","v":{"$error":"#DIV/0!"}},{"$f":"IF(AND(損害率!$B8>'3年後見込'!$M$38,'3年後見込'!$M$38>=損害率!$C8),I8,0)","v":{"$error":"#DIV/0!"}},{"$f":"IF(AND(損害率!$B8>'3年後見込'!$M$44,'3年後見込'!$M$44>=損害率!$C8),I8,0)","v":{"$error":"#DIV/0!"}}]
[4,145,135,{"$f":"IF(AND(損害率!$B9>'3年後見込'!$M$11,'3年後見込'!$M$11>=損害率!$C9),A9,0)","v":{"$error":"#DIV/0!"}},{"$f":"IF(AND(損害率!$B9>'3年後見込'!$M$17,'3年後見込'!$M$17>=損害率!$C9),A9,0)","v":{"$error":"#DIV/0!"}},{"$f":"IF(AND(損害率!$B9>'3年後見込'!$M$23,'3年後見込'!$M$23>=損害率!$C9),A9,0)","v":{"$error":"#DIV/0!"}},null,null,4,145,135,{"$f":"IF(AND(損害率!$B9>'3年後見込'!$M$32,'3年後見込'!$M$32>=損害率!$C9),I9,0)","v":{"$error":"#DIV/0!"}},{"$f":"IF(AND(損害率!$B9>'3年後見込'!$M$38,'3年後見込'!$M$38>=損害率!$C9),I9,0)","v":{"$error":"#DIV/0!"}},{"$f":"IF(AND(損害率!$B9>'3年後見込'!$M$44,'3年後見込'!$M$44>=損害率!$C9),I9,0)","v":{"$error":"#DIV/0!"}}]
[3,135,125,{"$f":"IF(AND(損害率!$B10>'3年後見込'!$M$11,'3年後見込'!$M$11>=損害率!$C10),A10,0)","v":{"$error":"#DIV/0!"}},{"$f":"IF(AND(損害率!$B10>'3年後見込'!$M$17,'3年後見込'!$M$17>=損害率!$C10),A10,0)","v":{"$error":"#DIV/0!"}},{"$f":"IF(AND(損害率!$B10>'3年後見込'!$M$23,'3年後見込'!$M$23>=損害率!$C10),A10,0)","v":{"$error":"#DIV/0!"}},null,null,3,135,125,{"$f":"IF(AND(損害率!$B10>'3年後見込'!$M$32,'3年後見込'!$M$32>=損害率!$C10),I10,0)","v":{"$error":"#DIV/0!"}},{"$f":"IF(AND(損害率!$B10>'3年後見込'!$M$38,'3年後見込'!$M$38>=損害率!$C10),I10,0)","v":{"$error":"#DIV/0!"}},{"$f":"IF(AND(損害率!$B10>'3年後見込'!$M$44,'3年後見込'!$M$44>=損害率!$C10),I10,0)","v":{"$error":"#DIV/0!"}}]
[2,125,115,{"$f":"IF(AND(損害率!$B11>'3年後見込'!$M$11,'3年後見込'!$M$11>=損害率!$C11),A11,0)","v":{"$error":"#DIV/0!"}},{"$f":"IF(AND(損害率!$B11>'3年後見込'!$M$17,'3年後見込'!$M$17>=損害率!$C11),A11,0)","v":{"$error":"#DIV/0!"}},{"$f":"IF(AND(損害率!$B11>'3年後見込'!$M$23,'3年後見込'!$M$23>=損害率!$C11),A11,0)","v":{"$error":"#DIV/0!"}},null,null,2,125,115,{"$f":"IF(AND(損害率!$B11>'3年後見込'!$M$32,'3年後見込'!$M$32>=損害率!$C11),I11,0)","v":{"$error":"#DIV/0!"}},{"$f":"IF(AND(損害率!$B11>'3年後見込'!$M$38,'3年後見込'!$M$38>=損害率!$C11),I11,0)","v":{"$error":"#DIV/0!"}},{"$f":"IF(AND(損害率!$B11>'3年後見込'!$M$44,'3年後見込'!$M$44>=損害率!$C11),I11,0)","v":{"$error":"#DIV/0!"}}]
[1,115,105,{"$f":"IF(AND(損害率!$B12>'3年後見込'!$M$11,'3年後見込'!$M$11>=損害率!$C12),A12,0)","v":{"$error":"#DIV/0!"}},{"$f":"IF(AND(損害率!$B12>'3年後見込'!$M$17,'3年後見込'!$M$17>=損害率!$C12),A12,0)","v":{"$error":"#DIV/0!"}},{"$f":"IF(AND(損害率!$B12>'3年後見込'!$M$23,'3年後見込'!$M$23>=損害率!$C12),A12,0)","v":{"$error":"#DIV/0!"}},null,null,1,115,105,{"$f":"IF(AND(損害率!$B12>'3年後見込'!$M$32,'3年後見込'!$M$32>=損害率!$C12),I12,0)","v":{"$error":"#DIV/0!"}},{"$f":"IF(AND(損害率!$B12>'3年後見込'!$M$38,'3年後見込'!$M$38>=損害率!$C12),I12,0)","v":{"$error":"#DIV/0!"}},{"$f":"IF(AND(損害率!$B12>'3年後見込'!$M$44,'3年後見込'!$M$44>=損害率!$C12),I12,0)","v":{"$error":"#DIV/0!"}}]
[0,105,95,{"$f":"IF(AND(損害率!$B13>'3年後見込'!$M$11,'3年後見込'!$M$11>=損害率!$C13),A13,0)","v":{"$error":"#DIV/0!"}},{"$f":"IF(AND(損害率!$B13>'3年後見込'!$M$17,'3年後見込'!$M$17>=損害率!$C13),A13,0)","v":{"$error":"#DIV/0!"}},{"$f":"IF(AND(損害率!$B13>'3年後見込'!$M$23,'3年後見込'!$M$23>=損害率!$C13),A13,0)","v":{"$error":"#DIV/0!"}},null,null,0,105,95,{"$f":"IF(AND(損害率!$B13>'3年後見込'!$M$32,'3年後見込'!$M$32>=損害率!$C13),I13,0)","v":{"$error":"#DIV/0!"}},{"$f":"IF(AND(損害率!$B13>'3年後見込'!$M$38,'3年後見込'!$M$38>=損害率!$C13),I13,0)","v":{"$error":"#DIV/0!"}},{"$f":"IF(AND(損害率!$B13>'3年後見込'!$M$44,'3年後見込'!$M$44>=損害率!$C13),I13,0)","v":{"$error":"#DIV/0!"}}]
[-1,95,85,{"$f":"IF(AND(損害率!$B14>'3年後見込'!$M$11,'3年後見込'!$M$11>=損害率!$C14),A14,0)","v":{"$error":"#DIV/0!"}},{"$f":"IF(AND(損害率!$B14>'3年後見込'!$M$17,'3年後見込'!$M$17>=損害率!$C14),A14,0)","v":{"$error":"#DIV/0!"}},{"$f":"IF(AND(損害率!$B14>'3年後見込'!$M$23,'3年後見込'!$M$23>=損害率!$C14),A14,0)","v":{"$error":"#DIV/0!"}},null,null,-1,95,85,{"$f":"IF(AND(損害率!$B14>'3年後見込'!$M$32,'3年後見込'!$M$32>=損害率!$C14),I14,0)","v":{"$error":"#DIV/0!"}},{"$f":"IF(AND(損害率!$B14>'3年後見込'!$M$38,'3年後見込'!$M$38>=損害率!$C14),I14,0)","v":{"$error":"#DIV/0!"}},{"$f":"IF(AND(損害率!$B14>'3年後見込'!$M$44,'3年後見込'!$M$44>=損害率!$C14),I14,0)","v":{"$error":"#DIV/0!"}}]
[-2,85,75,{"$f":"IF(AND(損害率!$B15>'3年後見込'!$M$11,'3年後見込'!$M$11>=損害率!$C15),A15,0)","v":{"$error":"#DIV/0!"}},{"$f":"IF(AND(損害率!$B15>'3年後見込'!$M$17,'3年後見込'!$M$17>=損害率!$C15),A15,0)","v":{"$error":"#DIV/0!"}},{"$f":"IF(AND(損害率!$B15>'3年後見込'!$M$23,'3年後見込'!$M$23>=損害率!$C15),A15,0)","v":{"$error":"#DIV/0!"}},null,null,-2,85,75,{"$f":"IF(AND(損害率!$B15>'3年後見込'!$M$32,'3年後見込'!$M$32>=損害率!$C15),I15,0)","v":{"$error":"#DIV/0!"}},{"$f":"IF(AND(損害率!$B15>'3年後見込'!$M$38,'3年後見込'!$M$38>=損害率!$C15),I15,0)","v":{"$error":"#DIV/0!"}},{"$f":"IF(AND(損害率!$B15>'3年後見込'!$M$44,'3年後見込'!$M$44>=損害率!$C15),I15,0)","v":{"$error":"#DIV/0!"}}]
[-3,75,65,{"$f":"IF(AND(損害率!$B16>'3年後見込'!$M$11,'3年後見込'!$M$11>=損害率!$C16),A16,0)","v":{"$error":"#DIV/0!"}},{"$f":"IF(AND(損害率!$B16>'3年後見込'!$M$17,'3年後見込'!$M$17>=損害率!$C16),A16,0)","v":{"$error":"#DIV/0!"}},{"$f":"IF(AND(損害率!$B16>'3年後見込'!$M$23,'3年後見込'!$M$23>=損害率!$C16),A16,0)","v":{"$error":"#DIV/0!"}},null,null,-3,75,65,{"$f":"IF(AND(損害率!$B16>'3年後見込'!$M$32,'3年後見込'!$M$32>=損害率!$C16),I16,0)","v":{"$error":"#DIV/0!"}},{"$f":"IF(AND(損害率!$B16>'3年後見込'!$M$38,'3年後見込'!$M$38>=損害率!$C16),I16,0)","v":{"$error":"#DIV/0!"}},{"$f":"IF(AND(損害率!$B16>'3年後見込'!$M$44,'3年後見込'!$M$44>=損害率!$C16),I16,0)","v":{"$error":"#DIV/0!"}}]
[-4,65,55,{"$f":"IF(AND(損害率!$B17>'3年後見込'!$M$11,'3年後見込'!$M$11>=損害率!$C17),A17,0)","v":{"$error":"#DIV/0!"}},{"$f":"IF(AND(損害率!$B17>'3年後見込'!$M$17,'3年後見込'!$M$17>=損害率!$C17),A17,0)","v":{"$error":"#DIV/0!"}},{"$f":"IF(AND(損害率!$B17>'3年後見込'!$M$23,'3年後見込'!$M$23>=損害率!$C17),A17,0)","v":{"$error":"#DIV/0!"}},null,null,-4,65,55,{"$f":"IF(AND(損害率!$B17>'3年後見込'!$M$32,'3年後見込'!$M$32>=損害率!$C17),I17,0)","v":{"$error":"#DIV/0!"}},{"$f":"IF(AND(損害率!$B17>'3年後見込'!$M$38,'3年後見込'!$M$38>=損害率!$C17),I17,0)","v":{"$error":"#DIV/0!"}},{"$f":"IF(AND(損害率!$B17>'3年後見込'!$M$44,'3年後見込'!$M$44>=損害率!$C17),I17,0)","v":{"$error":"#DIV/0!"}}]
[-5,55,45,{"$f":"IF(AND(損害率!$B18>'3年後見込'!$M$11,'3年後見込'!$M$11>=損害率!$C18),A18,0)","v":{"$error":"#DIV/0!"}},{"$f":"IF(AND(損害率!$B18>'3年後見込'!$M$17,'3年後見込'!$M$17>=損害率!$C18),A18,0)","v":{"$error":"#DIV/0!"}},{"$f":"IF(AND(損害率!$B18>'3年後見込'!$M$23,'3年後見込'!$M$23>=損害率!$C18),A18,0)","v":{"$error":"#DIV/0!"}},null,null,-5,55,45,{"$f":"IF(AND(損害率!$B18>'3年後見込'!$M$32,'3年後見込'!$M$32>=損害率!$C18),I18,0)","v":{"$error":"#DIV/0!"}},{"$f":"IF(AND(損害率!$B18>'3年後見込'!$M$38,'3年後見込'!$M$38>=損害率!$C18),I18,0)","v":{"$error":"#DIV/0!"}},{"$f":"IF(AND(損害率!$B18>'3年後見込'!$M$44,'3年後見込'!$M$44>=損害率!$C18),I18,0)","v":{"$error":"#DIV/0!"}}]
[-6,45,35,{"$f":"IF(AND(損害率!$B19>'3年後見込'!$M$11,'3年後見込'!$M$11>=損害率!$C19),A19,0)","v":{"$error":"#DIV/0!"}},{"$f":"IF(AND(損害率!$B19>'3年後見込'!$M$17,'3年後見込'!$M$17>=損害率!$C19),A19,0)","v":{"$error":"#DIV/0!"}},{"$f":"IF(AND(損害率!$B19>'3年後見込'!$M$23,'3年後見込'!$M$23>=損害率!$C19),A19,0)","v":{"$error":"#DIV/0!"}},null,null,-6,45,35,{"$f":"IF(AND(損害率!$B19>'3年後見込'!$M$32,'3年後見込'!$M$32>=損害率!$C19),I19,0)","v":{"$error":"#DIV/0!"}},{"$f":"IF(AND(損害率!$B19>'3年後見込'!$M$38,'3年後見込'!$M$38>=損害率!$C19),I19,0)","v":{"$error":"#DIV/0!"}},{"$f":"IF(AND(損害率!$B19>'3年後見込'!$M$44,'3年後見込'!$M$44>=損害率!$C19),I19,0)","v":{"$error":"#DIV/0!"}}]
[-7,35,25,{"$f":"IF(AND(損害率!$B20>'3年後見込'!$M$11,'3年後見込'!$M$11>=損害率!$C20),A20,0)","v":{"$error":"#DIV/0!"}},{"$f":"IF(AND(損害率!$B20>'3年後見込'!$M$17,'3年後見込'!$M$17>=損害率!$C20),A20,0)","v":{"$error":"#DIV/0!"}},{"$f":"IF(AND(損害率!$B20>'3年後見込'!$M$23,'3年後見込'!$M$23>=損害率!$C20),A20,0)","v":{"$error":"#DIV/0!"}},null,null,-7,35,25,{"$f":"IF(AND(損害率!$B20>'3年後見込'!$M$32,'3年後見込'!$M$32>=損害率!$C20),I20,0)","v":{"$error":"#DIV/0!"}},{"$f":"IF(AND(損害率!$B20>'3年後見込'!$M$38,'3年後見込'!$M$38>=損害率!$C20),I20,0)","v":{"$error":"#DIV/0!"}},{"$f":"IF(AND(損害率!$B20>'3年後見込'!$M$44,'3年後見込'!$M$44>=損害率!$C20),I20,0)","v":{"$error":"#DIV/0!"}}]
[-8,25,15,{"$f":"IF(AND(損害率!$B21>'3年後見込'!$M$11,'3年後見込'!$M$11>=損害率!$C21),A21,0)","v":{"$error":"#DIV/0!"}},{"$f":"IF(AND(損害率!$B21>'3年後見込'!$M$17,'3年後見込'!$M$17>=損害率!$C21),A21,0)","v":{"$error":"#DIV/0!"}},{"$f":"IF(AND(損害率!$B21>'3年後見込'!$M$23,'3年後見込'!$M$23>=損害率!$C21),A21,0)","v":{"$error":"#DIV/0!"}},null,null,-8,25,15,{"$f":"IF(AND(損害率!$B21>'3年後見込'!$M$32,'3年後見込'!$M$32>=損害率!$C21),I21,0)","v":{"$error":"#DIV/0!"}},{"$f":"IF(AND(損害率!$B21>'3年後見込'!$M$38,'3年後見込'!$M$38>=損害率!$C21),I21,0)","v":{"$error":"#DIV/0!"}},{"$f":"IF(AND(損害率!$B21>'3年後見込'!$M$44,'3年後見込'!$M$44>=損害率!$C21),I21,0)","v":{"$error":"#DIV/0!"}}]
[-9,15,5,{"$f":"IF(AND(損害率!$B22>'3年後見込'!$M$11,'3年後見込'!$M$11>=損害率!$C22),A22,0)","v":{"$error":"#DIV/0!"}},{"$f":"IF(AND(損害率!$B22>'3年後見込'!$M$17,'3年後見込'!$M$17>=損害率!$C22),A22,0)","v":{"$error":"#DIV/0!"}},{"$f":"IF(AND(損害率!$B22>'3年後見込'!$M$23,'3年後見込'!$M$23>=損害率!$C22),A22,0)","v":{"$error":"#DIV/0!"}},null,null,-9,15,5,{"$f":"IF(AND(損害率!$B22>'3年後見込'!$M$32,'3年後見込'!$M$32>=損害率!$C22),I22,0)","v":{"$error":"#DIV/0!"}},{"$f":"IF(AND(損害率!$B22>'3年後見込'!$M$38,'3年後見込'!$M$38>=損害率!$C22),I22,0)","v":{"$error":"#DIV/0!"}},{"$f":"IF(AND(損害率!$B22>'3年後見込'!$M$44,'3年後見込'!$M$44>=損害率!$C22),I22,0)","v":{"$error":"#DIV/0!"}}]
[-10,5,0,{"$f":"IF(AND(損害率!$B23>'3年後見込'!$M$11,'3年後見込'!$M$11>=損害率!$C23),A23,0)","v":{"$error":"#DIV/0!"}},{"$f":"IF(AND(損害率!$B23>'3年後見込'!$M$17,'3年後見込'!$M$17>=損害率!$C23),A23,0)","v":{"$error":"#DIV/0!"}},{"$f":"IF(AND(損害率!$B23>'3年後見込'!$M$23,'3年後見込'!$M$23>=損害率!$C23),A23,0)","v":{"$error":"#DIV/0!"}},null,null,-10,5,0,{"$f":"IF(AND(損害率!$B23>'3年後見込'!$M$32,'3年後見込'!$M$32>=損害率!$C23),I23,0)","v":{"$error":"#DIV/0!"}},{"$f":"IF(AND(損害率!$B23>'3年後見込'!$M$38,'3年後見込'!$M$38>=損害率!$C23),I23,0)","v":{"$error":"#DIV/0!"}},{"$f":"IF(AND(損害率!$B23>'3年後見込'!$M$44,'3年後見込'!$M$44>=損害率!$C23),I23,0)","v":{"$error":"#DIV/0!"}}]
["ダイレクト適用危険段階区分",null,null,{"$f":"SUM(D3:D23)","v":{"$error":"#DIV/0!"}},{"$f":"SUM(E3:E23)","v":{"$error":"#DIV/0!"}},{"$f":"SUM(F3:F23)","v":{"$error":"#DIV/0!"}},null,null,"ダイレクト適用危険段階区分",null,null,{"$f":"SUM(L3:L23)","v":{"$error":"#DIV/0!"}},{"$f":"SUM(M3:M23)","v":{"$error":"#DIV/0!"}},{"$f":"SUM(N3:N23)","v":{"$error":"#DIV/0!"}}]
[]
[]
["適用危険段階区分",null,{"$f":"KikenDankai","v":0},{"$f":"IF(AND(GekihenKanwaSochi_Now=\"あり\",ZennenSeikyuUmu11=\"なし\"),IF(DirectKikenDankai_SeikyuSuru1YearAfter>KikenDankai_Now,KikenDankai_Now,IF(KikenDankai_Now>DirectKikenDankai_SeikyuSuru1YearAfter,KikenDankai_Now-1,DirectKikenDankai_SeikyuSuru1YearAfter)),IF(DirectKikenDankai_SeikyuSuru1YearAfter>KikenDankai_Now+3,KikenDankai_Now+3,DirectKikenDankai_SeikyuSuru1YearAfter))","v":{"$error":"#DIV/0!"}},{"$f":"IF(AND(GekihenKanwaSochi_SeikyuSuru1YearAfter=\"あり\",ZennenSeikyuUmu12=\"なし\"),IF(DirectKikenDankai_SeikyuSuru2YearAfter>KikenDankai_SeikyuSuru1YearAfter,KikenDankai_SeikyuSuru1YearAfter,IF(KikenDankai_SeikyuSuru1YearAfter>DirectKikenDankai_SeikyuSuru2YearAfter,KikenDankai_SeikyuSuru1YearAfter-1,DirectKikenDankai_SeikyuSuru2YearAfter)),IF(DirectKikenDankai_SeikyuSuru2YearAfter>KikenDankai_SeikyuSuru1YearAfter+3,KikenDankai_SeikyuSuru1YearAfter+3,DirectKikenDankai_SeikyuSuru2YearAfter))","v":{"$error":"#DIV/0!"}},{"$f":"IF(AND(GekihenKanwaSochi_SeikyuSuru2YearAfter=\"あり\",ZennenSeikyuUmu13=\"なし\"),IF(DirectKikenDankai_SeikyuSuru3YearAfter>KikenDankai_SeikyuSuru2YearAfter,KikenDankai_SeikyuSuru2YearAfter,IF(KikenDankai_SeikyuSuru2YearAfter>DirectKikenDankai_SeikyuSuru3YearAfter,KikenDankai_SeikyuSuru2YearAfter-1,DirectKikenDankai_SeikyuSuru3YearAfter)),IF(DirectKikenDankai_SeikyuSuru3YearAfter>KikenDankai_SeikyuSuru2YearAfter+3,KikenDankai_SeikyuSuru2YearAfter+3,DirectKikenDankai_SeikyuSuru3YearAfter))","v":{"$error":"#DIV/0!"}},null,null,"適用危険段階区分",null,{"$f":"KikenDankai_Now","v":0},{"$f":"IF(AND(GekihenKanwaSochi_Now2=\"あり\",ZennenSeikyuUmu21=\"なし\"),IF(DirectKikenDankai_SeikyuShinai1YearAfter>KikenDankai_Now2,KikenDankai_Now2,IF(KikenDankai_Now2>DirectKikenDankai_SeikyuShinai1YearAfter,KikenDankai_Now2-1,DirectKikenDankai_SeikyuShinai1YearAfter)),IF(DirectKikenDankai_SeikyuShinai1YearAfter>KikenDankai_Now2+3,KikenDankai_Now2+3,DirectKikenDankai_SeikyuShinai1YearAfter))","v":{"$error":"#DIV/0!"}},{"$f":"IF(AND(GekihenKanwaSochi_SeikyuShinai1YearAfter=\"あり\",ZennenSeikyuUmu22=\"なし\"),IF(DirectKikenDankai_SeikyuShinai2YearAfter>KikenDankai_SeikyuShinai1YearAfter,KikenDankai_SeikyuShinai1YearAfter,IF(KikenDankai_SeikyuShinai1YearAfter>DirectKikenDankai_SeikyuShinai2YearAfter,KikenDankai_SeikyuShinai1YearAfter-1,DirectKikenDankai_SeikyuShinai2YearAfter)),IF(DirectKikenDankai_SeikyuShinai2YearAfter>KikenDankai_SeikyuShinai1YearAfter+3,KikenDankai_SeikyuShinai1YearAfter+3,DirectKikenDankai_SeikyuShinai2YearAfter))","v":{"$error":"#DIV/0!"}},{"$f":"IF(AND(GekihenKanwaSochi_SeikyuShinai2YearAfter=\"あり\",ZennenSeikyuUmu23=\"なし\"),IF(DirectKikenDankai_SeikyuShinai3YearAfter>KikenDankai_SeikyuShinai2YearAfter,KikenDankai_SeikyuShinai2YearAfter,IF(KikenDankai_SeikyuShinai2YearAfter>DirectKikenDankai_SeikyuShinai3YearAfter,KikenDankai_SeikyuShinai2YearAfter-1,DirectKikenDankai_SeikyuShinai3YearAfter)),IF(DirectKikenDankai_SeikyuShinai3YearAfter>KikenDankai_SeikyuShinai2YearAfter+3,KikenDankai_SeikyuShinai2YearAfter+3,DirectKikenDankai_SeikyuShinai3YearAfter))","v":{"$error":"#DIV/0!"}}]
["激変緩和措置適用",null,{"$f":"IF(GekihenKanwaSochiTekiyo=\"激変緩和措置適用なし\",\"なし\",\"あり\")","v":"なし"},{"$f":"IF(AND(GekihenKanwaSochi_Now=\"あり\",KikenDankai_Now=-10),\"なし\",IF(AND(GekihenKanwaSochi_Now=\"なし\",DirectKikenDankai_SeikyuSuru1YearAfter>KikenDankai_SeikyuSuru1YearAfter),\"あり\",GekihenKanwaSochi_Now))","v":{"$error":"#DIV/0!"}},{"$f":"IF(AND(GekihenKanwaSochi_SeikyuSuru1YearAfter=\"あり\",KikenDankai_SeikyuSuru1YearAfter=-10),\"なし\",IF(AND(GekihenKanwaSochi_SeikyuSuru1YearAfter=\"なし\",DirectKikenDankai_SeikyuSuru2YearAfter>KikenDankai_SeikyuSuru2YearAfter),\"あり\",GekihenKanwaSochi_SeikyuSuru1YearAfter))","v":{"$error":"#DIV/0!"}},{"$f":"IF(AND(GekihenKanwaSochi_SeikyuSuru2YearAfter=\"あり\",KikenDankai_SeikyuSuru2YearAfter=-10),\"なし\",IF(AND(GekihenKanwaSochi_SeikyuSuru2YearAfter=\"なし\",DirectKikenDankai_SeikyuSuru3YearAfter>KikenDankai_SeikyuSuru3YearAfter),\"あり\",GekihenKanwaSochi_SeikyuSuru2YearAfter))","v":{"$error":"#DIV/0!"}},null,null,"激変緩和措置適用",null,{"$f":"IF(GekihenKanwaSochiTekiyo=\"激変緩和措置適用なし\",\"なし\",\"あり\")","v":"なし"},{"$f":"IF(AND(GekihenKanwaSochi_Now2=\"あり\",KikenDankai_Now2=-10),\"なし\",IF(AND(GekihenKanwaSochi_Now2=\"なし\",DirectKikenDankai_SeikyuShinai1YearAfter>KikenDankai_SeikyuShinai1YearAfter),\"あり\",GekihenKanwaSochi_Now2))","v":{"$error":"#DIV/0!"}},{"$f":"IF(AND(GekihenKanwaSochi_SeikyuShinai1YearAfter=\"あり\",KikenDankai_SeikyuShinai1YearAfter=-10),\"なし\",IF(AND(GekihenKanwaSochi_SeikyuShinai1YearAfter=\"なし\",DirectKikenDankai_SeikyuShinai2YearAfter>KikenDankai_SeikyuShinai2YearAfter),\"あり\",GekihenKanwaSochi_SeikyuShinai1YearAfter))","v":{"$error":"#DIV/0!"}},{"$f":"IF(AND(GekihenKanwaSochi_SeikyuShinai2YearAfter=\"あり\",KikenDankai_SeikyuShinai2YearAfter=-10),\"なし\",IF(AND(GekihenKanwaSochi_SeikyuShinai2YearAfter=\"なし\",DirectKikenDankai_SeikyuShinai3YearAfter>KikenDankai_SeikyuShinai3YearAfter),\"あり\",GekihenKanwaSochi_SeikyuShinai2YearAfter))","v":{"$error":"#DIV/0!"}}]
["前年度保険金請求",null,null,{"$f":"IF('3年後見込'!L10=0,\"なし\",\"あり\")","v":{"$error":"#DIV/0!"}},{"$f":"IF('3年後見込'!L16=0,\"なし\",\"あり\")","v":"なし"},{"$f":"IF('3年後見込'!N10=0,\"なし\",\"あり\")","v":"なし"},null,null,"前年度保険金請求",null,null,{"$f":"IF('3年後見込'!U10=0,\"なし\",\"あり\")","v":"なし"},{"$f":"IF('3年後見込'!U16=0,\"なし\",\"あり\")","v":"なし"},{"$f":"IF('3年後見込'!U22=0,\"なし\",\"あり\")","v":"なし"}]

{"sheet":"保険料率","index":7,"n_rows":379,"n_cols":10,"rows_kept":379,"cut":false,"hidden":false,"merged":[]}
["保険限度","補償の下限","危険段階","KEY","危険段階別保険料率",null,"保険限度","補償の下限","KEY","保険料標準率"]
[80,0,10,{"$f":"TEXT(A2,\"00\")&TEXT(B2,\"00\")&TEXT(C2+10,\"00\")","v":"800020"},5.1479999999999997,null,80,0,{"$f":"TEXT(G2,\"00\")&TEXT(H2,\"00\")","v":"8000"},2.1589999999999998]
[80,0,9,{"$f":"TEXT(A3,\"00\")&TEXT(B3,\"00\")&TEXT(C3+10,\"00\")","v":"800019"},3.1549999999999998,null,80,50,{"$f":"TEXT(G3,\"00\")&TEXT(H3,\"00\")","v":"8050"},1.956]
[80,0,8,"800018",3.0449999999999999,null,80,60,"8060",1.728]
[80,0,7,"800017",2.9340000000000002,null,80,70,"8070",1.2310000000000001]
[80,0,6,"800016",2.823,null,78,0,"7800",1.9059999999999999]
[80,0,5,"800015",2.7130000000000001,null,78,50,"7850",1.6930000000000001]
[80,0,4,"800014",2.6019999999999999,null,78,60,"7860",1.4590000000000001]
[80,0,3,"800013",2.4910000000000001,null,78,70,"7870",0.94399999999999995]
[80,0,2,"800012",2.38,null,75,0,"7500",1.583]
[80,0,1,"800011",2.27,null,75,50,"7550",1.359]
[80,0,0,"800010",2.1589999999999998,null,75,60,"7560",1.113]
[80,0,-1,"800009",2.048,null,75,70,"7570",0.56599999999999995]
[80,0,-2,"800008",1.9379999999999999,null,70,0,"7000",1.173]
[80,0,-3,"800007",1.827,null,70,50,"7050",0.92700000000000005]
[80,0,-4,"800006",1.716,null,70,60,"7060",0.65900000000000003]
[80,0,-5,"800005",1.605,null,60,0,"6000",0.67]
[80,0,-6,"800004",1.4950000000000001,null,60,50,"6050",0.37]
[80,0,-7,"800003",1.3839999999999999,null,50,0,"5000",0.42399999999999999]
[80,0,-8,"800002",1.2729999999999999]
[80,0,-9,"800001",1.163]
[80,0,-10,"800000",1.08]
[80,50,10,{"$f":"TEXT(A23,\"00\")&TEXT(B23,\"00\")&TEXT(C23+10,\"00\")","v":"805020"},4.6639999999999997]
[80,50,9,{"$f":"TEXT(A24,\"00\")&TEXT(B24,\"00\")&TEXT(C24+10,\"00\")","v":"805019"},2.859]
[80,50,8,"805018",2.758]
[80,50,7,"805017",2.6579999999999999]
[80,50,6,"805016",2.5579999999999998]
[80,50,5,"805015",2.4580000000000002]
[80,50,4,"805014",2.3570000000000002]
[80,50,3,"805013",2.2570000000000001]
[80,50,2,"805012",2.157]
[80,50,1,"805011",2.056]
[80,50,0,"805010",1.956]
[80,50,-1,"805009",1.8560000000000001]
[80,50,-2,"805008",1.7549999999999999]
[80,50,-3,"805007",1.655]
[80,50,-4,"805006",1.5549999999999999]
[80,50,-5,"805005",1.454]
[80,50,-6,"805004",1.3540000000000001]
[80,50,-7,"805003",1.254]
[80,50,-8,"805002",1.1539999999999999]
[80,50,-9,"805001",1.0529999999999999]
[80,50,-10,"805000",0.97799999999999998]
[80,60,10,{"$f":"TEXT(A44,\"00\")&TEXT(B44,\"00\")&TEXT(C44+10,\"00\")","v":"806020"},4.1210000000000004]
[80,60,9,{"$f":"TEXT(A45,\"00\")&TEXT(B45,\"00\")&TEXT(C45+10,\"00\")","v":"806019"},2.5259999999999998]
[80,60,8,"806018",2.4369999999999998]
[80,60,7,"806017",2.3479999999999999]
[80,60,6,"806016",2.2599999999999998]
[80,60,5,"806015",2.1709999999999998]
[80,60,4,"806014",2.0819999999999999]
[80,60,3,"806013",1.994]
[80,60,2,"806012",1.905]
[80,60,1,"806011",1.8169999999999999]
[80,60,0,"806010",1.728]
[80,60,-1,"806009",1.639]
[80,60,-2,"806008",1.5509999999999999]
[80,60,-3,"806007",1.462]
[80,60,-4,"806006",1.3740000000000001]
[80,60,-5,"806005",1.2849999999999999]
[80,60,-6,"806004",1.196]
[80,60,-7,"806003",1.1080000000000001]
[80,60,-8,"806002",1.0189999999999999]
[80,60,-9,"806001",0.93]
[80,60,-10,"806000",0.86399999999999999]
[80,70,10,{"$f":"TEXT(A65,\"00\")&TEXT(B65,\"00\")&TEXT(C65+10,\"00\")","v":"807020"},2.9350000000000001]
[80,70,9,{"$f":"TEXT(A66,\"00\")&TEXT(B66,\"00\")&TEXT(C66+10,\"00\")","v":"807019"},1.7989999999999999]
[80,70,8,"807018",1.736]
[80,70,7,"807017",1.673]
[80,70,6,"807016",1.61]
[80,70,5,"807015",1.5469999999999999]
[80,70,4,"807014",1.484]
[80,70,3,"807013",1.42]
[80,70,2,"807012",1.357]
[80,70,1,"807011",1.294]
[80,70,0,"807010",1.2310000000000001]
[80,70,-1,"807009",1.1679999999999999]
[80,70,-2,"807008",1.105]
[80,70,-3,"807007",1.042]
[80,70,-4,"807006",0.97799999999999998]
[80,70,-5,"807005",0.91500000000000004]
[80,70,-6,"807004",0.85199999999999998]
[80,70,-7,"807003",0.78900000000000003]
[80,70,-8,"807002",0.72599999999999998]
[80,70,-9,"807001",0.66300000000000003]
[80,70,-10,"807000",0.61599999999999999]
[78,0,10,"780020",4.5449999999999999]
[78,0,9,"780019",2.786]
[78,0,8,"780018",2.6880000000000002]
[78,0,7,"780017",2.59]
[78,0,6,"780016",2.492]
[78,0,5,"780015",2.395]
[78,0,4,"780014",2.2970000000000002]
[78,0,3,"780013",2.1989999999999998]
[78,0,2,"780012",2.101]
[78,0,1,"780011",2.004]
[78,0,0,"780010",1.9059999999999999]
[78,0,-1,"780009",1.8080000000000001]
[78,0,-2,"780008",1.7110000000000001]
[78,0,-3,"780007",1.613]
[78,0,-4,"780006",1.5149999999999999]
[78,0,-5,"780005",1.417]
[78,0,-6,"780004",1.32]
[78,0,-7,"780003",1.222]
[78,0,-8,"780002",1.1240000000000001]
[78,0,-9,"780001",1.026]
[78,0,-10,"780000",0.95299999999999996]
[78,50,10,"785020",4.0369999999999999]
[78,50,9,"785019",2.4740000000000002]
[78,50,8,"785018",2.3879999999999999]
[78,50,7,"785017",2.3010000000000002]
[78,50,6,"785016",2.214]
[78,50,5,"785015",2.1269999999999998]
[78,50,4,"785014",2.04]
[78,50,3,"785013",1.9530000000000001]
[78,50,2,"785012",1.867]
[78,50,1,"785011",1.78]
[78,50,0,"785010",1.6930000000000001]
[78,50,-1,"785009",1.6060000000000001]
[78,50,-2,"785008",1.5189999999999999]
[78,50,-3,"785007",1.4330000000000001]
[78,50,-4,"785006",1.3460000000000001]
[78,50,-5,"785005",1.2589999999999999]
[78,50,-6,"785004",1.1719999999999999]
[78,50,-7,"785003",1.085]
[78,50,-8,"785002",0.998]
[78,50,-9,"785001",0.91200000000000003]
[78,50,-10,"785000",0.84699999999999998]
[78,60,10,"786020",3.4790000000000001]
[78,60,9,"786019",2.1320000000000001]
[78,60,8,{"$f":"TEXT(A130,\"00\")&TEXT(B130,\"00\")&TEXT(C130+10,\"00\")","v":"786018"},2.0579999999999998]
[78,60,7,"786017",1.9830000000000001]
[78,60,6,"786016",1.9079999999999999]
[78,60,5,"786015",1.833]
[78,60,4,"786014",1.758]
[78,60,3,"786013",1.6830000000000001]
[78,60,2,"786012",1.609]
[78,60,1,"786011",1.534]
[78,60,0,"786010",1.4590000000000001]
[78,60,-1,"786009",1.3839999999999999]
[78,60,-2,"786008",1.3089999999999999]
[78,60,-3,"786007",1.2350000000000001]
[78,60,-4,"786006",1.1599999999999999]
[78,60,-5,"786005",1.085]
[78,60,-6,"786004",1.01]
[78,60,-7,"786003",0.93500000000000005]
[78,60,-8,"786002",0.86]
[78,60,-9,"786001",0.78600000000000003]
[78,60,-10,"786000",0.73]
[78,70,10,"787020",2.2509999999999999]
[78,70,9,"787019",1.38]
[78,70,8,"787018",1.331]
[78,70,7,"787017",1.2829999999999999]
[78,70,6,"787016",1.234]
[78,70,5,"787015",1.1859999999999999]
[78,70,4,"787014",1.1379999999999999]
[78,70,3,"787013",1.089]
[78,70,2,"787012",1.0409999999999999]
[78,70,1,"787011",0.99199999999999999]
[78,70,0,"787010",0.94399999999999995]
[78,70,-1,"787009",0.89600000000000002]
[78,70,-2,"787008",0.84699999999999998]
[78,70,-3,"787007",0.79900000000000004]
[78,70,-4,"787006",0.75]
[78,70,-5,"787005",0.70199999999999996]
[78,70,-6,"787004",0.65400000000000003]
[78,70,-7,"787003",0.60499999999999998]
[78,70,-8,"787002",0.55700000000000005]
[78,70,-9,"787001",0.50800000000000001]
[78,70,-10,"787000",0.47199999999999998]
[75,0,10,"750020",3.7749999999999999]
[75,0,9,"750019",2.3140000000000001]
[75,0,8,"750018",2.2320000000000002]
[75,0,7,"750017",2.1509999999999998]
[75,0,6,"750016",2.0699999999999998]
[75,0,5,"750015",1.9890000000000001]
[75,0,4,"750014",1.9079999999999999]
[75,0,3,"750013",1.827]
[75,0,2,"750012",1.7450000000000001]
[75,0,1,"750011",1.6639999999999999]
[75,0,0,"750010",1.583]
[75,0,-1,"750009",1.502]
[75,0,-2,"750008",1.421]
[75,0,-3,"750007",1.339]
[75,0,-4,"750006",1.258]
[75,0,-5,"750005",1.177]
[75,0,-6,"750004",1.0960000000000001]
[75,0,-7,"750003",1.0149999999999999]
[75,0,-8,"750002",0.93400000000000005]
[75,0,-9,"750001",0.85199999999999998]
[75,0,-10,"750000",0.79200000000000004]
[75,50,10,"755020",3.2410000000000001]
[75,50,9,"755019",1.986]
[75,50,8,"755018",1.917]
[75,50,7,{"$f":"TEXT(A194,\"00\")&TEXT(B194,\"00\")&TEXT(C194+10,\"00\")","v":"755017"},1.847]
[75,50,6,"755016",1.7769999999999999]
[75,50,5,"755015",1.7070000000000001]
[75,50,4,"755014",1.6379999999999999]
[75,50,3,"755013",1.5680000000000001]
[75,50,2,"755012",1.498]
[75,50,1,"755011",1.429]
[75,50,0,"755010",1.359]
[75,50,-1,"755009",1.2889999999999999]
[75,50,-2,"755008",1.22]
[75,50,-3,"755007",1.1499999999999999]
[75,50,-4,"755006",1.08]
[75,50,-5,"755005",1.0109999999999999]
[75,50,-6,"755004",0.94099999999999995]
[75,50,-7,"755003",0.871]
[75,50,-8,"755002",0.80100000000000005]
[75,50,-9,"755001",0.73199999999999998]
[75,50,-10,"755000",0.68]
[75,60,10,"756020",2.6539999999999999]
[75,60,9,"756019",1.627]
[75,60,8,"756018",1.57]
[75,60,7,"756017",1.5129999999999999]
[75,60,6,"756016",1.4550000000000001]
[75,60,5,"756015",1.3979999999999999]
[75,60,4,"756014",1.341]
[75,60,3,"756013",1.284]
[75,60,2,"756012",1.2270000000000001]
[75,60,1,"756011",1.17]
[75,60,0,"756010",1.113]
[75,60,-1,"756009",1.056]
[75,60,-2,"756008",0.999]
[75,60,-3,"756007",0.94199999999999995]
[75,60,-4,"756006",0.88500000000000001]
[75,60,-5,"756005",0.82799999999999996]
[75,60,-6,"756004",0.77100000000000002]
[75,60,-7,"756003",0.71299999999999997]
[75,60,-8,"756002",0.65600000000000003]
[75,60,-9,"756001",0.59899999999999998]
[75,60,-10,"756000",0.55700000000000005]
[75,70,10,"757020",1.35]
[75,70,9,"757019",0.82699999999999996]
[75,70,8,"757018",0.79800000000000004]
[75,70,7,"757017",0.76900000000000002]
[75,70,6,"757016",0.74]
[75,70,5,"757015",0.71099999999999997]
[75,70,4,"757014",0.68200000000000005]
[75,70,3,"757013",0.65300000000000002]
[75,70,2,"757012",0.624]
[75,70,1,"757011",0.59499999999999997]
[75,70,0,"757010",0.56599999999999995]
[75,70,-1,"757009",0.53700000000000003]
[75,70,-2,"757008",0.50800000000000001]
[75,70,-3,"757007",0.47899999999999998]
[75,70,-4,"757006",0.45]
[75,70,-5,"757005",0.42099999999999999]
[75,70,-6,"757004",0.39200000000000002]
[75,70,-7,"757003",0.36299999999999999]
[75,70,-8,"757002",0.33400000000000002]
[75,70,-9,"757001",0.30499999999999999]
[75,70,-10,"757000",0.28299999999999997]
[70,0,10,"700020",2.7970000000000002]
[70,0,9,"700019",1.714]
[70,0,8,"700018",1.6539999999999999]
[70,0,7,"700017",1.5940000000000001]
[70,0,6,{"$f":"TEXT(A258,\"00\")&TEXT(B258,\"00\")&TEXT(C258+10,\"00\")","v":"700016"},1.534]
[70,0,5,"700015",1.474]
[70,0,4,"700014",1.4139999999999999]
[70,0,3,"700013",1.353]
[70,0,2,"700012",1.2929999999999999]
[70,0,1,"700011",1.2330000000000001]
[70,0,0,"700010",1.173]
[70,0,-1,"700009",1.113]
[70,0,-2,"700008",1.0529999999999999]
[70,0,-3,"700007",0.99299999999999999]
[70,0,-4,"700006",0.93200000000000005]
[70,0,-5,"700005",0.872]
[70,0,-6,"700004",0.81200000000000006]
[70,0,-7,"700003",0.752]
[70,0,-8,"700002",0.69199999999999995]
[70,0,-9,"700001",0.63200000000000001]
[70,0,-10,"700000",0.58699999999999997]
[70,50,10,"705020",2.2109999999999999]
[70,50,9,"705019",1.355]
[70,50,8,"705018",1.3069999999999999]
[70,50,7,"705017",1.26]
[70,50,6,"705016",1.212]
[70,50,5,"705015",1.165]
[70,50,4,"705014",1.117]
[70,50,3,"705013",1.07]
[70,50,2,"705012",1.022]
[70,50,1,"705011",0.97499999999999998]
[70,50,0,"705010",0.92700000000000005]
[70,50,-1,"705009",0.879]
[70,50,-2,"705008",0.83199999999999996]
[70,50,-3,"705007",0.78400000000000003]
[70,50,-4,"705006",0.73699999999999999]
[70,50,-5,"705005",0.68899999999999995]
[70,50,-6,"705004",0.64200000000000002]
[70,50,-7,"705003",0.59399999999999997]
[70,50,-8,"705002",0.54700000000000004]
[70,50,-9,"705001",0.499]
[70,50,-10,"705000",0.46400000000000002]
[70,60,10,"706020",1.571]
[70,60,9,"706019",0.96299999999999997]
[70,60,8,"706018",0.92900000000000005]
[70,60,7,"706017",0.89600000000000002]
[70,60,6,"706016",0.86199999999999999]
[70,60,5,"706015",0.82799999999999996]
[70,60,4,"706014",0.79400000000000004]
[70,60,3,"706013",0.76]
[70,60,2,"706012",0.72699999999999998]
[70,60,1,"706011",0.69299999999999995]
[70,60,0,"706010",0.65900000000000003]
[70,60,-1,"706009",0.625]
[70,60,-2,"706008",0.59099999999999997]
[70,60,-3,"706007",0.55800000000000005]
[70,60,-4,"706006",0.52400000000000002]
[70,60,-5,"706005",0.49]
[70,60,-6,"706004",0.45600000000000002]
[70,60,-7,"706003",0.42199999999999999]
[70,60,-8,"706002",0.38900000000000001]
[70,60,-9,"706001",0.35499999999999998]
[70,60,-10,"706000",0.33]
[60,0,10,"600020",1.5980000000000001]
[60,0,9,"600019",0.97899999999999998]
[60,0,8,"600018",0.94499999999999995]
[60,0,7,"600017",0.91100000000000003]
[60,0,6,"600016",0.876]
[60,0,5,{"$f":"TEXT(A322,\"00\")&TEXT(B322,\"00\")&TEXT(C322+10,\"00\")","v":"600015"},0.84199999999999997]
[60,0,4,"600014",0.80700000000000005]
[60,0,3,"600013",0.77300000000000002]
[60,0,2,"600012",0.73899999999999999]
[60,0,1,"600011",0.70399999999999996]
[60,0,0,"600010",0.67]
[60,0,-1,"600009",0.63600000000000001]
[60,0,-2,"600008",0.60099999999999998]
[60,0,-3,"600007",0.56699999999999995]
[60,0,-4,"600006",0.53300000000000003]
[60,0,-5,"600005",0.498]
[60,0,-6,"600004",0.46400000000000002]
[60,0,-7,"600003",0.42899999999999999]
[60,0,-8,"600002",0.39500000000000002]
[60,0,-9,"600001",0.36099999999999999]
[60,0,-10,"600000",0.33500000000000002]
[60,50,10,"605020",0.88200000000000001]
[60,50,9,"605019",0.54100000000000004]
[60,50,8,"605018",0.52200000000000002]
[60,50,7,"605017",0.503]
[60,50,6,"605016",0.48399999999999999]
[60,50,5,"605015",0.46500000000000002]
[60,50,4,"605014",0.44600000000000001]
[60,50,3,"605013",0.42699999999999999]
[60,50,2,"605012",0.40799999999999997]
[60,50,1,"605011",0.38900000000000001]
[60,50,0,"605010",0.37]
[60,50,-1,"605009",0.35099999999999998]
[60,50,-2,"605008",0.33200000000000002]
[60,50,-3,"605007",0.313]
[60,50,-4,"605006",0.29399999999999998]
[60,50,-5,"605005",0.27500000000000002]
[60,50,-6,"605004",0.25600000000000001]
[60,50,-7,"605003",0.23699999999999999]
[60,50,-8,"605002",0.218]
[60,50,-9,"605001",0.19900000000000001]
[60,50,-10,"605000",0.185]
[50,0,10,{"$f":"TEXT(A359,\"00\")&TEXT(B359,\"00\")&TEXT(C359+10,\"00\")","v":"500020"},1.0109999999999999]
[50,0,9,"500019",0.62]
[50,0,8,"500018",0.59799999999999998]
[50,0,7,"500017",0.57599999999999996]
[50,0,6,"500016",0.55400000000000005]
[50,0,5,"500015",0.53300000000000003]
[50,0,4,"500014",0.51100000000000001]
[50,0,3,"500013",0.48899999999999999]
[50,0,2,"500012",0.46700000000000003]
[50,0,1,"500011",0.44600000000000001]
[50,0,0,"500010",0.42399999999999999]
[50,0,-1,"500009",0.40200000000000002]
[50,0,-2,"500008",0.38100000000000001]
[50,0,-3,"500007",0.35899999999999999]
[50,0,-4,"500006",0.33700000000000002]
[50,0,-5,"500005",0.315]
[50,0,-6,"500004",0.29399999999999998]
[50,0,-7,"500003",0.27200000000000002]
[50,0,-8,"500002",0.25]
[50,0,-9,"500001",0.22800000000000001]
[50,0,-10,"500000",0.21199999999999999]

{"sheet":"ツール構成","index":8,"n_rows":32,"n_cols":23,"rows_kept":32,"cut":false,"hidden":false,"merged":[[2,1,2,18],[3,1,3,6],[3,7,3,12],[3,13,3,18],[5,1,5,6],[7,3,7,6],[16,1,16,18],[5,7,5,12],[6,9,6,12],[5,13,5,18],[9,7,9,18],[6,3,6,6],[17,1,17,6],[19,22,19,27],[21,22,21,27],[19,1,19,6],[20,3,20,6],[17,13,17,18],[19,13,19,18],[20,15,20,18],[31,15,31,18],[21,15,21,18],[30,15,30,18],[25,1,25,18],[26,1,26,6],[28,1,28,6],[29,3,29,6],[26,13,26,18],[28,13,28,18],[29,15,29,18],[22,15,22,18]]}
["モジュール構成"]
[]
[null,"Page_1（開始）"]
[null,"新規",null,null,null,null,null,"読込",null,null,null,null,null,"終了"]
[]
[null,"Btn1_Start_Click",null,null,null,null,null,"Btn1_ReStart_Click",null,null,null,null,null,"Btn1_Quit_Click"]
[null,null,null,"ScreenUpdate",null,null,null,null,null,"ScreenUpdate"]
[null,null,null,"Initialize_CodeSet"]
[]
[null,null,null,null,null,null,null,"Page_12（読込）"]
[]
[]
[]
[]
[]
[]
[null,"Page_1（利用にあたって）"]
[null,"次へ>>",null,null,null,null,null,null,null,null,null,null,null,"最初へ"]
[]
[null,"Btn2_Next_Click",null,null,null,null,null,null,null,null,null,null,null,"Btn_Top_Click",null,null,null,null,null,null,null,null,"<<戻る"]
[null,null,null,"ScreenUpdate",null,null,null,null,null,null,null,null,null,null,null,"Restart"]
[null,null,null,null,null,null,null,null,null,null,null,null,null,null,null,"Initial_ScreenUpdate",null,null,null,null,null,null,"Btn2_Back_Click"]
[null,null,null,null,null,null,null,null,null,null,null,null,null,null,null,"ScreenUpdate"]
[]
[]
[null,"Page_3（入力1（転記））"]
[null,"次へ>>",null,null,null,null,null,null,null,null,null,null,null,"最初へ"]
[]
[null,"Btn3_Next_Click",null,null,null,null,null,null,null,null,null,null,null,"Btn_Top_Click"]
[null,null,null,"ScreenUpdate",null,null,null,null,null,null,null,null,null,null,null,"Restart"]
[null,null,null,null,null,null,null,null,null,null,null,null,null,null,null,"Initial_ScreenUpdate"]
[null,null,null,null,null,null,null,null,null,null,null,null,null,null,null,"ScreenUpdate"]

{"sheet":"結果_Form","index":9,"n_rows":98,"n_cols":35,"rows_kept":98,"cut":false,"hidden":false,"merged":[[4,31,5,34],[3,0,5,0],[6,0,8,0],[3,28,3,30],[3,31,3,34],[4,6,5,8],[4,9,5,11],[4,12,5,14],[4,15,5,19],[4,20,5,24],[4,25,5,27],[4,28,5,30],[3,6,3,8],[3,9,3,11],[3,12,3,14],[3,15,3,19],[3,20,3,24],[3,25,3,27],[6,31,7,34],[3,1,5,5],[6,6,7,8],[6,9,7,11],[6,12,7,14],[6,15,7,19],[6,20,7,24],[9,31,10,34],[12,0,14,0],[12,6,13,8],[12,9,13,11],[12,12,13,14],[12,15,13,19],[12,20,13,24],[12,25,13,27],[12,28,13,30],[12,31,13,34],[9,0,11,0],[9,6,10,8],[9,9,10,11],[9,12,10,14],[9,15,10,19],[9,20,10,24],[9,25,10,27],[9,28,10,30],[6,25,7,27],[6,28,7,30],[15,0,17,0],[15,6,16,8],[15,9,16,11],[15,12,16,14],[15,15,16,19],[15,20,16,24],[15,25,16,27],[15,28,16,30],[15,31,16,34],[18,0,20,0],[18,6,19,8],[18,9,19,11],[18,12,19,14],[18,15,19,19],[18,20,19,24],[18,25,19,27],[18,28,19,30],[18,31,19,34],[24,31,25,34],[21,0,23,0],[21,6,22,8],[21,9,22,11],[21,12,22,14],[21,15,22,19],[21,20,22,24],[21,25,22,27],[21,28,22,30],[21,31,22,34],[24,15,25,19],[24,20,25,24],[24,25,25,27],[24,28,25,30],[30,0,32,0],[30,6,31,8],[30,9,31,11],[30,12,31,14],[30,15,31,19],[30,20,31,24],[30,25,31,27],[30,28,31,30],[27,0,29,0],[27,6,28,8],[27,9,28,11],[27,12,28,14],[0,0,0,34],[36,1,38,5],[33,1,35,5],[30,1,32,5],[27,1,29,5],[36,0,38,0],[36,6,37,8],[36,9,37,11],[36,12,37,14],[36,15,37,19],[36,20,37,24],[36,25,37,27],[36,28,37,30],[33,31,34,34],[30,31,31,34],[33,0,35,0],[33,15,34,19],[33,20,34,24],[33,25,34,27],[33,28,34,30],[24,0,26,0],[24,6,25,8],[24,9,25,11],[24,12,25,14],[27,31,28,34],[45,10,45,14],[46,10,46,14],[47,10,47,14],[51,3,51,9],[52,3,52,9],[51,10,51,14],[52,10,52,14],[27,15,28,19],[27,20,28,24],[27,25,28,27],[27,28,28,30],[44,3,44,8],[45,3,45,8],[44,10,44,14],[36,31,37,34],[46,20,47,28],[75,16,75,21],[73,16,73,21],[57,10,57,14],[58,10,58,14],[60,10,60,14],[61,10,61,14],[61,7,61,9],[61,3,61,6],[33,6,34,8],[33,9,34,11],[33,12,34,14],[85,29,85,33],[95,2,95,9],[95,10,95,14],[97,10,97,14],[93,10,93,14],[87,10,87,14],[85,10,85,14],[87,2,87,9],[90,9,90,14],[88,9,88,14],[91,10,91,14],[79,16,79,21],[77,16,77,21],[95,29,95,33],[97,29,97,33],[79,22,79,24],[82,19,83,27],[71,29,71,34],[71,25,71,28],[6,1,8,5],[24,1,26,5],[21,1,23,5],[18,1,20,5],[15,1,17,5],[12,1,14,5],[9,1,11,5],[75,22,75,24],[73,22,73,24],[71,22,71,24],[71,7,71,11],[71,13,71,15],[68,2,69,4],[59,10,59,14],[60,3,60,8],[82,2,83,7],[1,30,1,34],[1,0,2,13],[56,3,56,8],[56,10,56,14],[57,3,57,8],[71,16,71,21],[93,29,93,33],[87,29,87,33],[89,29,89,33],[85,2,85,9],[89,10,89,14],[88,28,88,33],[91,29,91,33],[90,28,90,33],[77,13,77,15],[77,29,77,34],[79,29,79,34],[79,25,79,28],[77,25,77,28],[77,22,77,24],[73,29,73,34],[75,29,75,34],[75,25,75,28],[73,25,73,28]]}
["「農業経営収入保険　保険金等見積額算出ツール」 出力結果"]
[null,null,null,null,null,null,null,null,null,null,null,null,null,null,null,null,null,null,null,null,null,null,null,null,null,null,null,null,null,null,{"$f":"TODAY()","v":"2020-01-15"}]
[]
["明細","種類・品目等",null,null,null,null,"期首棚卸高",null,null,"販売金額",null,null,"事業消費金額",null,null,"期末棚卸高",null,null,null,null,"数量払の調整",null,null,null,null,"農業収入金額",null,null,"見込農業収入金額",null,null,"農業収入増減額"]
[null,null,null,null,null,null,"①",null,null,"②",null,null,"③",null,null,"④",null,null,null,null,"⑤",null,null,null,null,"⑥＝②＋③＋④\n　　＋⑤－①",null,null,"⑦",null,null,"⑥＝⑦－⑥"]
[]
["０１",{"$f":"IF(ShuruiHinmoku1<>\"\",ShuruiHinmoku1,\"\")","v":""},null,null,null,null,{"$f":"KishuTanaoroshi1","v":0},null,null,{"$f":"HanbaiKingaku1","v":0},null,null,{"$f":"JigyoShohiKingaku1","v":0},null,null,{"$f":"KimatsuTanaoroshiKingaku1","v":0},null,null,null,null,{"$f":"SuryobaraiChosei1","v":0},null,null,null,null,{"$f":"NogyoShunyuKingaku1","v":0},null,null,{"$f":"MikomiNogyoShunyu1","v":0},null,null,{"$f":"NogyoShunyuZogengaku1","v":0}]
[]
[null,null,null,null,null,null,null,null,"円",null,null,"円",null,null,"円",null,null,null,null,"円",null,null,null,null,"円",null,null,"円",null,null,"円",null,null,null,"円"]
[{"$f":"IF(MikomiNogyoTaishoHinmoku2>=2,\"０２\",\"\")","v":{"$error":"#VALUE!"}},{"$f":"IF(ShuruiHinmoku2<>\"\",ShuruiHinmoku2,\"\")","v":""},null,null,null,null,{"$f":"IF(MikomiNogyoTaishoHinmoku2>=2,KishuTanaoroshi2,\"\")","v":{"$error":"#VALUE!"}},null,null,{"$f":"IF(MikomiNogyoTaishoHinmoku2>=2,HanbaiKingaku2,\"\")","v":{"$error":"#VALUE!"}},null,null,{"$f":"IF(MikomiNogyoTaishoHinmoku2>=2,JigyoShohiKingaku2,\"\")","v":{"$error":"#VALUE!"}},null,null,{"$f":"IF(MikomiNogyoTaishoHinmoku2>=2,KimatsuTanaoroshiKingaku2,\"\")","v":{"$error":"#VALUE!"}},null,null,null,null,{"$f":"IF(MikomiNogyoTaishoHinmoku2>=2,SuryobaraiChosei2,\"\")","v":{"$error":"#VALUE!"}},null,null,null,null,{"$f":"IF(MikomiNogyoTaishoHinmoku2>=2,NogyoShunyuKingaku2,\"\")","v":{"$error":"#VALUE!"}},null,null,{"$f":"IF(MikomiNogyoTaishoHinmoku2>=2,MikomiNogyoShunyu2,\"\")","v":{"$error":"#VALUE!"}},null,null,{"$f":"IF(MikomiNogyoTaishoHinmoku2>=2,NogyoShunyuZogengaku2,\"\")","v":{"$error":"#VALUE!"}}]
[]
[null,null,null,null,null,null,null,null,{"$f":"IF(MikomiNogyoTaishoHinmoku2>=2,\"円\",\"\")","v":{"$error":"#VALUE!"}},null,null,{"$f":"IF(MikomiNogyoTaishoHinmoku2>=2,\"円\",\"\")","v":{"$error":"#VALUE!"}},null,null,{"$f":"IF(MikomiNogyoTaishoHinmoku2>=2,\"円\",\"\")","v":{"$error":"#VALUE!"}},null,null,null,null,{"$f":"IF(MikomiNogyoTaishoHinmoku2>=2,\"円\",\"\")","v":{"$error":"#VALUE!"}},null,null,null,null,{"$f":"IF(MikomiNogyoTaishoHinmoku2>=2,\"円\",\"\")","v":{"$error":"#VALUE!"}},null,null,{"$f":"IF(MikomiNogyoTaishoHinmoku2>=2,\"円\",\"\")","v":{"$error":"#VALUE!"}},null,null,{"$f":"IF(MikomiNogyoTaishoHinmoku2>=2,\"円\",\"\")","v":{"$error":"#VALUE!"}},null,null,null,{"$f":"IF(MikomiNogyoTaishoHinmoku2>=2,\"円\",\"\")","v":{"$error":"#VALUE!"}}]
[{"$f":"IF(MikomiNogyoTaishoHinmoku2>=3,\"０３\",\"\")","v":{"$error":"#VALUE!"}},{"$f":"IF(ShuruiHinmoku3<>\"\",ShuruiHinmoku3,\"\")","v":""},null,null,null,null,{"$f":"IF(MikomiNogyoTaishoHinmoku2>=3,KishuTanaoroshi3,\"\")","v":{"$error":"#VALUE!"}},null,null,{"$f":"IF(MikomiNogyoTaishoHinmoku2>=3,HanbaiKingaku3,\"\")","v":{"$error":"#VALUE!"}},null,null,{"$f":"IF(MikomiNogyoTaishoHinmoku2>=3,JigyoShohiKingaku3,\"\")","v":{"$error":"#VALUE!"}},null,null,{"$f":"IF(MikomiNogyoTaishoHinmoku2>=3,KimatsuTanaoroshiKingaku3,\"\")","v":{"$error":"#VALUE!"}},null,null,null,null,{"$f":"IF(MikomiNogyoTaishoHinmoku2>=3,SuryobaraiChosei3,\"\")","v":{"$error":"#VALUE!"}},null,null,null,null,{"$f":"IF(MikomiNogyoTaishoHinmoku2>=3,NogyoShunyuKingaku3,\"\")","v":{"$error":"#VALUE!"}},null,null,{"$f":"IF(MikomiNogyoTaishoHinmoku2>=3,MikomiNogyoShunyu3,\"\")","v":{"$error":"#VALUE!"}},null,null,{"$f":"IF(MikomiNogyoTaishoHinmoku2>=3,NogyoShunyuZogengaku3,\"\")","v":{"$error":"#VALUE!"}}]
[]
[null,null,null,null,null,null,null,null,{"$f":"IF(MikomiNogyoTaishoHinmoku2>=3,\"円\",\"\")","v":{"$error":"#VALUE!"}},null,null,{"$f":"IF(MikomiNogyoTaishoHinmoku2>=3,\"円\",\"\")","v":{"$error":"#VALUE!"}},null,null,{"$f":"IF(MikomiNogyoTaishoHinmoku2>=3,\"円\",\"\")","v":{"$error":"#VALUE!"}},null,null,null,null,{"$f":"IF(MikomiNogyoTaishoHinmoku2>=3,\"円\",\"\")","v":{"$error":"#VALUE!"}},null,null,null,null,{"$f":"IF(MikomiNogyoTaishoHinmoku2>=3,\"円\",\"\")","v":{"$error":"#VALUE!"}},null,null,{"$f":"IF(MikomiNogyoTaishoHinmoku2>=3,\"円\",\"\")","v":{"$error":"#VALUE!"}},null,null,{"$f":"IF(MikomiNogyoTaishoHinmoku2>=3,\"円\",\"\")","v":{"$error":"#VALUE!"}},null,null,null,{"$f":"IF(MikomiNogyoTaishoHinmoku2>=3,\"円\",\"\")","v":{"$error":"#VALUE!"}}]
[{"$f":"IF(MikomiNogyoTaishoHinmoku2>=4,\"０４\",\"\")","v":{"$error":"#VALUE!"}},{"$f":"IF(ShuruiHinmoku4<>\"\",ShuruiHinmoku4,\"\")","v":""},null,null,null,null,{"$f":"IF(MikomiNogyoTaishoHinmoku2>=4,KishuTanaoroshi4,\"\")","v":{"$error":"#VALUE!"}},null,null,{"$f":"IF(MikomiNogyoTaishoHinmoku2>=4,HanbaiKingaku4,\"\")","v":{"$error":"#VALUE!"}},null,null,{"$f":"IF(MikomiNogyoTaishoHinmoku2>=4,JigyoShohiKingaku4,\"\")","v":{"$error":"#VALUE!"}},null,null,{"$f":"IF(MikomiNogyoTaishoHinmoku2>=4,KimatsuTanaoroshiKingaku4,\"\")","v":{"$error":"#VALUE!"}},null,null,null,null,{"$f":"IF(MikomiNogyoTaishoHinmoku2>=4,SuryobaraiChosei4,\"\")","v":{"$error":"#VALUE!"}},null,null,null,null,{"$f":"IF(MikomiNogyoTaishoHinmoku2>=4,NogyoShunyuKingaku4,\"\")","v":{"$error":"#VALUE!"}},null,null,{"$f":"IF(MikomiNogyoTaishoHinmoku2>=4,MikomiNogyoShunyu4,\"\")","v":{"$error":"#VALUE!"}},null,null,{"$f":"IF(MikomiNogyoTaishoHinmoku2>=4,NogyoShunyuZogengaku4,\"\")","v":{"$error":"#VALUE!"}}]
[]
[null,null,null,null,null,null,null,null,{"$f":"IF(MikomiNogyoTaishoHinmoku2>=4,\"円\",\"\")","v":{"$error":"#VALUE!"}},null,null,{"$f":"IF(MikomiNogyoTaishoHinmoku2>=4,\"円\",\"\")","v":{"$error":"#VALUE!"}},null,null,{"$f":"IF(MikomiNogyoTaishoHinmoku2>=4,\"円\",\"\")","v":{"$error":"#VALUE!"}},null,null,null,null,{"$f":"IF(MikomiNogyoTaishoHinmoku2>=4,\"円\",\"\")","v":{"$error":"#VALUE!"}},null,null,null,null,{"$f":"IF(MikomiNogyoTaishoHinmoku2>=4,\"円\",\"\")","v":{"$error":"#VALUE!"}},null,null,{"$f":"IF(MikomiNogyoTaishoHinmoku2>=4,\"円\",\"\")","v":{"$error":"#VALUE!"}},null,null,{"$f":"IF(MikomiNogyoTaishoHinmoku2>=4,\"円\",\"\")","v":{"$error":"#VALUE!"}},null,null,null,{"$f":"IF(MikomiNogyoTaishoHinmoku2>=4,\"円\",\"\")","v":{"$error":"#VALUE!"}}]
[{"$f":"IF(MikomiNogyoTaishoHinmoku2>=5,\"０５\",\"\")","v":{"$error":"#VALUE!"}},{"$f":"IF(ShuruiHinmoku5<>\"\",ShuruiHinmoku5,\"\")","v":""},null,null,null,null,{"$f":"IF(MikomiNogyoTaishoHinmoku2>=5,KishuTanaoroshi5,\"\")","v":{"$error":"#VALUE!"}},null,null,{"$f":"IF(MikomiNogyoTaishoHinmoku2>=5,HanbaiKingaku5,\"\")","v":{"$error":"#VALUE!"}},null,null,{"$f":"IF(MikomiNogyoTaishoHinmoku2>=5,JigyoShohiKingaku5,\"\")","v":{"$error":"#VALUE!"}},null,null,{"$f":"IF(MikomiNogyoTaishoHinmoku2>=5,KimatsuTanaoroshiKingaku5,\"\")","v":{"$error":"#VALUE!"}},null,null,null,null,{"$f":"IF(MikomiNogyoTaishoHinmoku2>=5,SuryobaraiChosei5,\"\")","v":{"$error":"#VALUE!"}},null,null,null,null,{"$f":"IF(MikomiNogyoTaishoHinmoku2>=5,NogyoShunyuKingaku5,\"\")","v":{"$error":"#VALUE!"}},null,null,{"$f":"IF(MikomiNogyoTaishoHinmoku2>=5,MikomiNogyoShunyu5,\"\")","v":{"$error":"#VALUE!"}},null,null,{"$f":"IF(MikomiNogyoTaishoHinmoku2>=5,NogyoShunyuZogengaku5,\"\")","v":{"$error":"#VALUE!"}}]
[]
[null,null,null,null,null,null,null,null,{"$f":"IF(MikomiNogyoTaishoHinmoku2>=5,\"円\",\"\")","v":{"$error":"#VALUE!"}},null,null,{"$f":"IF(MikomiNogyoTaishoHinmoku2>=5,\"円\",\"\")","v":{"$error":"#VALUE!"}},null,null,{"$f":"IF(MikomiNogyoTaishoHinmoku2>=5,\"円\",\"\")","v":{"$error":"#VALUE!"}},null,null,null,null,{"$f":"IF(MikomiNogyoTaishoHinmoku2>=5,\"円\",\"\")","v":{"$error":"#VALUE!"}},null,null,null,null,{"$f":"IF(MikomiNogyoTaishoHinmoku2>=5,\"円\",\"\")","v":{"$error":"#VALUE!"}},null,null,{"$f":"IF(MikomiNogyoTaishoHinmoku2>=5,\"円\",\"\")","v":{"$error":"#VALUE!"}},null,null,{"$f":"IF(MikomiNogyoTaishoHinmoku2>=5,\"円\",\"\")","v":{"$error":"#VALUE!"}},null,null,null,{"$f":"IF(MikomiNogyoTaishoHinmoku2>=5,\"円\",\"\")","v":{"$error":"#VALUE!"}}]
[{"$f":"IF(MikomiNogyoTaishoHinmoku2>=6,\"０６\",\"\")","v":{"$error":"#VALUE!"}},{"$f":"IF(ShuruiHinmoku6<>\"\",ShuruiHinmoku6,\"\")","v":""},null,null,null,null,{"$f":"IF(MikomiNogyoTaishoHinmoku2>=6,KishuTanaoroshi6,\"\")","v":{"$error":"#VALUE!"}},null,null,{"$f":"IF(MikomiNogyoTaishoHinmoku2>=6,HanbaiKingaku6,\"\")","v":{"$error":"#VALUE!"}},null,null,{"$f":"IF(MikomiNogyoTaishoHinmoku2>=6,JigyoShohiKingaku6,\"\")","v":{"$error":"#VALUE!"}},null,null,{"$f":"IF(MikomiNogyoTaishoHinmoku2>=6,KimatsuTanaoroshiKingaku6,\"\")","v":{"$error":"#VALUE!"}},null,null,null,null,{"$f":"IF(MikomiNogyoTaishoHinmoku2>=6,SuryobaraiChosei6,\"\")","v":{"$error":"#VALUE!"}},null,null,null,null,{"$f":"IF(MikomiNogyoTaishoHinmoku2>=6,NogyoShunyuKingaku6,\"\")","v":{"$error":"#VALUE!"}},null,null,{"$f":"IF(MikomiNogyoTaishoHinmoku2>=6,MikomiNogyoShunyu6,\"\")","v":{"$error":"#VALUE!"}},null,null,{"$f":"IF(MikomiNogyoTaishoHinmoku2>=6,NogyoShunyuZogengaku6,\"\")","v":{"$error":"#VALUE!"}}]
[]
[null,null,null,null,null,null,null,null,{"$f":"IF(MikomiNogyoTaishoHinmoku2>=6,\"円\",\"\")","v":{"$error":"#VALUE!"}},null,null,{"$f":"IF(MikomiNogyoTaishoHinmoku2>=6,\"円\",\"\")","v":{"$error":"#VALUE!"}},null,null,{"$f":"IF(MikomiNogyoTaishoHinmoku2>=6,\"円\",\"\")","v":{"$error":"#VALUE!"}},null,null,null,null,{"$f":"IF(MikomiNogyoTaishoHinmoku2>=6,\"円\",\"\")","v":{"$error":"#VALUE!"}},null,null,null,null,{"$f":"IF(MikomiNogyoTaishoHinmoku2>=6,\"円\",\"\")","v":{"$error":"#VALUE!"}},null,null,{"$f":"IF(MikomiNogyoTaishoHinmoku2>=6,\"円\",\"\")","v":{"$error":"#VALUE!"}},null,null,{"$f":"IF(MikomiNogyoTaishoHinmoku2>=6,\"円\",\"\")","v":{"$error":"#VALUE!"}},null,null,null,{"$f":"IF(MikomiNogyoTaishoHinmoku2>=6,\"円\",\"\")","v":{"$error":"#VALUE!"}}]
[{"$f":"IF(MikomiNogyoTaishoHinmoku2>=7,\"０７\",\"\")","v":{"$error":"#VALUE!"}},{"$f":"IF(ShuruiHinmoku7<>\"\",ShuruiHinmoku7,\"\")","v":""},null,null,null,null,{"$f":"IF(MikomiNogyoTaishoHinmoku2>=7,KishuTanaoroshi7,\"\")","v":{"$error":"#VALUE!"}},null,null,{"$f":"IF(MikomiNogyoTaishoHinmoku2>=7,HanbaiKingaku7,\"\")","v":{"$error":"#VALUE!"}},null,null,{"$f":"IF(MikomiNogyoTaishoHinmoku2>=7,JigyoShohiKingaku7,\"\")","v":{"$error":"#VALUE!"}},null,null,{"$f":"IF(MikomiNogyoTaishoHinmoku2>=7,KimatsuTanaoroshiKingaku7,\"\")","v":{"$error":"#VALUE!"}},null,null,null,null,{"$f":"IF(MikomiNogyoTaishoHinmoku2>=7,SuryobaraiChosei7,\"\")","v":{"$error":"#VALUE!"}},null,null,null,null,{"$f":"IF(MikomiNogyoTaishoHinmoku2>=7,NogyoShunyuKingaku7,\"\")","v":{"$error":"#VALUE!"}},null,null,{"$f":"IF(MikomiNogyoTaishoHinmoku2>=7,MikomiNogyoShunyu7,\"\")","v":{"$error":"#VALUE!"}},null,null,{"$f":"IF(MikomiNogyoTaishoHinmoku2>=7,NogyoShunyuZogengaku7,\"\")","v":{"$error":"#VALUE!"}}]
[]
[null,null,null,null,null,null,null,null,{"$f":"IF(MikomiNogyoTaishoHinmoku2>=7,\"円\",\"\")","v":{"$error":"#VALUE!"}},null,null,{"$f":"IF(MikomiNogyoTaishoHinmoku2>=7,\"円\",\"\")","v":{"$error":"#VALUE!"}},null,null,{"$f":"IF(MikomiNogyoTaishoHinmoku2>=7,\"円\",\"\")","v":{"$error":"#VALUE!"}},null,null,null,null,{"$f":"IF(MikomiNogyoTaishoHinmoku2>=7,\"円\",\"\")","v":{"$error":"#VALUE!"}},null,null,null,null,{"$f":"IF(MikomiNogyoTaishoHinmoku2>=7,\"円\",\"\")","v":{"$error":"#VALUE!"}},null,null,{"$f":"IF(MikomiNogyoTaishoHinmoku2>=7,\"円\",\"\")","v":{"$error":"#VALUE!"}},null,null,{"$f":"IF(MikomiNogyoTaishoHinmoku2>=7,\"円\",\"\")","v":{"$error":"#VALUE!"}},null,null,null,{"$f":"IF(MikomiNogyoTaishoHinmoku2>=7,\"円\",\"\")","v":{"$error":"#VALUE!"}}]
[{"$f":"IF(MikomiNogyoTaishoHinmoku2>=8,\"０８\",\"\")","v":{"$error":"#VALUE!"}},{"$f":"IF(ShuruiHinmoku8<>\"\",ShuruiHinmoku8,\"\")","v":""},null,null,null,null,{"$f":"IF(MikomiNogyoTaishoHinmoku2>=8,KishuTanaoroshi8,\"\")","v":{"$error":"#VALUE!"}},null,null,{"$f":"IF(MikomiNogyoTaishoHinmoku2>=8,HanbaiKingaku8,\"\")","v":{"$error":"#VALUE!"}},null,null,{"$f":"IF(MikomiNogyoTaishoHinmoku2>=8,JigyoShohiKingaku8,\"\")","v":{"$error":"#VALUE!"}},null,null,{"$f":"IF(MikomiNogyoTaishoHinmoku2>=8,KimatsuTanaoroshiKingaku8,\"\")","v":{"$error":"#VALUE!"}},null,null,null,null,{"$f":"IF(MikomiNogyoTaishoHinmoku2>=8,SuryobaraiChosei8,\"\")","v":{"$error":"#VALUE!"}},null,null,null,null,{"$f":"IF(MikomiNogyoTaishoHinmoku2>=8,NogyoShunyuKingaku8,\"\")","v":{"$error":"#VALUE!"}},null,null,{"$f":"IF(MikomiNogyoTaishoHinmoku2>=8,MikomiNogyoShunyu8,\"\")","v":{"$error":"#VALUE!"}},null,null,{"$f":"IF(MikomiNogyoTaishoHinmoku2>=8,NogyoShunyuZogengaku8,\"\")","v":{"$error":"#VALUE!"}}]
[]
[null,null,null,null,null,null,null,null,{"$f":"IF(MikomiNogyoTaishoHinmoku2>=8,\"円\",\"\")","v":{"$error":"#VALUE!"}},null,null,{"$f":"IF(MikomiNogyoTaishoHinmoku2>=8,\"円\",\"\")","v":{"$error":"#VALUE!"}},null,null,{"$f":"IF(MikomiNogyoTaishoHinmoku2>=8,\"円\",\"\")","v":{"$error":"#VALUE!"}},null,null,null,null,{"$f":"IF(MikomiNogyoTaishoHinmoku2>=8,\"円\",\"\")","v":{"$error":"#VALUE!"}},null,null,null,null,{"$f":"IF(MikomiNogyoTaishoHinmoku2>=8,\"円\",\"\")","v":{"$error":"#VALUE!"}},null,null,{"$f":"IF(MikomiNogyoTaishoHinmoku2>=8,\"円\",\"\")","v":{"$error":"#VALUE!"}},null,null,{"$f":"IF(MikomiNogyoTaishoHinmoku2>=8,\"円\",\"\")","v":{"$error":"#VALUE!"}},null,null,null,{"$f":"IF(MikomiNogyoTaishoHinmoku2>=8,\"円\",\"\")","v":{"$error":"#VALUE!"}}]
[{"$f":"IF(MikomiNogyoTaishoHinmoku2>=9,\"０９\",\"\")","v":{"$error":"#VALUE!"}},{"$f":"IF(ShuruiHinmoku9<>\"\",ShuruiHinmoku9,\"\")","v":""},null,null,null,null,{"$f":"IF(MikomiNogyoTaishoHinmoku2>=9,KishuTanaoroshi9,\"\")","v":{"$error":"#VALUE!"}},null,null,{"$f":"IF(MikomiNogyoTaishoHinmoku2>=9,HanbaiKingaku9,\"\")","v":{"$error":"#VALUE!"}},null,null,{"$f":"IF(MikomiNogyoTaishoHinmoku2>=9,JigyoShohiKingaku9,\"\")","v":{"$error":"#VALUE!"}},null,null,{"$f":"IF(MikomiNogyoTaishoHinmoku2>=9,KimatsuTanaoroshiKingaku9,\"\")","v":{"$error":"#VALUE!"}},null,null,null,null,{"$f":"IF(MikomiNogyoTaishoHinmoku2>=9,SuryobaraiChosei9,\"\")","v":{"$error":"#VALUE!"}},null,null,null,null,{"$f":"IF(MikomiNogyoTaishoHinmoku2>=9,NogyoShunyuKingaku9,\"\")","v":{"$error":"#VALUE!"}},null,null,{"$f":"IF(MikomiNogyoTaishoHinmoku2>=9,MikomiNogyoShunyu9,\"\")","v":{"$error":"#VALUE!"}},null,null,{"$f":"IF(MikomiNogyoTaishoHinmoku2>=9,NogyoShunyuZogengaku9,\"\")","v":{"$error":"#VALUE!"}}]
[]
[null,null,null,null,null,null,null,null,{"$f":"IF(MikomiNogyoTaishoHinmoku2>=9,\"円\",\"\")","v":{"$error":"#VALUE!"}},null,null,{"$f":"IF(MikomiNogyoTaishoHinmoku2>=9,\"円\",\"\")","v":{"$error":"#VALUE!"}},null,null,{"$f":"IF(MikomiNogyoTaishoHinmoku2>=9,\"円\",\"\")","v":{"$error":"#VALUE!"}},null,null,null,null,{"$f":"IF(MikomiNogyoTaishoHinmoku2>=9,\"円\",\"\")","v":{"$error":"#VALUE!"}},null,null,null,null,{"$f":"IF(MikomiNogyoTaishoHinmoku2>=9,\"円\",\"\")","v":{"$error":"#VALUE!"}},null,null,{"$f":"IF(MikomiNogyoTaishoHinmoku2>=9,\"円\",\"\")","v":{"$error":"#VALUE!"}},null,null,{"$f":"IF(MikomiNogyoTaishoHinmoku2>=9,\"円\",\"\")","v":{"$error":"#VALUE!"}},null,null,null,{"$f":"IF(MikomiNogyoTaishoHinmoku2>=9,\"円\",\"\")","v":{"$error":"#VALUE!"}}]
[{"$f":"IF(MikomiNogyoTaishoHinmoku2>=10,\"１０\",\"\")","v":{"$error":"#VALUE!"}},{"$f":"IF(ShuruiHinmoku10<>\"\",ShuruiHinmoku10,\"\")","v":""},null,null,null,null,{"$f":"IF(MikomiNogyoTaishoHinmoku2>=10,KishuTanaoroshi10,\"\")","v":{"$error":"#VALUE!"}},null,null,{"$f":"IF(MikomiNogyoTaishoHinmoku2>=10,HanbaiKingaku10,\"\")","v":{"$error":"#VALUE!"}},null,null,{"$f":"IF(MikomiNogyoTaishoHinmoku2>=10,JigyoShohiKingaku10,\"\")","v":{"$error":"#VALUE!"}},null,null,{"$f":"IF(MikomiNogyoTaishoHinmoku2>=10,KimatsuTanaoroshiKingaku10,\"\")","v":{"$error":"#VALUE!"}},null,null,null,null,{"$f":"IF(MikomiNogyoTaishoHinmoku2>=10,SuryobaraiChosei10,\"\")","v":{"$error":"#VALUE!"}},null,null,null,null,{"$f":"IF(MikomiNogyoTaishoHinmoku2>=10,NogyoShunyuKingaku10,\"\")","v":{"$error":"#VALUE!"}},null,null,{"$f":"IF(MikomiNogyoTaishoHinmoku2>=10,MikomiNogyoShunyu10,\"\")","v":{"$error":"#VALUE!"}},null,null,{"$f":"IF(MikomiNogyoTaishoHinmoku2>=10,NogyoShunyuZogengaku10,\"\")","v":{"$error":"#VALUE!"}}]
[]
[null,null,null,null,null,null,null,null,{"$f":"IF(MikomiNogyoTaishoHinmoku2>=10,\"円\",\"\")","v":{"$error":"#VALUE!"}},null,null,{"$f":"IF(MikomiNogyoTaishoHinmoku2>=10,\"円\",\"\")","v":{"$error":"#VALUE!"}},null,null,{"$f":"IF(MikomiNogyoTaishoHinmoku2>=10,\"円\",\"\")","v":{"$error":"#VALUE!"}},null,null,null,null,{"$f":"IF(MikomiNogyoTaishoHinmoku2>=10,\"円\",\"\")","v":{"$error":"#VALUE!"}},null,null,null,null,{"$f":"IF(MikomiNogyoTaishoHinmoku2>=10,\"円\",\"\")","v":{"$error":"#VALUE!"}},null,null,{"$f":"IF(MikomiNogyoTaishoHinmoku2>=10,\"円\",\"\")","v":{"$error":"#VALUE!"}},null,null,{"$f":"IF(MikomiNogyoTaishoHinmoku2>=10,\"円\",\"\")","v":{"$error":"#VALUE!"}},null,null,null,{"$f":"IF(MikomiNogyoTaishoHinmoku2>=10,\"円\",\"\")","v":{"$error":"#VALUE!"}}]
["合計",null,null,null,null,null,{"$f":"KishuTanaoroshi11","v":0},null,null,{"$f":"HanbaiKingaku11","v":0},null,null,{"$f":"JigyoShohiKingaku11","v":0},null,null,{"$f":"KimatsuTanaoroshiKingaku11","v":0},null,null,null,null,{"$f":"SuryobaraiChosei11","v":0},null,null,null,null,{"$f":"NogyoShunyuKingaku11","v":0},null,null,{"$f":"MikomiNogyoShunyu11","v":0},null,null,{"$f":"NogyoShunyuZogengaku11","v":0}]
[]
[null,null,null,null,null,null,null,null,"円",null,null,"円",null,null,"円",null,null,null,null,"円",null,null,null,null,"円",null,null,"円",null,null,"円",null,null,null,"円"]
[]
[]
[]
[null,"受取可能な保険金及び特約補てん金（以下、保険金等）については、以下のとおりです。"]
[]
[null,null,null,"保険金",null,null,null,null,null,"①",{"$f":"Hokenkin","v":0},null,null,null,null,null,null,null,null,null,"「収入保険補てん収入」として、"]
[null,null,null,"特約補てん金",null,null,null,null,null,"②",{"$f":"TokuyakuHotenkin","v":0},null,null,null,null,null,null,null,null,null,"保険期間の雑収入に計上"]
[null,null,null,null,"うち、被保険者負担分",null,null,null,null,null,{"$f":"K46-INT(K46/4*3)","v":0},null,null,null,null,null,null,null,null,null,{"$f":"Hokenkin+INT(K46/4*3)","v":0}]
[null,null,null,null,"うち、国庫負担分",null,null,null,null,null,{"$f":"INT(K46/4*3)","v":0}]
[]
[null,"今回の保険金等の請求予定は以下のとおりです。"]
[]
[null,null,null,"保険金",null,null,null,null,null,null,{"$f":"IF(Hokenkin>0,IF(SeikyuSuruHokenkin=TRUE,\"請求する\",\"請求しない\"),\"－－－\")","v":"－－－"}]
[null,null,null,"特約補てん金",null,null,null,null,null,null,{"$f":"IF(HotenHoshiki=\"保険方式のみ\",\"ーーー\",IF(TokuyakuHotenkin>0,IF(SeikyuSuruTokuyakuHotenkin=TRUE,\"請求する\",\"請求しない\"),\"－－－\"))","v":"－－－"}]
[]
[null,{"$f":"\"上記の請求予定に基づく\"&IF(SUM(K57:O58)>=K61,\"振込額\",\"請求額\")&\"は以下のとおりです。\"","v":"上記の請求予定に基づく振込額は以下のとおりです。"}]
[]
[null,null,null,"保険金",null,null,null,null,null,"①",{"$f":"IF(K52=\"請求する\",K45,0)","v":0}]
[null,null,null,"特約補てん金",null,null,null,null,null,"②",{"$f":"IF(K53=\"請求する\",K46,0)","v":0}]
[null,null,null,null,"うち、被保険者負担分",null,null,null,null,null,{"$f":"IF(K53=\"請求する\",K47,0)","v":0}]
[null,null,null,null,"うち、国庫負担分",null,null,null,null,null,{"$f":"IF(K53=\"請求する\",K48,0)","v":0}]
[null,null,null,"つなぎ資金貸付残高",null,null,null,null,null,"③",{"$f":"TsunagiZandaka","v":0}]
[null,null,null,{"$f":"IF(SUM(K57:O58)>=K61,\"振込額\",\"請求額\")","v":"振込額"},null,null,null,"①＋②－③",null,null,{"$f":"ABS(K57+K58-K61)","v":0}]
[]
[]
[]
[]
["保険金等の計算根拠"]
[]
[null,null,"補償内容"]
[]
[]
[null,null,null,"基準収入金額",null,null,null,{"$f":"KijunShunyu","v":0},null,null,null,null,null,"保険方式",null,null,"補償割合",null,null,null,null,null,{"$f":"Hoken_HoshoGendo","v":80},null,null,"保険限度額",null,null,null,{"$f":"HokenGendoGaku","v":0}]
[]
[null,null,null,null,null,null,null,null,null,null,null,null,null,null,null,null,{"$f":"IF(StartY<>2019,\"補償の下限\",\"\")","v":"補償の下限"},null,null,null,null,null,{"$f":"IF(StartY<>2019,IF(Hoken_HoshoKagen=0,\"設定なし\",Hoken_HoshoKagen),\"\")","v":"設定なし"},null,null,{"$f":"IF(StartY<>2019,\"補償の下限額\",\"\")","v":"補償の下限額"},null,null,null,{"$f":"IF(StartY<>2019,HoshoKagen,\"\")","v":0}]
[]
[null,null,null,null,null,null,null,null,null,null,null,null,null,null,null,null,"支払率",null,null,null,null,null,{"$f":"Hoken_Shiharairitsu","v":90},null,null,"保険金額",null,null,null,{"$f":"HokenKingaku","v":0}]
[]
[null,null,null,null,null,null,null,null,null,null,null,null,null,{"$f":"IF(HotenHoshiki=\"保険方式＋積立方式\",\"積立方式\",\"\")","v":""},null,null,{"$f":"IF(HotenHoshiki=\"保険方式＋積立方式\",\"補償幅\",\"\")","v":""},null,null,null,null,null,{"$f":"IF(HotenHoshiki=\"保険方式＋積立方式\",Tsumitate_HoshoHaba,\"\")","v":""},null,null,{"$f":"IF(HotenHoshiki=\"保険方式＋積立方式\",\"基準補てん金額\",\"\")","v":""},null,null,null,{"$f":"IF(HotenHoshiki=\"保険方式＋積立方式\",KijunHotenKingaku,\"\")","v":""}]
[]
[null,null,null,null,null,null,null,null,null,null,null,null,null,null,null,null,{"$f":"IF(HotenHoshiki=\"保険方式＋積立方式\",\"支払率\",\"\")","v":""},null,null,null,null,null,{"$f":"IF(HotenHoshiki=\"保険方式＋積立方式\",Tsumitate_Shiharairitsu,\"\")","v":""},null,null,{"$f":"IF(HotenHoshiki=\"保険方式＋積立方式\",\"補てん対象金額\",\"\")","v":""},null,null,null,{"$f":"IF(HotenHoshiki=\"保険方式＋積立方式\",HotenTaishoKingaku,\"\")","v":""}]
[]
[]
[null,null,"保険金の計算根拠",null,null,null,null,null,null,null,null,null,null,null,null,null,null,null,null,{"$f":"IF(HotenHoshiki=\"保険方式＋積立方式\",\"特約補てん金の計算根拠\",\"\")","v":""}]
[]
[]
[null,null,"　　保険限度額",null,null,null,null,null,null,null,{"$f":"AD72","v":0},null,null,null,null,null,null,null,null,{"$f":"IF(HotenHoshiki=\"保険方式＋積立方式\",\"　　保険限度額＋基準補てん金額\",\"\")","v":""},null,null,null,null,null,null,null,null,null,{"$f":"IF(HotenHoshiki=\"保険方式＋積立方式\",HokenGendoGaku+KijunHotenKingaku,\"\")","v":""}]
[]
[null,null,"－ 保険期間の農業収入金額",null,null,null,null,null,null,null,{"$f":"IF(AND(NogyoShunyuKingaku11<HoshoKagen,Hoken_HoshoKagen>0,StartY<>2019),HoshoKagen,NogyoShunyuKingaku11)","v":0},null,null,null,null,null,null,null,null,{"$f":"IF(HotenHoshiki=\"保険方式＋積立方式\",\"－ 保険期間の農業収入金額\",\"\")","v":""},null,null,null,null,null,null,null,null,null,{"$f":"IF(HotenHoshiki=\"保険方式＋積立方式\",IF(AND(NogyoShunyuKingaku11<HoshoKagen,Hoken_HoshoKagen>0,StartY<>2019),HoshoKagen,NogyoShunyuKingaku11),\"\")","v":""}]
[null,null,null,null,null,null,null,null,null,{"$f":"IF(AND(NogyoShunyuKingaku11<HoshoKagen,Hoken_HoshoKagen>0,StartY<>2019),\"※補償の下限額を採用\",\"\")","v":""},null,null,null,null,null,null,null,null,null,null,null,null,null,null,null,null,null,null,{"$f":"IF(HotenHoshiki=\"保険方式＋積立方式\",IF(AND(NogyoShunyuKingaku11<HoshoKagen,Hoken_HoshoKagen>0,StartY<>2019),\"※補償の下限額を採用\",\"\"),\"\")","v":""}]
[null,null,null,null,null,null,null,null,null,null,{"$f":"IF(K86>K88,K86-K88,0)","v":0},null,null,null,null,null,null,null,null,null,null,null,null,null,null,null,null,null,null,{"$f":"IF(AND(AD86>AD88,HotenHoshiki=\"保険方式＋積立方式\"),IF(AD86-AD88>KijunHotenKingaku,KijunHotenKingaku,AD86-AD88),IF(HotenHoshiki=\"保険方式＋積立方式\",0,\"\"))","v":""}]
[null,null,null,null,null,null,null,null,null,{"$f":"IF(K86<K88,\"※0円未満は0円を採用\",\"\")","v":""},null,null,null,null,null,null,null,null,null,null,null,null,null,null,null,null,null,null,{"$f":"IF(AND(AD86>AD88,HotenHoshiki=\"保険方式＋積立方式\"),IF(AD86-AD88>KijunHotenKingaku,\"※基準補てん金額が上限\",\"\"),IF(HotenHoshiki=\"保険方式＋積立方式\",\"※0円未満は0円を採用\",\"\"))","v":""}]
[null,null,"×　保険方式の支払率",null,null,null,null,null,null,null,{"$f":"W76","v":90},null,null,null,null,null,null,null,null,{"$f":"IF(HotenHoshiki=\"保険方式＋積立方式\",\"×　積立方式の支払率\",\"\")","v":""},null,null,null,null,null,null,null,null,null,{"$f":"IF(HotenHoshiki=\"保険方式＋積立方式\",Tsumitate_Shiharairitsu,\"\")","v":""}]
[]
[null,null,{"$f":"IF(Baishokin2=TRUE,\"　　保険金（減額考慮前）\",\"\")","v":""},null,null,null,null,null,null,null,{"$f":"IF(Baishokin2=TRUE,INT(K90*K92/100),\"\")","v":""},null,null,null,null,null,null,null,null,{"$f":"IF(AND(Baishokin2=TRUE,HotenHoshiki=\"保険方式＋積立方式\"),\"　　特約補てん金（減額考慮前）\",\"\")","v":""},null,null,null,null,null,null,null,null,null,{"$f":"IF(Baishokin2=TRUE,INT(AD90*AD92/100),\"\")","v":""}]
[]
[null,null,{"$f":"IF(Baishokin2=TRUE,\"－ 減額（賠償金を考慮）\",\"\")","v":""},null,null,null,null,null,null,null,{"$f":"IF(Baishokin2=TRUE,IF(BaishokinKingaku-(KijunShunyu-(NogyoShunyuKingaku11+K94+AD94))>0,BaishokinKingaku-(KijunShunyu-(NogyoShunyuKingaku11+K94+AD94)),0),\"\")","v":""},null,null,null,null,null,null,null,null,{"$f":"IF(AND(Baishokin2=TRUE,HotenHoshiki=\"保険方式＋積立方式\"),\"　　－ 減額（賠償金を考慮）\",\"\")","v":""},null,null,null,null,null,null,null,null,null,{"$f":"IF(AND(Baishokin2=TRUE,HotenHoshiki=\"保険方式＋積立方式\"),IF(BaishokinKingaku-(KijunShunyu-(NogyoShunyuKingaku11+K94+AD94))>0,BaishokinKingaku-(KijunShunyu-(NogyoShunyuKingaku11+K94+AD94)),0),\"\")","v":""}]
[]
[null,null,"　　保険金",null,null,null,null,null,null,null,{"$f":"IF(Baishokin2=TRUE,IF(K94-K96>0,K94-K96,0),INT(K90*K92/100))","v":0},null,null,null,null,null,null,null,null,{"$f":"IF(HotenHoshiki=\"保険方式＋積立方式\",\"　　特約補てん金\",\"\")","v":""},null,null,null,null,null,null,null,null,null,{"$f":"IF(HotenHoshiki=\"保険方式＋積立方式\",IF(Baishokin2=TRUE,IF(AD94-AD96>0,AD94-AD96,0),INT(AD90*AD92/100)),\"\")","v":""}]

{"sheet":"【ひな形】入力１＆入力６","index":10,"n_rows":22,"n_cols":11,"rows_kept":22,"cut":false,"hidden":true,"merged":[[17,1,17,9],[17,10,17,19],[20,1,21,9],[20,10,20,19],[21,10,21,19],[13,1,13,9],[13,10,13,19],[14,10,14,19],[14,1,16,8],[15,10,15,19],[16,10,16,19],[12,1,12,9],[12,10,12,19],[7,1,9,3],[10,1,11,3],[7,4,7,9],[8,4,8,9],[9,4,9,9],[10,4,10,9],[11,4,11,9],[7,10,7,19],[8,10,8,19],[9,10,9,19],[10,10,10,19],[11,10,11,19],[4,1,4,9],[5,1,5,9],[4,10,4,19],[6,1,6,9],[6,10,6,19],[5,10,5,19]]}
[]
[]
[]
[]
[null,"保険期間開始年",null,null,null,null,null,null,null,null,{"$f":"HokenStartY","v":0}]
[null,"基準収入金額",null,null,null,null,null,null,null,null,{"$f":"DBCS([0]!KijunShunyu)&\"円\"","v":"円"}]
[null,"補てん方式",null,null,null,null,null,null,null,null,{"$f":"HotenHoshiki","v":0}]
[null,"保険方式",null,null,"補償限度",null,null,null,null,null,{"$f":"IF(Hoken_HoshoGendo80,\"８０％\",IF(Hoken_HoshoGendo78,\"７８％\",IF(Hoken_HoshoGendo75,\"７５％\",IF(Hoken_HoshoGendo70,\"７０％\",IF(Hoken_HoshoGendo60,\"６０％\",IF(Hoken_HoshoGendo50,\"５０％\",\"エラー\"))))))","v":"８０％"}]
[null,null,null,null,{"$f":"IF(K5<>\"平成31年/令和元年\",\"補償の下限\",\"\")","v":"補償の下限"},null,null,null,null,null,{"$f":"IF(K5<>\"平成３１年/令和元年\",IF(Hoken_HoshoKagen70,\"7０％\",IF(Hoken_HoshoKagen60,\"60％\",IF(Hoken_HoshoKagen50,\"５０％\",IF(Hoken_HoshoKagen00,\"選択なし\",\"エラー\")))),\"\")","v":"選択なし"}]
[null,null,null,null,"支払率",null,null,null,null,null,{"$f":"IF(Hoken_Shiharairitsu90,\"９０％\",IF(Hoken_Shiharairitsu80,\"８０％\",IF(Hoken_Shiharairitsu70,\"７０％\",IF(Hoken_Shiharairitsu60,\"６０％\",IF(Hoken_Shiharairitsu50,\"５０％\",\"エラー\")))))","v":"９０％"}]
[null,"積立方式",null,null,"補償幅",null,null,null,null,null,{"$f":"IF(K7=\"保険方式＋積立方式\",IF(Tsumitate_HoshoHaba10,\"１０％\",IF(Tsumitate_HoshoHaba5,\"　５％\",\"エラー\")),\"\")","v":""}]
[null,null,null,null,"支払率",null,null,null,null,null,{"$f":"IF(K7=\"保険方式＋積立方式\",IF(Tsumitate_Shiharairitsu90,\"９０％\",IF(Tsumitate_Shiharairitsu80,\"８０％\",IF(Tsumitate_Shiharairitsu70,\"７０％\",IF(Tsumitate_Shiharairitsu60,\"６０％\",IF(Tsumitate_Shiharairitsu50,\"５０％\",IF(Tsumitate_Shiharairitsu40,\"４０％\",IF(Tsumitate_Shiharairitsu30,\"３０％\",IF(Tsumitate_Shiharairitsu20,\"２０％\",IF(Tsumitate_Shiharairitsu10,\"１０％\",\"エラー\"))))))))),\"\")","v":""}]
[null,{"$f":"IF(K5=\"平成31年/令和元年\",\"\",\"危険段階区分\")","v":"危険段階区分"},null,null,null,null,null,null,null,null,{"$f":"IF(K5=\"平成31年/令和元年\",\"\",IF(LEN(KikenDankaiKubun)-LEN(TRIM(KikenDankaiKubun))-1>0,DBCS(REPT(\" \",LEN(KikenDankaiKubun)-LEN(TRIM(KikenDankaiKubun))-1)&TRIM(KikenDankaiKubun)),DBCS(TRIM(KikenDankaiKubun))))","v":"　０区分"}]
[null,"つなぎ資金借入残高",null,null,null,null,null,null,null,null,{"$f":"DBCS(TsunagiZandaka)&\"円\"","v":"円"}]
[null,{"$f":"IF(K5=\"平成31年/令和元年\",\"\",\"加重平均損害率算出基礎数値\")","v":"加重平均損害率算出基礎数値"},null,null,null,null,null,null,null,{"$f":"IF(K5=\"平成31年/令和元年\",\"\",\"①\")","v":"①"},{"$f":"IF(K5=\"平成31年/令和元年\",\"\",DBCS(REPT(\" \",MAX(LEN(KajuHeikinSongairitsuKiso1),LEN(KajuHeikinSongairitsuKiso2),LEN(KajuHeikinSongairitsuKiso3))-LEN(KajuHeikinSongairitsuKiso1))&KajuHeikinSongairitsuKiso1))","v":""}]
[null,null,null,null,null,null,null,null,null,{"$f":"IF(K5=\"平成31年/令和元年\",\"\",\"②\")","v":"②"},{"$f":"IF(K5=\"平成31年/令和元年\",\"\",DBCS(REPT(\" \",MAX(LEN(KajuHeikinSongairitsuKiso1),LEN(KajuHeikinSongairitsuKiso2),LEN(KajuHeikinSongairitsuKiso3))-LEN(KajuHeikinSongairitsuKiso2))&KajuHeikinSongairitsuKiso2))","v":""}]
[null,null,null,null,null,null,null,null,null,{"$f":"IF(K5=\"平成31年/令和元年\",\"\",\"③\")","v":"③"},{"$f":"IF(K5=\"平成31年/令和元年\",\"\",DBCS(REPT(\" \",MAX(LEN(KajuHeikinSongairitsuKiso1),LEN(KajuHeikinSongairitsuKiso2),LEN(KajuHeikinSongairitsuKiso3))-LEN(KajuHeikinSongairitsuKiso3))&KajuHeikinSongairitsuKiso3))","v":""}]
[null,"見込農業収入対象品目",null,null,null,null,null,null,null,null,{"$f":"DBCS(MikomiNogyoTaishoHinmoku)","v":""}]
[]
[]
[null,"賠償金の受け取り",null,null,null,null,null,null,null,null,{"$f":"IF(Baishokin1,\"受け取っていない\",IF(Baishokin2,\"受け取っている\",\"エラー\"))","v":"エラー"}]
[null,null,null,null,null,null,null,null,null,null,{"$f":"IF(Baishokin2,DBCS(TEXT(BaishokinKingaku,\"#,##0\"))&\"円\",\"\")","v":""}]

{"sheet":"【ひな形】入力２","index":11,"n_rows":25,"n_cols":31,"rows_kept":25,"cut":false,"hidden":true,"merged":[[2,1,2,2],[23,3,24,8],[21,9,21,14],[21,15,21,19],[21,20,21,24],[13,20,13,24],[9,20,9,24],[5,20,5,24],[3,9,3,14],[3,15,3,19],[23,1,24,2],[19,1,20,2],[21,1,22,2],[2,9,2,14],[2,15,2,19],[2,20,2,24],[21,25,21,30],[23,9,23,14],[23,25,23,30],[17,9,17,14],[17,15,17,19],[17,20,17,24],[17,25,17,30],[19,9,19,14],[19,15,19,19],[19,20,19,24],[19,25,19,30],[13,25,13,30],[15,9,15,14],[15,15,15,19],[15,20,15,24],[15,25,15,30],[9,25,9,30],[11,9,11,14],[11,15,11,19],[11,20,11,24],[11,25,11,30],[19,3,20,8],[21,3,22,8],[13,9,13,14],[13,15,13,19],[9,3,10,8],[11,3,12,8],[9,9,9,14],[9,15,9,19],[2,25,2,30],[2,3,2,8],[3,3,4,8],[5,3,6,8],[7,3,8,8],[5,9,5,14],[5,15,5,19],[3,25,3,30],[3,20,3,24],[5,25,5,30],[7,9,7,14],[7,15,7,19],[7,20,7,24],[7,25,7,30],[3,1,4,2],[5,1,6,2],[7,1,8,2],[9,1,10,2],[11,1,12,2],[13,1,14,2],[15,1,16,2],[17,1,18,2],[13,3,14,8],[15,3,16,8],[17,3,18,8]]}
[]
[]
[null,null,null,"種類・品目等",null,null,null,null,null,"期首棚卸高 金額",null,null,null,null,null,"事業消費金額 単価",null,null,null,null,"期末棚卸高 単価",null,null,null,null,"見込農業収入金額"]
[null,"明細１",null,{"$f":"ShuruiHinmoku1","v":0},null,null,null,null,null,{"$f":"DBCS(TEXT(KishuTanaoroshi1,\"#,##0\"))","v":"０"},null,null,null,null,null,{"$f":"DBCS(TEXT(JigyoShohi1,\"#,##0.0\"))","v":"０．０"},null,null,null,null,{"$f":"DBCS(TEXT(KimatsuTanaoroshi1,\"#,##0.0\"))","v":"０．０"},null,null,null,null,{"$f":"DBCS(TEXT(MikomiNogyoShunyu1,\"#,##0\"))","v":"０"}]
[null,null,null,null,null,null,null,null,null,null,null,null,null,null,"円",null,null,null,null,"円/Kg等",null,null,null,null,"円/Kg等",null,null,null,null,null,"円"]
[null,{"$f":"IF(MikomiNogyoTaishoHinmoku2*1>1,\"明細２\",\"\")","v":{"$error":"#VALUE!"}},null,{"$f":"IF(B6<>\"\",ShuruiHinmoku2,\"\")","v":{"$error":"#VALUE!"}},null,null,null,null,null,{"$f":"IF(B6<>\"\",DBCS(TEXT(KishuTanaoroshi2,\"#,##0\")),\"\")","v":{"$error":"#VALUE!"}},null,null,null,null,null,{"$f":"IF(B6<>\"\",DBCS(TEXT(JigyoShohi2,\"#,##0.0\")),\"\")","v":{"$error":"#VALUE!"}},null,null,null,null,{"$f":"IF(B6<>\"\",DBCS(TEXT(KimatsuTanaoroshi2,\"#,##0.0\")),\"\")","v":{"$error":"#VALUE!"}},null,null,null,null,{"$f":"IF(B6<>\"\",DBCS(TEXT(MikomiNogyoShunyu2,\"#,##0\")),\"\")","v":{"$error":"#VALUE!"}}]
[null,null,null,null,null,null,null,null,null,null,null,null,null,null,{"$f":"IF(B6<>\"\",\"円\",\"\")","v":{"$error":"#VALUE!"}},null,null,null,null,{"$f":"IF(B6<>\"\",\"円/Kg等\",\"\")","v":{"$error":"#VALUE!"}},null,null,null,null,{"$f":"IF(B6<>\"\",\"円/Kg等\",\"\")","v":{"$error":"#VALUE!"}},null,null,null,null,null,{"$f":"IF(B6<>\"\",\"円\",\"\")","v":{"$error":"#VALUE!"}}]
[null,{"$f":"IF(MikomiNogyoTaishoHinmoku2*1>1,\"明細３\",\"\")","v":{"$error":"#VALUE!"}},null,{"$f":"IF(B8<>\"\",ShuruiHinmoku3,\"\")","v":{"$error":"#VALUE!"}},null,null,null,null,null,{"$f":"IF(B8<>\"\",DBCS(TEXT(KishuTanaoroshi3,\"#,##0\")),\"\")","v":{"$error":"#VALUE!"}},null,null,null,null,null,{"$f":"IF(B8<>\"\",DBCS(TEXT(JigyoShohi3,\"#,##0.0\")),\"\")","v":{"$error":"#VALUE!"}},null,null,null,null,{"$f":"IF(B8<>\"\",DBCS(TEXT(KimatsuTanaoroshi3,\"#,##0.0\")),\"\")","v":{"$error":"#VALUE!"}},null,null,null,null,{"$f":"IF(B8<>\"\",DBCS(TEXT(MikomiNogyoShunyu3,\"#,##0\")),\"\")","v":{"$error":"#VALUE!"}}]
[null,null,null,null,null,null,null,null,null,null,null,null,null,null,{"$f":"IF(B8<>\"\",\"円\",\"\")","v":{"$error":"#VALUE!"}},null,null,null,null,{"$f":"IF(B8<>\"\",\"円/Kg等\",\"\")","v":{"$error":"#VALUE!"}},null,null,null,null,{"$f":"IF(B8<>\"\",\"円/Kg等\",\"\")","v":{"$error":"#VALUE!"}},null,null,null,null,null,{"$f":"IF(B8<>\"\",\"円\",\"\")","v":{"$error":"#VALUE!"}}]
[null,{"$f":"IF(MikomiNogyoTaishoHinmoku2*1>1,\"明細４\",\"\")","v":{"$error":"#VALUE!"}},null,{"$f":"IF(B10<>\"\",ShuruiHinmoku4,\"\")","v":{"$error":"#VALUE!"}},null,null,null,null,null,{"$f":"IF(B10<>\"\",DBCS(TEXT(KishuTanaoroshi4,\"#,##0\")),\"\")","v":{"$error":"#VALUE!"}},null,null,null,null,null,{"$f":"IF(B10<>\"\",DBCS(TEXT(JigyoShohi4,\"#,##0.0\")),\"\")","v":{"$error":"#VALUE!"}},null,null,null,null,{"$f":"IF(B10<>\"\",DBCS(TEXT(KimatsuTanaoroshi4,\"#,##0.0\")),\"\")","v":{"$error":"#VALUE!"}},null,null,null,null,{"$f":"IF(B10<>\"\",DBCS(TEXT(MikomiNogyoShunyu4,\"#,##0\")),\"\")","v":{"$error":"#VALUE!"}}]
[null,null,null,null,null,null,null,null,null,null,null,null,null,null,{"$f":"IF(B10<>\"\",\"円\",\"\")","v":{"$error":"#VALUE!"}},null,null,null,null,{"$f":"IF(B10<>\"\",\"円/Kg等\",\"\")","v":{"$error":"#VALUE!"}},null,null,null,null,{"$f":"IF(B10<>\"\",\"円/Kg等\",\"\")","v":{"$error":"#VALUE!"}},null,null,null,null,null,{"$f":"IF(B10<>\"\",\"円\",\"\")","v":{"$error":"#VALUE!"}}]
[null,{"$f":"IF(MikomiNogyoTaishoHinmoku2*1>1,\"明細５\",\"\")","v":{"$error":"#VALUE!"}},null,{"$f":"IF(B12<>\"\",ShuruiHinmoku5,\"\")","v":{"$error":"#VALUE!"}},null,null,null,null,null,{"$f":"IF(B12<>\"\",DBCS(TEXT(KishuTanaoroshi5,\"#,##0\")),\"\")","v":{"$error":"#VALUE!"}},null,null,null,null,null,{"$f":"IF(B12<>\"\",DBCS(TEXT(JigyoShohi5,\"#,##0.0\")),\"\")","v":{"$error":"#VALUE!"}},null,null,null,null,{"$f":"IF(B12<>\"\",DBCS(TEXT(KimatsuTanaoroshi5,\"#,##0.0\")),\"\")","v":{"$error":"#VALUE!"}},null,null,null,null,{"$f":"IF(B12<>\"\",DBCS(TEXT(MikomiNogyoShunyu5,\"#,##0\")),\"\")","v":{"$error":"#VALUE!"}}]
[null,null,null,null,null,null,null,null,null,null,null,null,null,null,{"$f":"IF(B12<>\"\",\"円\",\"\")","v":{"$error":"#VALUE!"}},null,null,null,null,{"$f":"IF(B12<>\"\",\"円/Kg等\",\"\")","v":{"$error":"#VALUE!"}},null,null,null,null,{"$f":"IF(B12<>\"\",\"円/Kg等\",\"\")","v":{"$error":"#VALUE!"}},null,null,null,null,null,{"$f":"IF(B12<>\"\",\"円\",\"\")","v":{"$error":"#VALUE!"}}]
[null,{"$f":"IF(MikomiNogyoTaishoHinmoku2*1>1,\"明細６\",\"\")","v":{"$error":"#VALUE!"}},null,{"$f":"IF(B14<>\"\",ShuruiHinmoku6,\"\")","v":{"$error":"#VALUE!"}},null,null,null,null,null,{"$f":"IF(B14<>\"\",DBCS(TEXT(KishuTanaoroshi6,\"#,##0\")),\"\")","v":{"$error":"#VALUE!"}},null,null,null,null,null,{"$f":"IF(B14<>\"\",DBCS(TEXT(JigyoShohi6,\"#,##0.0\")),\"\")","v":{"$error":"#VALUE!"}},null,null,null,null,{"$f":"IF(B14<>\"\",DBCS(TEXT(KimatsuTanaoroshi6,\"#,##0.0\")),\"\")","v":{"$error":"#VALUE!"}},null,null,null,null,{"$f":"IF(B14<>\"\",DBCS(TEXT(MikomiNogyoShunyu6,\"#,##0\")),\"\")","v":{"$error":"#VALUE!"}}]
[null,null,null,null,null,null,null,null,null,null,null,null,null,null,{"$f":"IF(B14<>\"\",\"円\",\"\")","v":{"$error":"#VALUE!"}},null,null,null,null,{"$f":"IF(B14<>\"\",\"円/Kg等\",\"\")","v":{"$error":"#VALUE!"}},null,null,null,null,{"$f":"IF(B14<>\"\",\"円/Kg等\",\"\")","v":{"$error":"#VALUE!"}},null,null,null,null,null,{"$f":"IF(B14<>\"\",\"円\",\"\")","v":{"$error":"#VALUE!"}}]
[null,{"$f":"IF(MikomiNogyoTaishoHinmoku2*1>1,\"明細７\",\"\")","v":{"$error":"#VALUE!"}},null,{"$f":"IF(B16<>\"\",ShuruiHinmoku7,\"\")","v":{"$error":"#VALUE!"}},null,null,null,null,null,{"$f":"IF(B16<>\"\",DBCS(TEXT(KishuTanaoroshi7,\"#,##0\")),\"\")","v":{"$error":"#VALUE!"}},null,null,null,null,null,{"$f":"IF(B16<>\"\",DBCS(TEXT(JigyoShohi7,\"#,##0.0\")),\"\")","v":{"$error":"#VALUE!"}},null,null,null,null,{"$f":"IF(B16<>\"\",DBCS(TEXT(KimatsuTanaoroshi7,\"#,##0.0\")),\"\")","v":{"$error":"#VALUE!"}},null,null,null,null,{"$f":"IF(B16<>\"\",DBCS(TEXT(MikomiNogyoShunyu7,\"#,##0\")),\"\")","v":{"$error":"#VALUE!"}}]
[null,null,null,null,null,null,null,null,null,null,null,null,null,null,{"$f":"IF(B16<>\"\",\"円\",\"\")","v":{"$error":"#VALUE!"}},null,null,null,null,{"$f":"IF(B16<>\"\",\"円/Kg等\",\"\")","v":{"$error":"#VALUE!"}},null,null,null,null,{"$f":"IF(B16<>\"\",\"円/Kg等\",\"\")","v":{"$error":"#VALUE!"}},null,null,null,null,null,{"$f":"IF(B16<>\"\",\"円\",\"\")","v":{"$error":"#VALUE!"}}]
[null,{"$f":"IF(MikomiNogyoTaishoHinmoku2*1>1,\"明細８\",\"\")","v":{"$error":"#VALUE!"}},null,{"$f":"IF(B18<>\"\",ShuruiHinmoku8,\"\")","v":{"$error":"#VALUE!"}},null,null,null,null,null,{"$f":"IF(B18<>\"\",DBCS(TEXT(KishuTanaoroshi8,\"#,##0\")),\"\")","v":{"$error":"#VALUE!"}},null,null,null,null,null,{"$f":"IF(B18<>\"\",DBCS(TEXT(JigyoShohi8,\"#,##0.0\")),\"\")","v":{"$error":"#VALUE!"}},null,null,null,null,{"$f":"IF(B18<>\"\",DBCS(TEXT(KimatsuTanaoroshi8,\"#,##0.0\")),\"\")","v":{"$error":"#VALUE!"}},null,null,null,null,{"$f":"IF(B18<>\"\",DBCS(TEXT(MikomiNogyoShunyu8,\"#,##0\")),\"\")","v":{"$error":"#VALUE!"}}]
[null,null,null,null,null,null,null,null,null,null,null,null,null,null,{"$f":"IF(B18<>\"\",\"円\",\"\")","v":{"$error":"#VALUE!"}},null,null,null,null,{"$f":"IF(B18<>\"\",\"円/Kg等\",\"\")","v":{"$error":"#VALUE!"}},null,null,null,null,{"$f":"IF(B18<>\"\",\"円/Kg等\",\"\")","v":{"$error":"#VALUE!"}},null,null,null,null,null,{"$f":"IF(B18<>\"\",\"円\",\"\")","v":{"$error":"#VALUE!"}}]
[null,{"$f":"IF(MikomiNogyoTaishoHinmoku2*1>1,\"明細９\",\"\")","v":{"$error":"#VALUE!"}},null,{"$f":"IF(B20<>\"\",ShuruiHinmoku9,\"\")","v":{"$error":"#VALUE!"}},null,null,null,null,null,{"$f":"IF(B20<>\"\",DBCS(TEXT(KishuTanaoroshi9,\"#,##0\")),\"\")","v":{"$error":"#VALUE!"}},null,null,null,null,null,{"$f":"IF(B20<>\"\",DBCS(TEXT(JigyoShohi9,\"#,##0.0\")),\"\")","v":{"$error":"#VALUE!"}},null,null,null,null,{"$f":"IF(B20<>\"\",DBCS(TEXT(KimatsuTanaoroshi9,\"#,##0.0\")),\"\")","v":{"$error":"#VALUE!"}},null,null,null,null,{"$f":"IF(B20<>\"\",DBCS(TEXT(MikomiNogyoShunyu9,\"#,##0\")),\"\")","v":{"$error":"#VALUE!"}}]
[null,null,null,null,null,null,null,null,null,null,null,null,null,null,{"$f":"IF(B20<>\"\",\"円\",\"\")","v":{"$error":"#VALUE!"}},null,null,null,null,{"$f":"IF(B20<>\"\",\"円/Kg等\",\"\")","v":{"$error":"#VALUE!"}},null,null,null,null,{"$f":"IF(B20<>\"\",\"円/Kg等\",\"\")","v":{"$error":"#VALUE!"}},null,null,null,null,null,{"$f":"IF(B20<>\"\",\"円\",\"\")","v":{"$error":"#VALUE!"}}]
[null,{"$f":"IF(MikomiNogyoTaishoHinmoku2*1>1,\"明細１０\",\"\")","v":{"$error":"#VALUE!"}},null,{"$f":"IF(B22<>\"\",ShuruiHinmoku10,\"\")","v":{"$error":"#VALUE!"}},null,null,null,null,null,{"$f":"IF(B22<>\"\",DBCS(TEXT(KishuTanaoroshi10,\"#,##0\")),\"\")","v":{"$error":"#VALUE!"}},null,null,null,null,null,{"$f":"IF(B22<>\"\",DBCS(TEXT(JigyoShohi10,\"#,##0.0\")),\"\")","v":{"$error":"#VALUE!"}},null,null,null,null,{"$f":"IF(B22<>\"\",DBCS(TEXT(KimatsuTanaoroshi10,\"#,##0.0\")),\"\")","v":{"$error":"#VALUE!"}},null,null,null,null,{"$f":"IF(B22<>\"\",DBCS(TEXT(MikomiNogyoShunyu10,\"#,##0\")),\"\")","v":{"$error":"#VALUE!"}}]
[null,null,null,null,null,null,null,null,null,null,null,null,null,null,{"$f":"IF(B22<>\"\",\"円\",\"\")","v":{"$error":"#VALUE!"}},null,null,null,null,{"$f":"IF(B22<>\"\",\"円/Kg等\",\"\")","v":{"$error":"#VALUE!"}},null,null,null,null,{"$f":"IF(B22<>\"\",\"円/Kg等\",\"\")","v":{"$error":"#VALUE!"}},null,null,null,null,null,{"$f":"IF(B22<>\"\",\"円\",\"\")","v":{"$error":"#VALUE!"}}]
[null,"合計",null,null,null,null,null,null,null,{"$f":"DBCS(TEXT(KishuTanaoroshi11,\"#,##0\"))","v":"０"},null,null,null,null,null,null,null,null,null,null,null,null,null,null,null,{"$f":"DBCS(TEXT(MikomiNogyoShunyu11,\"#,##0\"))","v":"０"}]
[null,null,null,null,null,null,null,null,null,null,null,null,null,null,"円",null,null,null,null,null,null,null,null,null,null,null,null,null,null,null,"円"]

{"sheet":"【ひな形】入力３","index":12,"n_rows":24,"n_cols":26,"rows_kept":24,"cut":false,"hidden":true,"merged":[[23,6,24,7],[23,8,24,13],[21,6,22,7],[21,8,22,13],[21,14,21,19],[21,20,21,25],[19,6,20,7],[19,8,20,13],[19,14,19,19],[19,20,19,25],[17,6,18,7],[17,8,18,13],[17,14,17,19],[17,20,17,25],[15,6,16,7],[15,8,16,13],[15,14,15,19],[15,20,15,25],[13,6,14,7],[13,8,14,13],[13,14,13,19],[13,20,13,25],[11,6,12,7],[11,8,12,13],[11,14,11,19],[11,20,11,25],[9,6,10,7],[9,8,10,13],[9,14,9,19],[9,20,9,25],[7,6,8,7],[7,8,8,13],[7,14,7,19],[7,20,7,25],[2,6,2,7],[2,8,2,13],[2,14,2,19],[2,20,2,25],[5,6,6,7],[5,8,6,13],[5,14,5,19],[5,20,5,25],[3,6,4,7],[3,8,4,13],[3,14,3,19],[3,20,3,25]]}
[]
[]
[null,null,null,null,null,null,null,null,"種類・品目等",null,null,null,null,null,"数量払交付金",null,null,null,null,null,"面積払交付金"]
[null,null,null,null,null,null,"明細１",null,{"$f":"ShuruiHinmoku1","v":0},null,null,null,null,null,{"$f":"DBCS(TEXT(Suryobarai1,\"#,##0\"))","v":"０"},null,null,null,null,null,{"$f":"DBCS(TEXT(MensekiBarai1,\"#,##0\"))","v":"０"}]
[null,null,null,null,null,null,null,null,null,null,null,null,null,null,null,null,null,null,null,"円",null,null,null,null,null,"円"]
[null,null,null,null,null,null,{"$f":"IF(MikomiNogyoTaishoHinmoku2*1>1,\"明細２\",\"\")","v":{"$error":"#VALUE!"}},null,{"$f":"IF(G6<>\"\",ShuruiHinmoku2,\"\")","v":{"$error":"#VALUE!"}},null,null,null,null,null,{"$f":"IF(G6<>\"\",DBCS(TEXT(HanbaiKingaku2,\"#,##0\")),\"\")","v":{"$error":"#VALUE!"}},null,null,null,null,null,{"$f":"IF(G6<>\"\",DBCS(TEXT(MensekiBarai2,\"#,##0.0\")),\"\")","v":{"$error":"#VALUE!"}}]
[null,null,null,null,null,null,null,null,null,null,null,null,null,null,null,null,null,null,null,{"$f":"IF(G6<>\"\",\"円\",\"\")","v":{"$error":"#VALUE!"}},null,null,null,null,null,{"$f":"IF(G6<>\"\",\"円\",\"\")","v":{"$error":"#VALUE!"}}]
[null,null,null,null,null,null,{"$f":"IF(MikomiNogyoTaishoHinmoku2*1>1,\"明細３\",\"\")","v":{"$error":"#VALUE!"}},null,{"$f":"IF(G8<>\"\",ShuruiHinmoku3,\"\")","v":{"$error":"#VALUE!"}},null,null,null,null,null,{"$f":"IF(G8<>\"\",DBCS(TEXT(HanbaiKingaku3,\"#,##0\")),\"\")","v":{"$error":"#VALUE!"}},null,null,null,null,null,{"$f":"IF(G8<>\"\",DBCS(TEXT(MensekiBarai3,\"#,##0.0\")),\"\")","v":{"$error":"#VALUE!"}}]
[null,null,null,null,null,null,null,null,null,null,null,null,null,null,null,null,null,null,null,{"$f":"IF(G8<>\"\",\"円\",\"\")","v":{"$error":"#VALUE!"}},null,null,null,null,null,{"$f":"IF(G8<>\"\",\"円\",\"\")","v":{"$error":"#VALUE!"}}]
[null,null,null,null,null,null,{"$f":"IF(MikomiNogyoTaishoHinmoku2*1>1,\"明細４\",\"\")","v":{"$error":"#VALUE!"}},null,{"$f":"IF(G10<>\"\",ShuruiHinmoku4,\"\")","v":{"$error":"#VALUE!"}},null,null,null,null,null,{"$f":"IF(G10<>\"\",DBCS(TEXT(HanbaiKingaku4,\"#,##0\")),\"\")","v":{"$error":"#VALUE!"}},null,null,null,null,null,{"$f":"IF(G10<>\"\",DBCS(TEXT(MensekiBarai4,\"#,##0.0\")),\"\")","v":{"$error":"#VALUE!"}}]
[null,null,null,null,null,null,null,null,null,null,null,null,null,null,null,null,null,null,null,{"$f":"IF(G10<>\"\",\"円\",\"\")","v":{"$error":"#VALUE!"}},null,null,null,null,null,{"$f":"IF(G10<>\"\",\"円\",\"\")","v":{"$error":"#VALUE!"}}]
[null,null,null,null,null,null,{"$f":"IF(MikomiNogyoTaishoHinmoku2*1>1,\"明細５\",\"\")","v":{"$error":"#VALUE!"}},null,{"$f":"IF(G12<>\"\",ShuruiHinmoku5,\"\")","v":{"$error":"#VALUE!"}},null,null,null,null,null,{"$f":"IF(G12<>\"\",DBCS(TEXT(HanbaiKingaku5,\"#,##0\")),\"\")","v":{"$error":"#VALUE!"}},null,null,null,null,null,{"$f":"IF(G12<>\"\",DBCS(TEXT(MensekiBarai5,\"#,##0.0\")),\"\")","v":{"$error":"#VALUE!"}}]
[null,null,null,null,null,null,null,null,null,null,null,null,null,null,null,null,null,null,null,{"$f":"IF(G12<>\"\",\"円\",\"\")","v":{"$error":"#VALUE!"}},null,null,null,null,null,{"$f":"IF(G12<>\"\",\"円\",\"\")","v":{"$error":"#VALUE!"}}]
[null,null,null,null,null,null,{"$f":"IF(MikomiNogyoTaishoHinmoku2*1>1,\"明細６\",\"\")","v":{"$error":"#VALUE!"}},null,{"$f":"IF(G14<>\"\",ShuruiHinmoku6,\"\")","v":{"$error":"#VALUE!"}},null,null,null,null,null,{"$f":"IF(G14<>\"\",DBCS(TEXT(HanbaiKingaku6,\"#,##0\")),\"\")","v":{"$error":"#VALUE!"}},null,null,null,null,null,{"$f":"IF(G14<>\"\",DBCS(TEXT(MensekiBarai6,\"#,##0.0\")),\"\")","v":{"$error":"#VALUE!"}}]
[null,null,null,null,null,null,null,null,null,null,null,null,null,null,null,null,null,null,null,{"$f":"IF(G14<>\"\",\"円\",\"\")","v":{"$error":"#VALUE!"}},null,null,null,null,null,{"$f":"IF(G14<>\"\",\"円\",\"\")","v":{"$error":"#VALUE!"}}]
[null,null,null,null,null,null,{"$f":"IF(MikomiNogyoTaishoHinmoku2*1>1,\"明細７\",\"\")","v":{"$error":"#VALUE!"}},null,{"$f":"IF(G16<>\"\",ShuruiHinmoku7,\"\")","v":{"$error":"#VALUE!"}},null,null,null,null,null,{"$f":"IF(G16<>\"\",DBCS(TEXT(HanbaiKingaku7,\"#,##0\")),\"\")","v":{"$error":"#VALUE!"}},null,null,null,null,null,{"$f":"IF(G16<>\"\",DBCS(TEXT(MensekiBarai7,\"#,##0.0\")),\"\")","v":{"$error":"#VALUE!"}}]
[null,null,null,null,null,null,null,null,null,null,null,null,null,null,null,null,null,null,null,{"$f":"IF(G16<>\"\",\"円\",\"\")","v":{"$error":"#VALUE!"}},null,null,null,null,null,{"$f":"IF(G16<>\"\",\"円\",\"\")","v":{"$error":"#VALUE!"}}]
[null,null,null,null,null,null,{"$f":"IF(MikomiNogyoTaishoHinmoku2*1>1,\"明細８\",\"\")","v":{"$error":"#VALUE!"}},null,{"$f":"IF(G18<>\"\",ShuruiHinmoku8,\"\")","v":{"$error":"#VALUE!"}},null,null,null,null,null,{"$f":"IF(G18<>\"\",DBCS(TEXT(HanbaiKingaku8,\"#,##0\")),\"\")","v":{"$error":"#VALUE!"}},null,null,null,null,null,{"$f":"IF(G18<>\"\",DBCS(TEXT(MensekiBarai8,\"#,##0.0\")),\"\")","v":{"$error":"#VALUE!"}}]
[null,null,null,null,null,null,null,null,null,null,null,null,null,null,null,null,null,null,null,{"$f":"IF(G18<>\"\",\"円\",\"\")","v":{"$error":"#VALUE!"}},null,null,null,null,null,{"$f":"IF(G18<>\"\",\"円\",\"\")","v":{"$error":"#VALUE!"}}]
[null,null,null,null,null,null,{"$f":"IF(MikomiNogyoTaishoHinmoku2*1>1,\"明細９\",\"\")","v":{"$error":"#VALUE!"}},null,{"$f":"IF(G20<>\"\",ShuruiHinmoku9,\"\")","v":{"$error":"#VALUE!"}},null,null,null,null,null,{"$f":"IF(G20<>\"\",DBCS(TEXT(HanbaiKingaku9,\"#,##0\")),\"\")","v":{"$error":"#VALUE!"}},null,null,null,null,null,{"$f":"IF(G20<>\"\",DBCS(TEXT(MensekiBarai9,\"#,##0.0\")),\"\")","v":{"$error":"#VALUE!"}}]
[null,null,null,null,null,null,null,null,null,null,null,null,null,null,null,null,null,null,null,{"$f":"IF(G20<>\"\",\"円\",\"\")","v":{"$error":"#VALUE!"}},null,null,null,null,null,{"$f":"IF(G20<>\"\",\"円\",\"\")","v":{"$error":"#VALUE!"}}]
[null,null,null,null,null,null,{"$f":"IF(MikomiNogyoTaishoHinmoku2*1>1,\"明細１０\",\"\")","v":{"$error":"#VALUE!"}},null,{"$f":"IF(G22<>\"\",ShuruiHinmoku10,\"\")","v":{"$error":"#VALUE!"}},null,null,null,null,null,{"$f":"IF(G22<>\"\",DBCS(TEXT(HanbaiKingaku10,\"#,##0\")),\"\")","v":{"$error":"#VALUE!"}},null,null,null,null,null,{"$f":"IF(G22<>\"\",DBCS(TEXT(MensekiBarai10,\"#,##0.0\")),\"\")","v":{"$error":"#VALUE!"}}]
[null,null,null,null,null,null,null,null,null,null,null,null,null,null,null,null,null,null,null,{"$f":"IF(G22<>\"\",\"円\",\"\")","v":{"$error":"#VALUE!"}},null,null,null,null,null,{"$f":"IF(G22<>\"\",\"円\",\"\")","v":{"$error":"#VALUE!"}}]
[null,null,null,null,null,null,"合計"]

{"sheet":"【ひな形】入力４","index":13,"n_rows":54,"n_cols":35,"rows_kept":54,"cut":false,"hidden":true,"merged":[[30,34,31,38],[27,2,28,6],[31,29,31,33],[32,29,32,33],[31,24,31,28],[32,24,32,28],[30,24,30,33],[50,9,50,10],[51,9,51,13],[37,2,37,6],[38,2,38,6],[39,2,39,6],[32,2,32,6],[33,2,33,6],[30,2,30,6],[31,2,31,6],[52,9,52,10],[53,9,53,13],[30,14,31,18],[30,19,31,23],[44,9,44,10],[45,9,45,13],[46,9,46,10],[47,9,47,13],[48,9,48,10],[49,9,49,13],[38,9,38,10],[39,9,39,13],[40,9,40,10],[41,9,41,13],[42,9,42,10],[43,9,43,13],[52,2,52,6],[53,2,53,6],[30,9,31,13],[33,9,33,13],[32,9,32,10],[34,9,34,10],[35,9,35,13],[36,9,36,10],[37,9,37,13],[46,2,46,6],[47,2,47,6],[48,2,48,6],[49,2,49,6],[50,2,50,6],[51,2,51,6],[40,2,40,6],[41,2,41,6],[42,2,42,6],[43,2,43,6],[44,2,44,6],[45,2,45,6],[34,2,34,6],[35,2,35,6],[36,2,36,6],[21,7,22,9],[21,10,22,15],[21,16,21,21],[21,22,21,27],[23,7,24,9],[23,10,24,15],[17,7,18,9],[17,10,18,15],[17,16,17,21],[17,22,17,27],[19,7,20,9],[19,10,20,15],[19,16,19,21],[19,22,19,27],[13,7,14,9],[13,10,14,15],[13,16,13,21],[13,22,13,27],[15,7,16,9],[15,10,16,15],[15,16,15,21],[15,22,15,27],[9,7,10,9],[9,10,10,15],[9,16,9,21],[9,22,9,27],[11,7,12,9],[11,10,12,15],[11,16,11,21],[11,22,11,27],[5,7,6,9],[5,10,6,15],[5,16,5,21],[5,22,5,27],[7,7,8,9],[7,10,8,15],[7,16,7,21],[7,22,7,27],[2,7,2,9],[2,10,2,15],[2,16,2,21],[2,22,2,27],[3,7,4,9],[3,10,4,15],[3,16,3,21],[3,22,3,27]]}
[]
[]
[null,null,null,null,null,null,null,null,null,null,"種類・品目等",null,null,null,null,null,"数量払交付金",null,null,null,null,null,"面積払交付金"]
[null,null,null,null,null,null,null,"明細１",null,null,{"$f":"ShuruiHinmoku1","v":0},null,null,null,null,null,{"$f":"DBCS(TEXT(Suryobarai1,\"#,##0\"))","v":"０"},null,null,null,null,null,{"$f":"DBCS(TEXT(MensekiBarai1,\"#,##0\"))","v":"０"}]
[null,null,null,null,null,null,null,null,null,null,null,null,null,null,null,null,null,null,null,null,null,"円",null,null,null,null,null,"円"]
[null,null,null,null,null,null,null,{"$f":"IF(MikomiNogyoTaishoHinmoku2*1>1,\"明細２\",\"\")","v":{"$error":"#VALUE!"}},null,null,{"$f":"IF(H6<>\"\",ShuruiHinmoku2,\"\")","v":{"$error":"#VALUE!"}},null,null,null,null,null,{"$f":"IF(H6<>\"\",DBCS(TEXT(HanbaiKingaku2,\"#,##0\")),\"\")","v":{"$error":"#VALUE!"}},null,null,null,null,null,{"$f":"IF(H6<>\"\",DBCS(TEXT(MensekiBarai2,\"#,##0.0\")),\"\")","v":{"$error":"#VALUE!"}}]
[null,null,null,null,null,null,null,null,null,null,null,null,null,null,null,null,null,null,null,null,null,{"$f":"IF(H6<>\"\",\"円\",\"\")","v":{"$error":"#VALUE!"}},null,null,null,null,null,{"$f":"IF(H6<>\"\",\"円\",\"\")","v":{"$error":"#VALUE!"}}]
[null,null,null,null,null,null,null,{"$f":"IF(MikomiNogyoTaishoHinmoku2*1>1,\"明細３\",\"\")","v":{"$error":"#VALUE!"}},null,null,{"$f":"IF(H8<>\"\",ShuruiHinmoku3,\"\")","v":{"$error":"#VALUE!"}},null,null,null,null,null,{"$f":"IF(H8<>\"\",DBCS(TEXT(HanbaiKingaku3,\"#,##0\")),\"\")","v":{"$error":"#VALUE!"}},null,null,null,null,null,{"$f":"IF(H8<>\"\",DBCS(TEXT(MensekiBarai3,\"#,##0.0\")),\"\")","v":{"$error":"#VALUE!"}}]
[null,null,null,null,null,null,null,null,null,null,null,null,null,null,null,null,null,null,null,null,null,{"$f":"IF(H8<>\"\",\"円\",\"\")","v":{"$error":"#VALUE!"}},null,null,null,null,null,{"$f":"IF(H8<>\"\",\"円\",\"\")","v":{"$error":"#VALUE!"}}]
[null,null,null,null,null,null,null,{"$f":"IF(MikomiNogyoTaishoHinmoku2*1>1,\"明細４\",\"\")","v":{"$error":"#VALUE!"}},null,null,{"$f":"IF(H10<>\"\",ShuruiHinmoku4,\"\")","v":{"$error":"#VALUE!"}},null,null,null,null,null,{"$f":"IF(H10<>\"\",DBCS(TEXT(HanbaiKingaku4,\"#,##0\")),\"\")","v":{"$error":"#VALUE!"}},null,null,null,null,null,{"$f":"IF(H10<>\"\",DBCS(TEXT(MensekiBarai4,\"#,##0.0\")),\"\")","v":{"$error":"#VALUE!"}}]
[null,null,null,null,null,null,null,null,null,null,null,null,null,null,null,null,null,null,null,null,null,{"$f":"IF(H10<>\"\",\"円\",\"\")","v":{"$error":"#VALUE!"}},null,null,null,null,null,{"$f":"IF(H10<>\"\",\"円\",\"\")","v":{"$error":"#VALUE!"}}]
[null,null,null,null,null,null,null,{"$f":"IF(MikomiNogyoTaishoHinmoku2*1>1,\"明細５\",\"\")","v":{"$error":"#VALUE!"}},null,null,{"$f":"IF(H12<>\"\",ShuruiHinmoku5,\"\")","v":{"$error":"#VALUE!"}},null,null,null,null,null,{"$f":"IF(H12<>\"\",DBCS(TEXT(HanbaiKingaku5,\"#,##0\")),\"\")","v":{"$error":"#VALUE!"}},null,null,null,null,null,{"$f":"IF(H12<>\"\",DBCS(TEXT(MensekiBarai5,\"#,##0.0\")),\"\")","v":{"$error":"#VALUE!"}}]
[null,null,null,null,null,null,null,null,null,null,null,null,null,null,null,null,null,null,null,null,null,{"$f":"IF(H12<>\"\",\"円\",\"\")","v":{"$error":"#VALUE!"}},null,null,null,null,null,{"$f":"IF(H12<>\"\",\"円\",\"\")","v":{"$error":"#VALUE!"}}]
[null,null,null,null,null,null,null,{"$f":"IF(MikomiNogyoTaishoHinmoku2*1>1,\"明細６\",\"\")","v":{"$error":"#VALUE!"}},null,null,{"$f":"IF(H14<>\"\",ShuruiHinmoku6,\"\")","v":{"$error":"#VALUE!"}},null,null,null,null,null,{"$f":"IF(H14<>\"\",DBCS(TEXT(HanbaiKingaku6,\"#,##0\")),\"\")","v":{"$error":"#VALUE!"}},null,null,null,null,null,{"$f":"IF(H14<>\"\",DBCS(TEXT(MensekiBarai6,\"#,##0.0\")),\"\")","v":{"$error":"#VALUE!"}}]
[null,null,null,null,null,null,null,null,null,null,null,null,null,null,null,null,null,null,null,null,null,{"$f":"IF(H14<>\"\",\"円\",\"\")","v":{"$error":"#VALUE!"}},null,null,null,null,null,{"$f":"IF(H14<>\"\",\"円\",\"\")","v":{"$error":"#VALUE!"}}]
[null,null,null,null,null,null,null,{"$f":"IF(MikomiNogyoTaishoHinmoku2*1>1,\"明細７\",\"\")","v":{"$error":"#VALUE!"}},null,null,{"$f":"IF(H16<>\"\",ShuruiHinmoku7,\"\")","v":{"$error":"#VALUE!"}},null,null,null,null,null,{"$f":"IF(H16<>\"\",DBCS(TEXT(HanbaiKingaku7,\"#,##0\")),\"\")","v":{"$error":"#VALUE!"}},null,null,null,null,null,{"$f":"IF(H16<>\"\",DBCS(TEXT(MensekiBarai7,\"#,##0.0\")),\"\")","v":{"$error":"#VALUE!"}}]
[null,null,null,null,null,null,null,null,null,null,null,null,null,null,null,null,null,null,null,null,null,{"$f":"IF(H16<>\"\",\"円\",\"\")","v":{"$error":"#VALUE!"}},null,null,null,null,null,{"$f":"IF(H16<>\"\",\"円\",\"\")","v":{"$error":"#VALUE!"}}]
[null,null,null,null,null,null,null,{"$f":"IF(MikomiNogyoTaishoHinmoku2*1>1,\"明細８\",\"\")","v":{"$error":"#VALUE!"}},null,null,{"$f":"IF(H18<>\"\",ShuruiHinmoku8,\"\")","v":{"$error":"#VALUE!"}},null,null,null,null,null,{"$f":"IF(H18<>\"\",DBCS(TEXT(HanbaiKingaku8,\"#,##0\")),\"\")","v":{"$error":"#VALUE!"}},null,null,null,null,null,{"$f":"IF(H18<>\"\",DBCS(TEXT(MensekiBarai8,\"#,##0.0\")),\"\")","v":{"$error":"#VALUE!"}}]
[null,null,null,null,null,null,null,null,null,null,null,null,null,null,null,null,null,null,null,null,null,{"$f":"IF(H18<>\"\",\"円\",\"\")","v":{"$error":"#VALUE!"}},null,null,null,null,null,{"$f":"IF(H18<>\"\",\"円\",\"\")","v":{"$error":"#VALUE!"}}]
[null,null,null,null,null,null,null,{"$f":"IF(MikomiNogyoTaishoHinmoku2*1>1,\"明細９\",\"\")","v":{"$error":"#VALUE!"}},null,null,{"$f":"IF(H20<>\"\",ShuruiHinmoku9,\"\")","v":{"$error":"#VALUE!"}},null,null,null,null,null,{"$f":"IF(H20<>\"\",DBCS(TEXT(HanbaiKingaku9,\"#,##0\")),\"\")","v":{"$error":"#VALUE!"}},null,null,null,null,null,{"$f":"IF(H20<>\"\",DBCS(TEXT(MensekiBarai9,\"#,##0.0\")),\"\")","v":{"$error":"#VALUE!"}}]
[null,null,null,null,null,null,null,null,null,null,null,null,null,null,null,null,null,null,null,null,null,{"$f":"IF(H20<>\"\",\"円\",\"\")","v":{"$error":"#VALUE!"}},null,null,null,null,null,{"$f":"IF(H20<>\"\",\"円\",\"\")","v":{"$error":"#VALUE!"}}]
[null,null,null,null,null,null,null,{"$f":"IF(MikomiNogyoTaishoHinmoku2*1>1,\"明細１０\",\"\")","v":{"$error":"#VALUE!"}},null,null,{"$f":"IF(H22<>\"\",ShuruiHinmoku10,\"\")","v":{"$error":"#VALUE!"}},null,null,null,null,null,{"$f":"IF(H22<>\"\",DBCS(TEXT(HanbaiKingaku10,\"#,##0\")),\"\")","v":{"$error":"#VALUE!"}},null,null,null,null,null,{"$f":"IF(H22<>\"\",DBCS(TEXT(MensekiBarai10,\"#,##0.0\")),\"\")","v":{"$error":"#VALUE!"}}]
[null,null,null,null,null,null,null,null,null,null,null,null,null,null,null,null,null,null,null,null,null,{"$f":"IF(H22<>\"\",\"円\",\"\")","v":{"$error":"#VALUE!"}},null,null,null,null,null,{"$f":"IF(H22<>\"\",\"円\",\"\")","v":{"$error":"#VALUE!"}}]
[null,null,null,null,null,null,null,"合計"]
[]
[]
[]
[]
[]
[]
[null,null,"区分",null,null,null,null,null,null,"種類・品目等",null,null,null,null,"販売金額\n①",null,null,null,null,"左記から除外\nするもの　②",null,null,null,null,"雑収入のうち販売金額に含めるもの　③",null,null,null,null,null,null,null,null,null,"収入金額として申告する\n販売金額 ＝①－②＋③"]
[null,null,"販売金額",null,null,null,null,null,null,null,null,null,null,null,null,null,null,null,null,null,null,null,null,null,"数量払",null,null,null,null,"その他"]
[null,null,null,null,null,null,null,null,null,"明細０１"]
[null,null,{"$f":"IF(#REF!<>\"\",DBCS(TEXT(HanbaiKingaku10,\"#,##0\")),\"\")","v":{"$error":"#REF!"}}]
[null,null,null,null,null,null,null,null,null,"明細０２"]
[null,null,{"$f":"IF(#REF!<>\"\",DBCS(TEXT(HanbaiKingaku10,\"#,##0\")),\"\")","v":{"$error":"#REF!"}}]
[null,null,null,null,null,null,null,null,null,"明細０３"]
[null,null,{"$f":"IF(#REF!<>\"\",DBCS(TEXT(HanbaiKingaku10,\"#,##0\")),\"\")","v":{"$error":"#REF!"}}]
[null,null,null,null,null,null,null,null,null,"明細０４"]
[null,null,{"$f":"IF(#REF!<>\"\",DBCS(TEXT(HanbaiKingaku10,\"#,##0\")),\"\")","v":{"$error":"#REF!"}}]
[null,null,null,null,null,null,null,null,null,"明細０５"]
[null,null,{"$f":"IF(#REF!<>\"\",DBCS(TEXT(HanbaiKingaku10,\"#,##0\")),\"\")","v":{"$error":"#REF!"}}]
[null,null,null,null,null,null,null,null,null,"明細０６"]
[null,null,{"$f":"IF(#REF!<>\"\",DBCS(TEXT(HanbaiKingaku10,\"#,##0\")),\"\")","v":{"$error":"#REF!"}}]
[null,null,null,null,null,null,null,null,null,"明細０７"]
[null,null,{"$f":"IF(#REF!<>\"\",DBCS(TEXT(HanbaiKingaku10,\"#,##0\")),\"\")","v":{"$error":"#REF!"}}]
[null,null,null,null,null,null,null,null,null,"明細０８"]
[null,null,{"$f":"IF(#REF!<>\"\",DBCS(TEXT(HanbaiKingaku10,\"#,##0\")),\"\")","v":{"$error":"#REF!"}}]
[null,null,null,null,null,null,null,null,null,"明細０９"]
[null,null,{"$f":"IF(#REF!<>\"\",DBCS(TEXT(HanbaiKingaku10,\"#,##0\")),\"\")","v":{"$error":"#REF!"}}]
[null,null,null,null,null,null,null,null,null,"明細１０"]
[null,null,{"$f":"IF(#REF!<>\"\",DBCS(TEXT(HanbaiKingaku10,\"#,##0\")),\"\")","v":{"$error":"#REF!"}}]
[null,null,null,null,null,null,null,null,null,"合計"]
[null,null,{"$f":"IF(#REF!<>\"\",DBCS(TEXT(HanbaiKingaku10,\"#,##0\")),\"\")","v":{"$error":"#REF!"}}]

{"sheet":"【ひな形】入力5","index":14,"n_rows":26,"n_cols":31,"rows_kept":26,"cut":false,"hidden":true,"merged":[[20,28,20,30],[22,28,22,30],[6,28,6,30],[8,28,8,30],[10,28,10,30],[12,28,12,30],[14,28,14,30],[16,28,16,30],[24,28,24,30],[24,24,24,27],[24,21,24,23],[4,28,4,30],[4,21,4,23],[22,21,22,23],[20,21,20,23],[18,21,18,23],[16,21,16,23],[14,21,14,23],[16,24,16,27],[18,24,18,27],[20,24,20,27],[22,24,22,27],[14,24,14,27],[18,28,18,30],[12,21,12,23],[10,21,10,23],[8,21,8,23],[6,21,6,23],[4,24,4,27],[6,24,6,27],[8,24,8,27],[10,24,10,27],[12,24,12,27],[2,3,3,7],[2,1,3,2],[2,11,3,16],[3,21,3,23],[3,24,3,27],[3,17,3,20],[2,24,2,30],[2,17,2,23],[3,28,3,30],[2,8,3,10],[22,1,23,2],[22,3,23,7],[22,11,22,16],[22,17,22,20],[24,1,25,2],[24,3,25,7],[22,8,22,10],[24,8,24,10],[24,11,24,16],[18,1,19,2],[18,3,19,7],[18,11,18,16],[18,17,18,20],[20,1,21,2],[20,3,21,7],[20,11,20,16],[20,17,20,20],[20,8,20,10],[18,8,18,10],[14,1,15,2],[14,3,15,7],[14,11,14,16],[14,17,14,20],[16,1,17,2],[16,3,17,7],[16,11,16,16],[16,17,16,20],[14,8,14,10],[16,8,16,10],[10,1,11,2],[10,3,11,7],[10,11,10,16],[10,17,10,20],[12,1,13,2],[12,3,13,7],[12,11,12,16],[12,17,12,20],[12,8,12,10],[10,8,10,10],[6,1,7,2],[6,3,7,7],[6,11,6,16],[6,17,6,20],[8,1,9,2],[8,3,9,7],[8,11,8,16],[8,17,8,20],[6,8,6,10],[8,8,8,10],[4,1,5,2],[4,3,5,7],[4,11,4,16],[4,17,4,20],[4,8,4,10]]}
[]
[]
[null,null,null,"種類・品目等",null,null,null,null,"期首棚卸高\n①",null,null,"販売金額②",null,null,null,null,null,"事業消費金額",null,null,null,null,null,null,"期末棚卸高"]
[null,null,null,null,null,null,null,null,null,null,null,null,null,null,null,null,null,"数量",null,null,null,"金額③",null,null,"数量",null,null,null,"金額④"]
[null,"明細１",null,null,null,null,null,null,{"$f":"IF(【ひな形】入力２!J4=\"\",\"\",ASC(【ひな形】入力２!J4))","v":"0"},null,null,{"$f":"DBCS(TEXT(HanbaiKingaku1,\"#,##0\"))","v":"０"},null,null,null,null,null,{"$f":"DBCS(TEXT(JigyoShohi1,\"#,##0\"))","v":"０"},null,null,null,{"$f":"TEXT(ROUND(JigyoShohiKingaku1,0),\"#,##0\")","v":"0"},null,null,{"$f":"DBCS(TEXT(MensekiBarai1,\"#,##0\"))","v":"０"},null,null,null,{"$f":"TEXT(ROUND(KimatsuTanaoroshiKingaku1,0),\"#,##0\")","v":"0"}]
[null,null,null,null,null,null,null,null,null,null,"円",null,null,null,null,null,"円",null,null,null,"Kg等",null,null,"円",null,null,null,"Kg等",null,null,"円"]
[null,{"$f":"IF(MikomiNogyoTaishoHinmoku2*1>1,\"明細２\",\"\")","v":{"$error":"#VALUE!"}},null,{"$f":"IF(B7<>\"\",ShuruiHinmoku2,\"\")","v":{"$error":"#VALUE!"}},null,null,null,null,{"$f":"IF(【ひな形】入力２!J6=\"\",\"\",ASC(【ひな形】入力２!J6))","v":{"$error":"#VALUE!"}},null,null,{"$f":"IF(B7<>\"\",DBCS(TEXT(HanbaiKingaku2,\"#,##0\")),\"\")","v":{"$error":"#VALUE!"}},null,null,null,null,null,{"$f":"IF(B7<>\"\",DBCS(TEXT(JigyoShohi2,\"#,##0.0\")),\"\")","v":{"$error":"#VALUE!"}},null,null,null,{"$f":"IF(B7<>\"\",TEXT(JigyoShohiKingaku2,\"#,##0\"),\"\")","v":{"$error":"#VALUE!"}},null,null,{"$f":"IF(B7<>\"\",DBCS(TEXT(MensekiBarai2,\"#,##0.0\")),\"\")","v":{"$error":"#VALUE!"}},null,null,null,{"$f":"IF(B7<>\"\",TEXT(KimatsuTanaoroshiKingaku2,\"#,##0\"),\"\")","v":{"$error":"#VALUE!"}}]
[null,null,null,null,null,null,null,null,null,null,{"$f":"IF(B7<>\"\",\"円\",\"\")","v":{"$error":"#VALUE!"}},null,null,null,null,null,{"$f":"IF(B7<>\"\",\"円\",\"\")","v":{"$error":"#VALUE!"}},null,null,null,{"$f":"IF(B7<>\"\",\"Kg等\",\"\")","v":{"$error":"#VALUE!"}},null,null,{"$f":"IF(B7<>\"\",\"円\",\"\")","v":{"$error":"#VALUE!"}},null,null,null,{"$f":"IF(B7<>\"\",\"Kg等\",\"\")","v":{"$error":"#VALUE!"}},null,null,{"$f":"IF(B7<>\"\",\"円\",\"\")","v":{"$error":"#VALUE!"}}]
[null,{"$f":"IF(MikomiNogyoTaishoHinmoku2*1>1,\"明細３\",\"\")","v":{"$error":"#VALUE!"}},null,{"$f":"IF(B9<>\"\",ShuruiHinmoku3,\"\")","v":{"$error":"#VALUE!"}},null,null,null,null,{"$f":"IF(【ひな形】入力２!J8=\"\",\"\",ASC(【ひな形】入力２!J8))","v":{"$error":"#VALUE!"}},null,null,{"$f":"IF(B9<>\"\",DBCS(TEXT(HanbaiKingaku3,\"#,##0\")),\"\")","v":{"$error":"#VALUE!"}},null,null,null,null,null,{"$f":"IF(B9<>\"\",DBCS(TEXT(JigyoShohi3,\"#,##0.0\")),\"\")","v":{"$error":"#VALUE!"}},null,null,null,{"$f":"IF(B9<>\"\",TEXT(JigyoShohiKingaku3,\"#,##0\"),\"\")","v":{"$error":"#VALUE!"}},null,null,{"$f":"IF(B9<>\"\",DBCS(TEXT(MensekiBarai3,\"#,##0.0\")),\"\")","v":{"$error":"#VALUE!"}},null,null,null,{"$f":"IF(B9<>\"\",TEXT(KimatsuTanaoroshiKingaku3,\"#,##0\"),\"\")","v":{"$error":"#VALUE!"}}]
[null,null,null,null,null,null,null,null,null,null,{"$f":"IF(B9<>\"\",\"円\",\"\")","v":{"$error":"#VALUE!"}},null,null,null,null,null,{"$f":"IF(B9<>\"\",\"円\",\"\")","v":{"$error":"#VALUE!"}},null,null,null,{"$f":"IF(B9<>\"\",\"Kg等\",\"\")","v":{"$error":"#VALUE!"}},null,null,{"$f":"IF(B9<>\"\",\"円\",\"\")","v":{"$error":"#VALUE!"}},null,null,null,{"$f":"IF(B9<>\"\",\"Kg等\",\"\")","v":{"$error":"#VALUE!"}},null,null,{"$f":"IF(B9<>\"\",\"円\",\"\")","v":{"$error":"#VALUE!"}}]
[null,{"$f":"IF(MikomiNogyoTaishoHinmoku2*1>1,\"明細４\",\"\")","v":{"$error":"#VALUE!"}},null,{"$f":"IF(B11<>\"\",ShuruiHinmoku4,\"\")","v":{"$error":"#VALUE!"}},null,null,null,null,{"$f":"IF(【ひな形】入力２!J10=\"\",\"\",ASC(【ひな形】入力２!J10))","v":{"$error":"#VALUE!"}},null,null,{"$f":"IF(B11<>\"\",DBCS(TEXT(HanbaiKingaku4,\"#,##0\")),\"\")","v":{"$error":"#VALUE!"}},null,null,null,null,null,{"$f":"IF(B11<>\"\",DBCS(TEXT(JigyoShohi4,\"#,##0.0\")),\"\")","v":{"$error":"#VALUE!"}},null,null,null,{"$f":"IF(B11<>\"\",TEXT(JigyoShohiKingaku4,\"#,##0\"),\"\")","v":{"$error":"#VALUE!"}},null,null,{"$f":"IF(B11<>\"\",DBCS(TEXT(MensekiBarai4,\"#,##0.0\")),\"\")","v":{"$error":"#VALUE!"}},null,null,null,{"$f":"IF(B11<>\"\",TEXT(KimatsuTanaoroshiKingaku4,\"#,##0\"),\"\")","v":{"$error":"#VALUE!"}}]
[null,null,null,null,null,null,null,null,null,null,{"$f":"IF(B11<>\"\",\"円\",\"\")","v":{"$error":"#VALUE!"}},null,null,null,null,null,{"$f":"IF(B11<>\"\",\"円\",\"\")","v":{"$error":"#VALUE!"}},null,null,null,{"$f":"IF(B11<>\"\",\"Kg等\",\"\")","v":{"$error":"#VALUE!"}},null,null,{"$f":"IF(B11<>\"\",\"円\",\"\")","v":{"$error":"#VALUE!"}},null,null,null,{"$f":"IF(B11<>\"\",\"Kg等\",\"\")","v":{"$error":"#VALUE!"}},null,null,{"$f":"IF(B11<>\"\",\"円\",\"\")","v":{"$error":"#VALUE!"}}]
[null,{"$f":"IF(MikomiNogyoTaishoHinmoku2*1>1,\"明細５\",\"\")","v":{"$error":"#VALUE!"}},null,{"$f":"IF(B13<>\"\",ShuruiHinmoku5,\"\")","v":{"$error":"#VALUE!"}},null,null,null,null,{"$f":"IF(【ひな形】入力２!J12=\"\",\"\",ASC(【ひな形】入力２!J12))","v":{"$error":"#VALUE!"}},null,null,{"$f":"IF(B13<>\"\",DBCS(TEXT(HanbaiKingaku5,\"#,##0\")),\"\")","v":{"$error":"#VALUE!"}},null,null,null,null,null,{"$f":"IF(B13<>\"\",DBCS(TEXT(JigyoShohi5,\"#,##0.0\")),\"\")","v":{"$error":"#VALUE!"}},null,null,null,{"$f":"IF(B13<>\"\",TEXT(JigyoShohiKingaku5,\"#,##0\"),\"\")","v":{"$error":"#VALUE!"}},null,null,{"$f":"IF(B13<>\"\",DBCS(TEXT(MensekiBarai5,\"#,##0.0\")),\"\")","v":{"$error":"#VALUE!"}},null,null,null,{"$f":"IF(B13<>\"\",TEXT(KimatsuTanaoroshiKingaku5,\"#,##0\"),\"\")","v":{"$error":"#VALUE!"}}]
[null,null,null,null,null,null,null,null,null,null,{"$f":"IF(B13<>\"\",\"円\",\"\")","v":{"$error":"#VALUE!"}},null,null,null,null,null,{"$f":"IF(B13<>\"\",\"円\",\"\")","v":{"$error":"#VALUE!"}},null,null,null,{"$f":"IF(B13<>\"\",\"Kg等\",\"\")","v":{"$error":"#VALUE!"}},null,null,{"$f":"IF(B13<>\"\",\"円\",\"\")","v":{"$error":"#VALUE!"}},null,null,null,{"$f":"IF(B13<>\"\",\"Kg等\",\"\")","v":{"$error":"#VALUE!"}},null,null,{"$f":"IF(B13<>\"\",\"円\",\"\")","v":{"$error":"#VALUE!"}}]
[null,{"$f":"IF(MikomiNogyoTaishoHinmoku2*1>1,\"明細６\",\"\")","v":{"$error":"#VALUE!"}},null,{"$f":"IF(B15<>\"\",ShuruiHinmoku6,\"\")","v":{"$error":"#VALUE!"}},null,null,null,null,{"$f":"IF(【ひな形】入力２!J14=\"\",\"\",ASC(【ひな形】入力２!J14))","v":{"$error":"#VALUE!"}},null,null,{"$f":"IF(B15<>\"\",DBCS(TEXT(HanbaiKingaku6,\"#,##0\")),\"\")","v":{"$error":"#VALUE!"}},null,null,null,null,null,{"$f":"IF(B15<>\"\",DBCS(TEXT(JigyoShohi6,\"#,##0.0\")),\"\")","v":{"$error":"#VALUE!"}},null,null,null,{"$f":"IF(B15<>\"\",TEXT(JigyoShohiKingaku6,\"#,##0\"),\"\")","v":{"$error":"#VALUE!"}},null,null,{"$f":"IF(B15<>\"\",DBCS(TEXT(MensekiBarai6,\"#,##0.0\")),\"\")","v":{"$error":"#VALUE!"}},null,null,null,{"$f":"IF(B15<>\"\",TEXT(KimatsuTanaoroshiKingaku6,\"#,##0\"),\"\")","v":{"$error":"#VALUE!"}}]
[null,null,null,null,null,null,null,null,null,null,{"$f":"IF(B15<>\"\",\"円\",\"\")","v":{"$error":"#VALUE!"}},null,null,null,null,null,{"$f":"IF(B15<>\"\",\"円\",\"\")","v":{"$error":"#VALUE!"}},null,null,null,{"$f":"IF(B15<>\"\",\"Kg等\",\"\")","v":{"$error":"#VALUE!"}},null,null,{"$f":"IF(B15<>\"\",\"円\",\"\")","v":{"$error":"#VALUE!"}},null,null,null,{"$f":"IF(B15<>\"\",\"Kg等\",\"\")","v":{"$error":"#VALUE!"}},null,null,{"$f":"IF(B15<>\"\",\"円\",\"\")","v":{"$error":"#VALUE!"}}]
[null,{"$f":"IF(MikomiNogyoTaishoHinmoku2*1>1,\"明細７\",\"\")","v":{"$error":"#VALUE!"}},null,{"$f":"IF(B17<>\"\",ShuruiHinmoku7,\"\")","v":{"$error":"#VALUE!"}},null,null,null,null,{"$f":"IF(【ひな形】入力２!J16=\"\",\"\",ASC(【ひな形】入力２!J16))","v":{"$error":"#VALUE!"}},null,null,{"$f":"IF(B17<>\"\",DBCS(TEXT(HanbaiKingaku7,\"#,##0\")),\"\")","v":{"$error":"#VALUE!"}},null,null,null,null,null,{"$f":"IF(B17<>\"\",DBCS(TEXT(JigyoShohi7,\"#,##0.0\")),\"\")","v":{"$error":"#VALUE!"}},null,null,null,{"$f":"IF(B17<>\"\",TEXT(JigyoShohiKingaku7,\"#,##0\"),\"\")","v":{"$error":"#VALUE!"}},null,null,{"$f":"IF(B17<>\"\",DBCS(TEXT(MensekiBarai7,\"#,##0.0\")),\"\")","v":{"$error":"#VALUE!"}},null,null,null,{"$f":"IF(B17<>\"\",TEXT(KimatsuTanaoroshiKingaku7,\"#,##0\"),\"\")","v":{"$error":"#VALUE!"}}]
[null,null,null,null,null,null,null,null,null,null,{"$f":"IF(B17<>\"\",\"円\",\"\")","v":{"$error":"#VALUE!"}},null,null,null,null,null,{"$f":"IF(B17<>\"\",\"円\",\"\")","v":{"$error":"#VALUE!"}},null,null,null,{"$f":"IF(B17<>\"\",\"Kg等\",\"\")","v":{"$error":"#VALUE!"}},null,null,{"$f":"IF(B17<>\"\",\"円\",\"\")","v":{"$error":"#VALUE!"}},null,null,null,{"$f":"IF(B17<>\"\",\"Kg等\",\"\")","v":{"$error":"#VALUE!"}},null,null,{"$f":"IF(B17<>\"\",\"円\",\"\")","v":{"$error":"#VALUE!"}}]
[null,{"$f":"IF(MikomiNogyoTaishoHinmoku2*1>1,\"明細８\",\"\")","v":{"$error":"#VALUE!"}},null,{"$f":"IF(B19<>\"\",ShuruiHinmoku8,\"\")","v":{"$error":"#VALUE!"}},null,null,null,null,{"$f":"IF(【ひな形】入力２!J18=\"\",\"\",ASC(【ひな形】入力２!J18))","v":{"$error":"#VALUE!"}},null,null,{"$f":"IF(B19<>\"\",DBCS(TEXT(HanbaiKingaku8,\"#,##0\")),\"\")","v":{"$error":"#VALUE!"}},null,null,null,null,null,{"$f":"IF(B19<>\"\",DBCS(TEXT(JigyoShohi8,\"#,##0.0\")),\"\")","v":{"$error":"#VALUE!"}},null,null,null,{"$f":"IF(B19<>\"\",TEXT(JigyoShohiKingaku8,\"#,##0\"),\"\")","v":{"$error":"#VALUE!"}},null,null,{"$f":"IF(B19<>\"\",DBCS(TEXT(MensekiBarai8,\"#,##0.0\")),\"\")","v":{"$error":"#VALUE!"}},null,null,null,{"$f":"IF(B19<>\"\",TEXT(KimatsuTanaoroshiKingaku8,\"#,##0\"),\"\")","v":{"$error":"#VALUE!"}}]
[null,null,null,null,null,null,null,null,null,null,{"$f":"IF(B19<>\"\",\"円\",\"\")","v":{"$error":"#VALUE!"}},null,null,null,null,null,{"$f":"IF(B19<>\"\",\"円\",\"\")","v":{"$error":"#VALUE!"}},null,null,null,{"$f":"IF(B19<>\"\",\"Kg等\",\"\")","v":{"$error":"#VALUE!"}},null,null,{"$f":"IF(B19<>\"\",\"円\",\"\")","v":{"$error":"#VALUE!"}},null,null,null,{"$f":"IF(B19<>\"\",\"Kg等\",\"\")","v":{"$error":"#VALUE!"}},null,null,{"$f":"IF(B19<>\"\",\"円\",\"\")","v":{"$error":"#VALUE!"}}]
[null,{"$f":"IF(MikomiNogyoTaishoHinmoku2*1>1,\"明細９\",\"\")","v":{"$error":"#VALUE!"}},null,{"$f":"IF(B21<>\"\",ShuruiHinmoku9,\"\")","v":{"$error":"#VALUE!"}},null,null,null,null,{"$f":"IF(【ひな形】入力２!J20=\"\",\"\",ASC(【ひな形】入力２!J20))","v":{"$error":"#VALUE!"}},null,null,{"$f":"IF(B21<>\"\",DBCS(TEXT(HanbaiKingaku9,\"#,##0\")),\"\")","v":{"$error":"#VALUE!"}},null,null,null,null,null,{"$f":"IF(B21<>\"\",DBCS(TEXT(JigyoShohi9,\"#,##0.0\")),\"\")","v":{"$error":"#VALUE!"}},null,null,null,{"$f":"IF(B21<>\"\",TEXT(JigyoShohiKingaku9,\"#,##0\"),\"\")","v":{"$error":"#VALUE!"}},null,null,{"$f":"IF(B21<>\"\",DBCS(TEXT(MensekiBarai9,\"#,##0.0\")),\"\")","v":{"$error":"#VALUE!"}},null,null,null,{"$f":"IF(B21<>\"\",TEXT(KimatsuTanaoroshiKingaku9,\"#,##0\"),\"\")","v":{"$error":"#VALUE!"}}]
[null,null,null,null,null,null,null,null,null,null,{"$f":"IF(B21<>\"\",\"円\",\"\")","v":{"$error":"#VALUE!"}},null,null,null,null,null,{"$f":"IF(B21<>\"\",\"円\",\"\")","v":{"$error":"#VALUE!"}},null,null,null,{"$f":"IF(B21<>\"\",\"Kg等\",\"\")","v":{"$error":"#VALUE!"}},null,null,{"$f":"IF(B21<>\"\",\"円\",\"\")","v":{"$error":"#VALUE!"}},null,null,null,{"$f":"IF(B21<>\"\",\"Kg等\",\"\")","v":{"$error":"#VALUE!"}},null,null,{"$f":"IF(B21<>\"\",\"円\",\"\")","v":{"$error":"#VALUE!"}}]
[null,{"$f":"IF(MikomiNogyoTaishoHinmoku2*1>1,\"明細１０\",\"\")","v":{"$error":"#VALUE!"}},null,{"$f":"IF(B23<>\"\",ShuruiHinmoku10,\"\")","v":{"$error":"#VALUE!"}},null,null,null,null,{"$f":"IF(【ひな形】入力２!J22=\"\",\"\",ASC(【ひな形】入力２!J22))","v":{"$error":"#VALUE!"}},null,null,{"$f":"IF(B23<>\"\",DBCS(TEXT(HanbaiKingaku10,\"#,##0\")),\"\")","v":{"$error":"#VALUE!"}},null,null,null,null,null,{"$f":"IF(B23<>\"\",DBCS(TEXT(JigyoShohi10,\"#,##0.0\")),\"\")","v":{"$error":"#VALUE!"}},null,null,null,{"$f":"IF(B23<>\"\",TEXT(JigyoShohiKingaku10,\"#,##0\"),\"\")","v":{"$error":"#VALUE!"}},null,null,{"$f":"IF(B23<>\"\",DBCS(TEXT(MensekiBarai10,\"#,##0.0\")),\"\")","v":{"$error":"#VALUE!"}},null,null,null,{"$f":"IF(B23<>\"\",TEXT(KimatsuTanaoroshiKingaku10,\"#,##0\"),\"\")","v":{"$error":"#VALUE!"}}]
[null,null,null,null,null,null,null,null,null,null,{"$f":"IF(B23<>\"\",\"円\",\"\")","v":{"$error":"#VALUE!"}},null,null,null,null,null,{"$f":"IF(B23<>\"\",\"円\",\"\")","v":{"$error":"#VALUE!"}},null,null,null,{"$f":"IF(B23<>\"\",\"Kg等\",\"\")","v":{"$error":"#VALUE!"}},null,null,{"$f":"IF(B23<>\"\",\"円\",\"\")","v":{"$error":"#VALUE!"}},null,null,null,{"$f":"IF(B23<>\"\",\"Kg等\",\"\")","v":{"$error":"#VALUE!"}},null,null,{"$f":"IF(B23<>\"\",\"円\",\"\")","v":{"$error":"#VALUE!"}}]
[null,"合計",null,null,null,null,null,null,{"$f":"IF(【ひな形】入力２!J24=\"\",\"\",ASC(【ひな形】入力２!J24))","v":"0"},null,null,{"$f":"DBCS(TEXT(SUM(HanbaiKingaku1,HanbaiKingaku2,HanbaiKingaku3,HanbaiKingaku4,HanbaiKingaku5,HanbaiKingaku6,HanbaiKingaku7,HanbaiKingaku8,HanbaiKingaku9,HanbaiKingaku10),\"#,##0\"))","v":"０"},null,null,null,null,null,null,null,null,null,{"$f":"TEXT(SUM(JigyoShohiKingaku1,JigyoShohiKingaku2,JigyoShohiKingaku3,JigyoShohiKingaku4,JigyoShohiKingaku5,JigyoShohiKingaku6,JigyoShohiKingaku7,JigyoShohiKingaku8,JigyoShohiKingaku9,JigyoShohiKingaku10),\"#,##0\")","v":"0"},null,null,null,null,null,null,{"$f":"TEXT(SUM(KimatsuTanaoroshiKingaku1,KimatsuTanaoroshiKingaku2,KimatsuTanaoroshiKingaku3,KimatsuTanaoroshiKingaku4,KimatsuTanaoroshiKingaku5,KimatsuTanaoroshiKingaku6,KimatsuTanaoroshiKingaku7,KimatsuTanaoroshiKingaku8,KimatsuTanaoroshiKingaku9,KimatsuTanaoroshiKingaku10),\"#,##0\")","v":"0"}]
[null,null,null,null,null,null,null,null,null,null,"円",null,null,null,null,null,"円",null,null,null,null,null,null,"円",null,null,null,null,null,null,"円"]

{"sheet":"【ひな形】結果１","index":15,"n_rows":27,"n_cols":32,"rows_kept":27,"cut":false,"hidden":true,"merged":[[21,23,21,25],[23,23,23,25],[25,23,25,25],[2,26,4,28],[5,26,5,28],[7,26,7,28],[9,26,9,28],[11,26,11,28],[2,23,4,25],[5,23,5,25],[7,23,7,25],[9,23,9,25],[11,23,11,25],[13,23,13,25],[15,23,15,25],[17,23,17,25],[19,23,19,25],[21,29,21,31],[23,29,23,31],[25,29,25,31],[25,26,25,28],[2,29,4,31],[5,29,5,31],[7,29,7,31],[9,29,9,31],[11,29,11,31],[13,29,13,31],[15,29,15,31],[17,29,17,31],[19,29,19,31],[13,26,13,28],[15,26,15,28],[17,26,17,28],[19,26,19,28],[21,26,21,28],[23,26,23,28],[2,17,4,19],[5,17,5,19],[7,17,7,19],[9,17,9,19],[11,17,11,19],[25,17,25,19],[2,20,4,22],[5,20,5,22],[7,20,7,22],[9,20,9,22],[11,20,11,22],[13,20,13,22],[15,20,15,22],[17,20,17,22],[19,20,19,22],[13,17,13,19],[15,17,15,19],[17,17,17,19],[19,17,19,19],[21,17,21,19],[23,17,23,19],[21,20,21,22],[23,20,23,22],[25,20,25,22],[21,11,21,13],[23,11,23,13],[25,11,25,13],[2,14,4,16],[5,14,5,16],[7,14,7,16],[9,14,9,16],[11,14,11,16],[13,14,13,16],[15,14,15,16],[2,11,4,13],[5,11,5,13],[7,11,7,13],[9,11,9,13],[11,11,11,13],[13,11,13,13],[15,11,15,13],[17,11,17,13],[19,11,19,13],[17,14,17,16],[19,14,19,16],[21,14,21,16],[23,14,23,16],[25,14,25,16],[25,1,26,2],[25,3,26,7],[25,8,25,10],[23,1,24,2],[23,3,24,7],[23,8,23,10],[21,1,22,2],[21,3,22,7],[21,8,21,10],[19,1,20,2],[19,3,20,7],[19,8,19,10],[17,1,18,2],[17,3,18,7],[17,8,17,10],[15,1,16,2],[15,3,16,7],[15,8,15,10],[13,1,14,2],[13,3,14,7],[13,8,13,10],[11,1,12,2],[11,3,12,7],[11,8,11,10],[9,1,10,2],[9,3,10,7],[9,8,9,10],[7,1,8,2],[7,3,8,7],[7,8,7,10],[5,1,6,2],[5,3,6,7],[5,8,5,10],[2,1,4,2],[2,3,4,7],[2,8,4,10]]}
[]
[]
[null,null,null,"種類・品目等",null,null,null,null,"期首棚卸高\n①",null,null,"販売金額\n②",null,null,"事業消費金額\n③",null,null,"期末棚卸高\n④",null,null,"数量払の調整\n⑤",null,null,"農業収入金額\n⑥=②+③+④\n+⑤-①",null,null,"見込農業収入\n金額\n⑦",null,null,"農業収入\n増減額\n⑧=⑦-⑥"]
[]
[]
[null,"明細１",null,null,null,null,null,null,{"$f":"IF(【ひな形】入力２!J4=\"\",\"\",ASC(【ひな形】入力２!J4))","v":"0"},null,null,{"$f":"IF(【ひな形】入力5!L5=\"\",\"\",ASC(【ひな形】入力5!L5))","v":"0"},null,null,{"$f":"IF(【ひな形】入力5!V5=\"\",\"\",ASC(【ひな形】入力5!V5))","v":"0"},null,null,{"$f":"IF(【ひな形】入力5!AC5=\"\",\"\",ASC(【ひな形】入力5!AC5))","v":"0"},null,null,{"$f":"IF(【ひな形】入力２!V4=\"\",\"\",ASC(【ひな形】入力２!V4))","v":""},null,null,{"$f":"IF(【ひな形】入力２!Y4=\"\",\"\",ASC(【ひな形】入力２!Y4))","v":""},null,null,{"$f":"IF(【ひな形】入力２!AB4=\"\",\"\",ASC(【ひな形】入力２!AB4))","v":""},null,null,{"$f":"IF(【ひな形】入力２!AE4=\"\",\"\",ASC(【ひな形】入力２!AE4))","v":""}]
[null,null,null,null,null,null,null,null,null,null,"円",null,null,"円",null,null,"円",null,null,"円",null,null,"円",null,null,"円",null,null,"円",null,null,"円"]
[null,{"$f":"IF(MikomiNogyoTaishoHinmoku2*1>1,\"明細２\",\"\")","v":{"$error":"#VALUE!"}},null,{"$f":"IF(B8<>\"\",ShuruiHinmoku2,\"\")","v":{"$error":"#VALUE!"}},null,null,null,null,{"$f":"IF(B8<>\"\",ASC(【ひな形】入力２!J6),\"\")","v":{"$error":"#VALUE!"}},null,null,{"$f":"IF(B8<>\"\",ASC(【ひな形】入力5!L7),\"\")","v":{"$error":"#VALUE!"}},null,null,{"$f":"IF(B8<>\"\",ASC(【ひな形】入力２!P6),\"\")","v":{"$error":"#VALUE!"}},null,null,{"$f":"IF(B8<>\"\",ASC(【ひな形】入力２!S6),\"\")","v":{"$error":"#VALUE!"}},null,null,{"$f":"IF(B8<>\"\",ASC(【ひな形】入力２!V6),\"\")","v":{"$error":"#VALUE!"}},null,null,{"$f":"IF(B8<>\"\",ASC(【ひな形】入力２!Y6),\"\")","v":{"$error":"#VALUE!"}},null,null,{"$f":"IF(B8<>\"\",ASC(【ひな形】入力２!AB6),\"\")","v":{"$error":"#VALUE!"}},null,null,{"$f":"IF(B8<>\"\",ASC(【ひな形】入力２!AE6),\"\")","v":{"$error":"#VALUE!"}}]
[null,null,null,null,null,null,null,null,null,null,{"$f":"IF(B8<>\"\",\"円\",\"\")","v":{"$error":"#VALUE!"}},null,null,{"$f":"IF(B8<>\"\",\"円\",\"\")","v":{"$error":"#VALUE!"}},null,null,{"$f":"IF(B8<>\"\",\"円\",\"\")","v":{"$error":"#VALUE!"}},null,null,{"$f":"IF(B8<>\"\",\"円\",\"\")","v":{"$error":"#VALUE!"}},null,null,{"$f":"IF(B8<>\"\",\"円\",\"\")","v":{"$error":"#VALUE!"}},null,null,{"$f":"IF(B8<>\"\",\"円\",\"\")","v":{"$error":"#VALUE!"}},null,null,{"$f":"IF(B8<>\"\",\"円\",\"\")","v":{"$error":"#VALUE!"}},null,null,{"$f":"IF(B8<>\"\",\"円\",\"\")","v":{"$error":"#VALUE!"}}]
[null,{"$f":"IF(MikomiNogyoTaishoHinmoku2*1>1,\"明細３\",\"\")","v":{"$error":"#VALUE!"}},null,{"$f":"IF(B10<>\"\",ShuruiHinmoku3,\"\")","v":{"$error":"#VALUE!"}},null,null,null,null,{"$f":"IF(B10<>\"\",ASC(【ひな形】入力２!J8),\"\")","v":{"$error":"#VALUE!"}},null,null,{"$f":"IF(B10<>\"\",ASC(【ひな形】入力5!L9),\"\")","v":{"$error":"#VALUE!"}},null,null,{"$f":"IF(B10<>\"\",ASC(【ひな形】入力２!P8),\"\")","v":{"$error":"#VALUE!"}},null,null,{"$f":"IF(B10<>\"\",ASC(【ひな形】入力２!S8),\"\")","v":{"$error":"#VALUE!"}},null,null,{"$f":"IF(B10<>\"\",ASC(【ひな形】入力２!V8),\"\")","v":{"$error":"#VALUE!"}},null,null,{"$f":"IF(B10<>\"\",ASC(【ひな形】入力２!Y8),\"\")","v":{"$error":"#VALUE!"}},null,null,{"$f":"IF(B10<>\"\",ASC(【ひな形】入力２!AB8),\"\")","v":{"$error":"#VALUE!"}},null,null,{"$f":"IF(B10<>\"\",ASC(【ひな形】入力２!AE8),\"\")","v":{"$error":"#VALUE!"}}]
[null,null,null,null,null,null,null,null,null,null,{"$f":"IF(B10<>\"\",\"円\",\"\")","v":{"$error":"#VALUE!"}},null,null,{"$f":"IF(B10<>\"\",\"円\",\"\")","v":{"$error":"#VALUE!"}},null,null,{"$f":"IF(B10<>\"\",\"円\",\"\")","v":{"$error":"#VALUE!"}},null,null,{"$f":"IF(B10<>\"\",\"円\",\"\")","v":{"$error":"#VALUE!"}},null,null,{"$f":"IF(B10<>\"\",\"円\",\"\")","v":{"$error":"#VALUE!"}},null,null,{"$f":"IF(B10<>\"\",\"円\",\"\")","v":{"$error":"#VALUE!"}},null,null,{"$f":"IF(B10<>\"\",\"円\",\"\")","v":{"$error":"#VALUE!"}},null,null,{"$f":"IF(B10<>\"\",\"円\",\"\")","v":{"$error":"#VALUE!"}}]
[null,{"$f":"IF(MikomiNogyoTaishoHinmoku2*1>1,\"明細４\",\"\")","v":{"$error":"#VALUE!"}},null,{"$f":"IF(B12<>\"\",ShuruiHinmoku4,\"\")","v":{"$error":"#VALUE!"}},null,null,null,null,{"$f":"IF(B12<>\"\",ASC(【ひな形】入力２!J10),\"\")","v":{"$error":"#VALUE!"}},null,null,{"$f":"IF(B12<>\"\",ASC(【ひな形】入力5!L11),\"\")","v":{"$error":"#VALUE!"}},null,null,{"$f":"IF(B12<>\"\",ASC(【ひな形】入力２!P10),\"\")","v":{"$error":"#VALUE!"}},null,null,{"$f":"IF(B12<>\"\",ASC(【ひな形】入力２!S10),\"\")","v":{"$error":"#VALUE!"}},null,null,{"$f":"IF(B12<>\"\",ASC(【ひな形】入力２!V10),\"\")","v":{"$error":"#VALUE!"}},null,null,{"$f":"IF(B12<>\"\",ASC(【ひな形】入力２!Y10),\"\")","v":{"$error":"#VALUE!"}},null,null,{"$f":"IF(B12<>\"\",ASC(【ひな形】入力２!AB10),\"\")","v":{"$error":"#VALUE!"}},null,null,{"$f":"IF(B12<>\"\",ASC(【ひな形】入力２!AE10),\"\")","v":{"$error":"#VALUE!"}}]
[null,null,null,null,null,null,null,null,null,null,{"$f":"IF(B12<>\"\",\"円\",\"\")","v":{"$error":"#VALUE!"}},null,null,{"$f":"IF(B12<>\"\",\"円\",\"\")","v":{"$error":"#VALUE!"}},null,null,{"$f":"IF(B12<>\"\",\"円\",\"\")","v":{"$error":"#VALUE!"}},null,null,{"$f":"IF(B12<>\"\",\"円\",\"\")","v":{"$error":"#VALUE!"}},null,null,{"$f":"IF(B12<>\"\",\"円\",\"\")","v":{"$error":"#VALUE!"}},null,null,{"$f":"IF(B12<>\"\",\"円\",\"\")","v":{"$error":"#VALUE!"}},null,null,{"$f":"IF(B12<>\"\",\"円\",\"\")","v":{"$error":"#VALUE!"}},null,null,{"$f":"IF(B12<>\"\",\"円\",\"\")","v":{"$error":"#VALUE!"}}]
[null,{"$f":"IF(MikomiNogyoTaishoHinmoku2*1>1,\"明細５\",\"\")","v":{"$error":"#VALUE!"}},null,{"$f":"IF(B14<>\"\",ShuruiHinmoku5,\"\")","v":{"$error":"#VALUE!"}},null,null,null,null,{"$f":"IF(B14<>\"\",ASC(【ひな形】入力２!J12),\"\")","v":{"$error":"#VALUE!"}},null,null,{"$f":"IF(B14<>\"\",ASC(【ひな形】入力5!L13),\"\")","v":{"$error":"#VALUE!"}},null,null,{"$f":"IF(B14<>\"\",ASC(【ひな形】入力２!P12),\"\")","v":{"$error":"#VALUE!"}},null,null,{"$f":"IF(B14<>\"\",ASC(【ひな形】入力２!S12),\"\")","v":{"$error":"#VALUE!"}},null,null,{"$f":"IF(B14<>\"\",ASC(【ひな形】入力２!V12),\"\")","v":{"$error":"#VALUE!"}},null,null,{"$f":"IF(B14<>\"\",ASC(【ひな形】入力２!Y12),\"\")","v":{"$error":"#VALUE!"}},null,null,{"$f":"IF(B14<>\"\",ASC(【ひな形】入力２!AB12),\"\")","v":{"$error":"#VALUE!"}},null,null,{"$f":"IF(B14<>\"\",ASC(【ひな形】入力２!AE12),\"\")","v":{"$error":"#VALUE!"}}]
[null,null,null,null,null,null,null,null,null,null,{"$f":"IF(B14<>\"\",\"円\",\"\")","v":{"$error":"#VALUE!"}},null,null,{"$f":"IF(B14<>\"\",\"円\",\"\")","v":{"$error":"#VALUE!"}},null,null,{"$f":"IF(B14<>\"\",\"円\",\"\")","v":{"$error":"#VALUE!"}},null,null,{"$f":"IF(B14<>\"\",\"円\",\"\")","v":{"$error":"#VALUE!"}},null,null,{"$f":"IF(B14<>\"\",\"円\",\"\")","v":{"$error":"#VALUE!"}},null,null,{"$f":"IF(B14<>\"\",\"円\",\"\")","v":{"$error":"#VALUE!"}},null,null,{"$f":"IF(B14<>\"\",\"円\",\"\")","v":{"$error":"#VALUE!"}},null,null,{"$f":"IF(B14<>\"\",\"円\",\"\")","v":{"$error":"#VALUE!"}}]
[null,{"$f":"IF(MikomiNogyoTaishoHinmoku2*1>1,\"明細６\",\"\")","v":{"$error":"#VALUE!"}},null,{"$f":"IF(B16<>\"\",ShuruiHinmoku6,\"\")","v":{"$error":"#VALUE!"}},null,null,null,null,{"$f":"IF(B16<>\"\",ASC(【ひな形】入力２!J14),\"\")","v":{"$error":"#VALUE!"}},null,null,{"$f":"IF(B16<>\"\",ASC(【ひな形】入力5!L15),\"\")","v":{"$error":"#VALUE!"}},null,null,{"$f":"IF(B16<>\"\",ASC(【ひな形】入力２!P14),\"\")","v":{"$error":"#VALUE!"}},null,null,{"$f":"IF(B16<>\"\",ASC(【ひな形】入力２!S14),\"\")","v":{"$error":"#VALUE!"}},null,null,{"$f":"IF(B16<>\"\",ASC(【ひな形】入力２!V14),\"\")","v":{"$error":"#VALUE!"}},null,null,{"$f":"IF(B16<>\"\",ASC(【ひな形】入力２!Y14),\"\")","v":{"$error":"#VALUE!"}},null,null,{"$f":"IF(B16<>\"\",ASC(【ひな形】入力２!AB14),\"\")","v":{"$error":"#VALUE!"}},null,null,{"$f":"IF(B16<>\"\",ASC(【ひな形】入力２!AE14),\"\")","v":{"$error":"#VALUE!"}}]
[null,null,null,null,null,null,null,null,null,null,{"$f":"IF(B16<>\"\",\"円\",\"\")","v":{"$error":"#VALUE!"}},null,null,{"$f":"IF(B16<>\"\",\"円\",\"\")","v":{"$error":"#VALUE!"}},null,null,{"$f":"IF(B16<>\"\",\"円\",\"\")","v":{"$error":"#VALUE!"}},null,null,{"$f":"IF(B16<>\"\",\"円\",\"\")","v":{"$error":"#VALUE!"}},null,null,{"$f":"IF(B16<>\"\",\"円\",\"\")","v":{"$error":"#VALUE!"}},null,null,{"$f":"IF(B16<>\"\",\"円\",\"\")","v":{"$error":"#VALUE!"}},null,null,{"$f":"IF(B16<>\"\",\"円\",\"\")","v":{"$error":"#VALUE!"}},null,null,{"$f":"IF(B16<>\"\",\"円\",\"\")","v":{"$error":"#VALUE!"}}]
[null,{"$f":"IF(MikomiNogyoTaishoHinmoku2*1>1,\"明細７\",\"\")","v":{"$error":"#VALUE!"}},null,{"$f":"IF(B18<>\"\",ShuruiHinmoku7,\"\")","v":{"$error":"#VALUE!"}},null,null,null,null,{"$f":"IF(B18<>\"\",ASC(【ひな形】入力２!J16),\"\")","v":{"$error":"#VALUE!"}},null,null,{"$f":"IF(B18<>\"\",ASC(【ひな形】入力5!L17),\"\")","v":{"$error":"#VALUE!"}},null,null,{"$f":"IF(B18<>\"\",ASC(【ひな形】入力２!P16),\"\")","v":{"$error":"#VALUE!"}},null,null,{"$f":"IF(B18<>\"\",ASC(【ひな形】入力２!S16),\"\")","v":{"$error":"#VALUE!"}},null,null,{"$f":"IF(B18<>\"\",ASC(【ひな形】入力２!V16),\"\")","v":{"$error":"#VALUE!"}},null,null,{"$f":"IF(B18<>\"\",ASC(【ひな形】入力２!Y16),\"\")","v":{"$error":"#VALUE!"}},null,null,{"$f":"IF(B18<>\"\",ASC(【ひな形】入力２!AB16),\"\")","v":{"$error":"#VALUE!"}},null,null,{"$f":"IF(B18<>\"\",ASC(【ひな形】入力２!AE16),\"\")","v":{"$error":"#VALUE!"}}]
[null,null,null,null,null,null,null,null,null,null,{"$f":"IF(B18<>\"\",\"円\",\"\")","v":{"$error":"#VALUE!"}},null,null,{"$f":"IF(B18<>\"\",\"円\",\"\")","v":{"$error":"#VALUE!"}},null,null,{"$f":"IF(B18<>\"\",\"円\",\"\")","v":{"$error":"#VALUE!"}},null,null,{"$f":"IF(B18<>\"\",\"円\",\"\")","v":{"$error":"#VALUE!"}},null,null,{"$f":"IF(B18<>\"\",\"円\",\"\")","v":{"$error":"#VALUE!"}},null,null,{"$f":"IF(B18<>\"\",\"円\",\"\")","v":{"$error":"#VALUE!"}},null,null,{"$f":"IF(B18<>\"\",\"円\",\"\")","v":{"$error":"#VALUE!"}},null,null,{"$f":"IF(B18<>\"\",\"円\",\"\")","v":{"$error":"#VALUE!"}}]
[null,{"$f":"IF(MikomiNogyoTaishoHinmoku2*1>1,\"明細８\",\"\")","v":{"$error":"#VALUE!"}},null,{"$f":"IF(B20<>\"\",ShuruiHinmoku8,\"\")","v":{"$error":"#VALUE!"}},null,null,null,null,{"$f":"IF(B20<>\"\",ASC(【ひな形】入力２!J18),\"\")","v":{"$error":"#VALUE!"}},null,null,{"$f":"IF(B20<>\"\",ASC(【ひな形】入力5!L19),\"\")","v":{"$error":"#VALUE!"}},null,null,{"$f":"IF(B20<>\"\",ASC(【ひな形】入力２!P18),\"\")","v":{"$error":"#VALUE!"}},null,null,{"$f":"IF(B20<>\"\",ASC(【ひな形】入力２!S18),\"\")","v":{"$error":"#VALUE!"}},null,null,{"$f":"IF(B20<>\"\",ASC(【ひな形】入力２!V18),\"\")","v":{"$error":"#VALUE!"}},null,null,{"$f":"IF(B20<>\"\",ASC(【ひな形】入力２!Y18),\"\")","v":{"$error":"#VALUE!"}},null,null,{"$f":"IF(B20<>\"\",ASC(【ひな形】入力２!AB18),\"\")","v":{"$error":"#VALUE!"}},null,null,{"$f":"IF(B20<>\"\",ASC(【ひな形】入力２!AE18),\"\")","v":{"$error":"#VALUE!"}}]
[null,null,null,null,null,null,null,null,null,null,{"$f":"IF(B20<>\"\",\"円\",\"\")","v":{"$error":"#VALUE!"}},null,null,{"$f":"IF(B20<>\"\",\"円\",\"\")","v":{"$error":"#VALUE!"}},null,null,{"$f":"IF(B20<>\"\",\"円\",\"\")","v":{"$error":"#VALUE!"}},null,null,{"$f":"IF(B20<>\"\",\"円\",\"\")","v":{"$error":"#VALUE!"}},null,null,{"$f":"IF(B20<>\"\",\"円\",\"\")","v":{"$error":"#VALUE!"}},null,null,{"$f":"IF(B20<>\"\",\"円\",\"\")","v":{"$error":"#VALUE!"}},null,null,{"$f":"IF(B20<>\"\",\"円\",\"\")","v":{"$error":"#VALUE!"}},null,null,{"$f":"IF(B20<>\"\",\"円\",\"\")","v":{"$error":"#VALUE!"}}]
[null,{"$f":"IF(MikomiNogyoTaishoHinmoku2*1>1,\"明細９\",\"\")","v":{"$error":"#VALUE!"}},null,{"$f":"IF(B22<>\"\",ShuruiHinmoku9,\"\")","v":{"$error":"#VALUE!"}},null,null,null,null,{"$f":"IF(B22<>\"\",ASC(【ひな形】入力２!J20),\"\")","v":{"$error":"#VALUE!"}},null,null,{"$f":"IF(B22<>\"\",ASC(【ひな形】入力5!L21),\"\")","v":{"$error":"#VALUE!"}},null,null,{"$f":"IF(B22<>\"\",ASC(【ひな形】入力２!P20),\"\")","v":{"$error":"#VALUE!"}},null,null,{"$f":"IF(B22<>\"\",ASC(【ひな形】入力２!S20),\"\")","v":{"$error":"#VALUE!"}},null,null,{"$f":"IF(B22<>\"\",ASC(【ひな形】入力２!V20),\"\")","v":{"$error":"#VALUE!"}},null,null,{"$f":"IF(B22<>\"\",ASC(【ひな形】入力２!Y20),\"\")","v":{"$error":"#VALUE!"}},null,null,{"$f":"IF(B22<>\"\",ASC(【ひな形】入力２!AB20),\"\")","v":{"$error":"#VALUE!"}},null,null,{"$f":"IF(B22<>\"\",ASC(【ひな形】入力２!AE20),\"\")","v":{"$error":"#VALUE!"}}]
[null,null,null,null,null,null,null,null,null,null,{"$f":"IF(B22<>\"\",\"円\",\"\")","v":{"$error":"#VALUE!"}},null,null,{"$f":"IF(B22<>\"\",\"円\",\"\")","v":{"$error":"#VALUE!"}},null,null,{"$f":"IF(B22<>\"\",\"円\",\"\")","v":{"$error":"#VALUE!"}},null,null,{"$f":"IF(B22<>\"\",\"円\",\"\")","v":{"$error":"#VALUE!"}},null,null,{"$f":"IF(B22<>\"\",\"円\",\"\")","v":{"$error":"#VALUE!"}},null,null,{"$f":"IF(B22<>\"\",\"円\",\"\")","v":{"$error":"#VALUE!"}},null,null,{"$f":"IF(B22<>\"\",\"円\",\"\")","v":{"$error":"#VALUE!"}},null,null,{"$f":"IF(B22<>\"\",\"円\",\"\")","v":{"$error":"#VALUE!"}}]
[null,{"$f":"IF(MikomiNogyoTaishoHinmoku2*1>1,\"明細１０\",\"\")","v":{"$error":"#VALUE!"}},null,{"$f":"IF(B24<>\"\",ShuruiHinmoku10,\"\")","v":{"$error":"#VALUE!"}},null,null,null,null,{"$f":"IF(B24<>\"\",ASC(【ひな形】入力２!J22),\"\")","v":{"$error":"#VALUE!"}},null,null,{"$f":"IF(B24<>\"\",ASC(【ひな形】入力5!L23),\"\")","v":{"$error":"#VALUE!"}},null,null,{"$f":"IF(B24<>\"\",ASC(【ひな形】入力２!P22),\"\")","v":{"$error":"#VALUE!"}},null,null,{"$f":"IF(B24<>\"\",ASC(【ひな形】入力２!S22),\"\")","v":{"$error":"#VALUE!"}},null,null,{"$f":"IF(B24<>\"\",ASC(【ひな形】入力２!V22),\"\")","v":{"$error":"#VALUE!"}},null,null,{"$f":"IF(B24<>\"\",ASC(【ひな形】入力２!Y22),\"\")","v":{"$error":"#VALUE!"}},null,null,{"$f":"IF(B24<>\"\",ASC(【ひな形】入力２!AB22),\"\")","v":{"$error":"#VALUE!"}},null,null,{"$f":"IF(B24<>\"\",ASC(【ひな形】入力２!AE22),\"\")","v":{"$error":"#VALUE!"}}]
[null,null,null,null,null,null,null,null,null,null,{"$f":"IF(B24<>\"\",\"円\",\"\")","v":{"$error":"#VALUE!"}},null,null,{"$f":"IF(B24<>\"\",\"円\",\"\")","v":{"$error":"#VALUE!"}},null,null,{"$f":"IF(B24<>\"\",\"円\",\"\")","v":{"$error":"#VALUE!"}},null,null,{"$f":"IF(B24<>\"\",\"円\",\"\")","v":{"$error":"#VALUE!"}},null,null,{"$f":"IF(B24<>\"\",\"円\",\"\")","v":{"$error":"#VALUE!"}},null,null,{"$f":"IF(B24<>\"\",\"円\",\"\")","v":{"$error":"#VALUE!"}},null,null,{"$f":"IF(B24<>\"\",\"円\",\"\")","v":{"$error":"#VALUE!"}},null,null,{"$f":"IF(B24<>\"\",\"円\",\"\")","v":{"$error":"#VALUE!"}}]
[null,"合計",null,null,null,null,null,null,{"$f":"IF(【ひな形】入力２!J24=\"\",\"\",ASC(【ひな形】入力２!J24))","v":"0"},null,null,{"$f":"IF(【ひな形】入力5!L25=\"\",\"\",ASC(【ひな形】入力5!L25))","v":"0"},null,null,{"$f":"IF(【ひな形】入力２!P24=\"\",\"\",ASC(【ひな形】入力２!P24))","v":""},null,null,{"$f":"IF(【ひな形】入力２!S24=\"\",\"\",ASC(【ひな形】入力２!S24))","v":""},null,null,{"$f":"IF(【ひな形】入力２!V24=\"\",\"\",ASC(【ひな形】入力２!V24))","v":""},null,null,{"$f":"IF(【ひな形】入力２!Y24=\"\",\"\",ASC(【ひな形】入力２!Y24))","v":""},null,null,{"$f":"IF(【ひな形】入力２!AB24=\"\",\"\",ASC(【ひな形】入力２!AB24))","v":""},null,null,{"$f":"IF(【ひな形】入力２!AE24=\"\",\"\",ASC(【ひな形】入力２!AE24))","v":""}]
[null,null,null,null,null,null,null,null,null,null,"円",null,null,"円",null,null,"円",null,null,"円",null,null,"円",null,null,"円",null,null,"円",null,null,"円"]